Workbook

Sheet Main
B10: 2021-12-15
B12: Sheet No. | C12: Template Name | D12: Summary
B13: 1 | C13: Future Intra | D13: For Intraday trading in F&O segment
B14: 2 | C14: Cash Intra | D14: For Intraday trading in cash market segment
B15: 3 | C15: Mid-cap Intra | D15: For Intraday trading in Mid-cap stocks
B16: 4 | C16: Bulk Deals | D16: Reveals Bulk Deals carried on NSE & BSE
B17: 5 | C17: Call Tracker
K27: `

Sheet Future Intra
M5: Back to Main Page
A6: FOR INTRA DAY TRADING | L6: =Main!B10 -> 2021-12-15
A9: Sr.no | B9: Sector | C9: Scrip | D9: Expiry Date | E9: CLOSE RATE | F9: Pivot Point | G9: Supports | J9: Resistances
E10: Point | F10: Point | G10: S1 | H10: S2 | I10: S3 | J10: R1 | K10: R2 | L10: R3 | M10: HIGH | N10: LOW | O10: OI | P10: % Change in OI
A11: 1 | B11: Index | C11: BANKNIFTY | D11: 2021-12-30 | E11: 37042.50 | F11: 36963.82 | G11: 36727.63 | H11: 36412.77 | I11: 36176.58 | J11: 37278.68 | K11: 37514.87 | L11: 37829.73 | M11: 37200 | N11: 36648.95 | O11: 2409025 | P11: 0.17%
A12: 2 | B12: Index | C12: NIFTY | D12: 2021-12-30 | E12: 17355.05 | F12: 17336.35 | G12: 17248.70 | H12: 17142.35 | I12: 17054.70 | J12: 17442.70 | K12: 17530.35 | L12: 17636.70 | M12: 17424 | N12: 17230 | O12: 12947200 | P12: 8.56%
A13: 3 | B13: Index | C13: FINNIFTY | D13: 2021-12-28 | E13: 18002.95 | F13: 17946.40 | G13: 17856.60 | H13: 17710.25 | I13: 17620.45 | J13: 18092.75 | K13: 18182.55 | L13: 18328.90 | M13: 18036.2 | N13: 17800.05 | O13: 600 | P13: 25.00%
A14: 4 | B14: Chemical | C14: AARTIIND | D14: 2021-12-30 | E14: 992.35 | F14: 999.03 | G14: 981.62 | H14: 970.88 | I14: 953.47 | J14: 1009.77 | K14: 1027.18 | L14: 1037.92 | M14: 1016.45 | N14: 988.3 | O14: 2538100 | P14: 0.13%
A15: 5 | B15: Pharma | C15: ABBOTINDIA | D15: 2021-12-30 | E15: 18351.50 | F15: 18351.48 | G15: 18155.02 | H15: 17958.53 | I15: 17762.07 | J15: 18547.97 | K15: 18744.43 | L15: 18940.92 | M15: 18547.95 | N15: 18155 | O15: 35525 | P15: 3.57%
A16: 6 | B16: Textile | C16: ABFRL | D16: 2021-12-30 | E16: 284.70 | F16: 280.58 | G16: 269.62 | H16: 254.53 | I16: 243.57 | J16: 295.67 | K16: 306.63 | L16: 321.72 | M16: 291.55 | N16: 265.5 | O16: 10358400 | P16: 7.62%
A17: 7 | B17: Cement | C17: ACC | D17: 2021-12-30 | E17: 2323.95 | F17: 2311.90 | G17: 2293.80 | H17: 2263.65 | I17: 2245.55 | J17: 2342.05 | K17: 2360.15 | L17: 2390.30 | M17: 2330 | N17: 2281.75 | O17: 2036250 | P17: -1.78%
A18: 8 | B18: Others | C18: ADANIENT | D18: 2021-12-30 | E18: 1723.80 | F18: 1715.07 | G18: 1696.13 | H18: 1668.47 | I18: 1649.53 | J18: 1742.73 | K18: 1761.67 | L18: 1789.33 | M18: 1734 | N18: 1687.4 | O18: 20860500 | P18: -0.11%
A19: 9 | B19: Others | C19: ADANIPORTS | D19: 2021-12-30 | E19: 765.85 | F19: 762.18 | G19: 756.62 | H19: 747.38 | I19: 741.82 | J19: 771.42 | K19: 776.98 | L19: 786.22 | M19: 767.75 | N19: 752.95 | O19: 89577500 | P19: -0.14%
A20: 10 | B20: Pharma | C20: ALKEM | D20: 2021-12-30 | E20: 3475.90 | F20: 3469.18 | G20: 3446.37 | H20: 3416.83 | I20: 3394.02 | J20: 3498.72 | K20: 3521.53 | L20: 3551.07 | M20: 3492 | N20: 3439.65 | O20: 421600 | P20: -2.18%
A21: 11 | B21: Automobile | C21: AMARAJABAT | D21: 2021-12-30 | E21: 641.60 | F21: 639.73 | G21: 636.92 | H21: 632.23 | I21: 629.42 | J21: 644.42 | K21: 647.23 | L21: 651.92 | M21: 642.55 | N21: 635.05 | O21: 9823000 | P21: -0.46%
A22: 12 | B22: Cement | C22: AMBUJACEM | D22: 2021-12-30 | E22: 379.65 | F22: 378.87 | G22: 375.88 | H22: 372.12 | I22: 369.13 | J22: 382.63 | K22: 385.62 | L22: 389.38 | M22: 381.85 | N22: 375.1 | O22: 13573500 | P22: 1.75%
A23: 13 | B23: Pharma | C23: APLLTD | D23: 2021-12-30 | E23: 801.20 | F23: 803.37 | G23: 789.53 | H23: 777.87 | I23: 764.03 | J23: 815.03 | K23: 828.87 | L23: 840.53 | M23: 817.2 | N23: 791.7 | O23: 1617000 | P23: 0.20%
A24: 14 | B24: Others | C24: APOLLOHOSP | D24: 2021-12-30 | E24: 5223.30 | F24: 5190.67 | G24: 5110.98 | H24: 4998.67 | I24: 4918.98 | J24: 5302.98 | K24: 5382.67 | L24: 5494.98 | M24: 5270.35 | N24: 5078.35 | O24: 2371500 | P24: 3.74%
A25: 15 | B25: Automobile | C25: APOLLOTYRE | D25: 2021-12-30 | E25: 217.90 | F25: 217.53 | G25: 215.57 | H25: 213.23 | I25: 211.27 | J25: 219.87 | K25: 221.83 | L25: 224.17 | M25: 219.5 | N25: 215.2 | O25: 11017500 | P25: -0.77%
A26: 16 | B26: Automobile | C26: ASHOKLEY | D26: 2021-12-30 | E26: 126.60 | F26: 126.53 | G26: 125.07 | H26: 123.53 | I26: 122.07 | J26: 128.07 | K26: 129.53 | L26: 131.07 | M26: 128 | N26: 125 | O26: 43740000 | P26: -2.10%
A27: 17 | B27: FMCG | C27: ASIANPAINT | D27: 2021-12-30 | E27: 3303.25 | F27: 3291.02 | G27: 3272.23 | H27: 3241.22 | I27: 3222.43 | J27: 3322.03 | K27: 3340.82 | L27: 3371.83 | M27: 3309.8 | N27: 3260 | O27: 4025400 | P27: -0.56%
A28: 18 | B28: Others | C28: ASTRAL | D28: 2021-12-30 | E28: 2255.50 | F28: 2241.77 | G28: 2214.58 | H28: 2173.67 | I28: 2146.48 | J28: 2282.68 | K28: 2309.87 | L28: 2350.78 | M28: 2268.95 | N28: 2200.85 | O28: 609675 | P28: -1.77%
A29: 19 | B29: Others | C29: ATUL | D29: 2021-12-30 | E29: 8838.20 | F29: 8849.27 | G29: 8793.58 | H29: 8748.97 | I29: 8693.28 | J29: 8893.88 | K29: 8949.57 | L29: 8994.18 | M29: 8904.95 | N29: 8804.65 | O29: 43575 | P29: -2.19%
A30: 20 | B30: Banking | C30: AUBANK | D30: 2021-12-30 | E30: 1171.50 | F30: 1170.33 | G30: 1152.67 | H30: 1133.83 | I30: 1116.17 | J30: 1189.17 | K30: 1206.83 | L30: 1225.67 | M30: 1188 | N30: 1151.5 | O30: 3384000 | P30: -2.01%
A31: 21 | B31: Pharma | C31: AUROPHARMA | D31: 2021-12-30 | E31: 712.25 | F31: 708.30 | G31: 697.95 | H31: 683.65 | I31: 673.30 | J31: 722.60 | K31: 732.95 | L31: 747.25 | M31: 718.65 | N31: 694 | O31: 15562950 | P31: 1.73%
A32: 22 | B32: Banking | C32: AXISBANK | D32: 2021-12-30 | E32: 713.00 | F32: 709.62 | G32: 703.48 | H32: 693.97 | I32: 687.83 | J32: 719.13 | K32: 725.27 | L32: 734.78 | M32: 715.75 | N32: 700.1 | O32: 58891200 | P32: 0.25%
A33: 23 | B33: Automobile | C33: BAJAJ-AUTO | D33: 2021-12-30 | E33: 3298.25 | F33: 3297.05 | G33: 3282.65 | H33: 3267.05 | I33: 3252.65 | J33: 3312.65 | K33: 3327.05 | L33: 3342.65 | M33: 3311.45 | N33: 3281.45 | O33: 3374250 | P33: -0.18%
A34: 24 | B34: Finance | C34: BAJAJFINSV | D34: 2021-12-30 | E34: 17210.40 | F34: 17149.70 | G34: 16971.15 | H34: 16731.90 | I34: 16553.35 | J34: 17388.95 | K34: 17567.50 | L34: 17806.75 | M34: 17328.25 | N34: 16910.45 | O34: 671150 | P34: 3.47%
A35: 25 | B35: Finance | C35: BAJFINANCE | D35: 2021-12-30 | E35: 7100.10 | F35: 7119.00 | G35: 7039.45 | H35: 6978.80 | I35: 6899.25 | J35: 7179.65 | K35: 7259.20 | L35: 7319.85 | M35: 7198.55 | N35: 7058.35 | O35: 4196000 | P35: 5.32%
A36: 26 | B36: Automobile | C36: BALKRISIND | D36: 2021-12-30 | E36: 2256.45 | F36: 2242.53 | G36: 2221.17 | H36: 2185.88 | I36: 2164.52 | J36: 2277.82 | K36: 2299.18 | L36: 2334.47 | M36: 2263.9 | N36: 2207.25 | O36: 1656000 | P36: -1.16%
A37: 27 | B37: Banking | C37: BANDHANBNK | D37: 2021-12-30 | E37: 280.95 | F37: 279.98 | G37: 278.07 | H37: 275.18 | I37: 273.27 | J37: 282.87 | K37: 284.78 | L37: 287.67 | M37: 281.9 | N37: 277.1 | O37: 24075000 | P37: 1.54%
A38: 28 | B38: Banking | C38: BANKBARODA | D38: 2021-12-30 | E38: 92.80 | F38: 92.48 | G38: 91.57 | H38: 90.33 | I38: 89.42 | J38: 93.72 | K38: 94.63 | L38: 95.87 | M38: 93.4 | N38: 91.25 | O38: 148859100 | P38: -1.28%
A39: 29 | B39: FMCG | C39: BATAINDIA | D39: 2021-12-30 | E39: 1965.05 | F39: 1974.60 | G39: 1941.75 | H39: 1918.45 | I39: 1885.60 | J39: 1997.90 | K39: 2030.75 | L39: 2054.05 | M39: 2007.45 | N39: 1951.3 | O39: 1471800 | P39: -5.91%
A40: 30 | B40: Capital_Goods | C40: BEL | D40: 2021-12-30 | E40: 210.30 | F40: 211.03 | G40: 208.57 | H40: 206.83 | I40: 204.37 | J40: 212.77 | K40: 215.23 | L40: 216.97 | M40: 213.5 | N40: 209.3 | O40: 23035600 | P40: 0.35%
A41: 31 | B41: FMCG | C41: BERGEPAINT | D41: 2021-12-30 | E41: 759.20 | F41: 756.87 | G41: 751.93 | H41: 744.67 | I41: 739.73 | J41: 764.13 | K41: 769.07 | L41: 776.33 | M41: 761.8 | N41: 749.6 | O41: 4739900 | P41: -0.81%
A42: 32 | B42: Automobile | C42: BHARATFORG | D42: 2021-12-30 | E42: 737.20 | F42: 734.38 | G42: 727.72 | H42: 718.23 | I42: 711.57 | J42: 743.87 | K42: 750.53 | L42: 760.02 | M42: 741.05 | N42: 724.9 | O42: 8317500 | P42: -1.43%
A43: 33 | B43: Telecom | C43: BHARTIARTL | D43: 2021-12-30 | E43: 694.85 | F43: 698.50 | G43: 687.60 | H43: 680.35 | I43: 669.45 | J43: 705.75 | K43: 716.65 | L43: 723.90 | M43: 709.4 | N43: 691.25 | O43: 75617614 | P43: 4.03%
A44: 34 | B44: Capital_Goods | C44: BHEL | D44: 2021-12-30 | E44: 65.10 | F44: 64.87 | G44: 63.88 | H44: 62.67 | I44: 61.68 | J44: 66.08 | K44: 67.07 | L44: 68.28 | M44: 65.85 | N44: 63.65 | O44: 120592500 | P44: 1.52%
A45: 35 | B45: Pharma | C45: BIOCON | D45: 2021-12-30 | E45: 379.60 | F45: 379.80 | G45: 374.75 | H45: 369.90 | I45: 364.85 | J45: 384.65 | K45: 389.70 | L45: 394.55 | M45: 384.85 | N45: 374.95 | O45: 21226700 | P45: 1.43%
A46: 36 | B46: Automobile | C46: BOSCHLTD | D46: 2021-12-30 | E46: 16836.95 | F46: 16743.70 | G46: 16603.25 | H46: 16369.55 | I46: 16229.10 | J46: 16977.40 | K46: 17117.85 | L46: 17351.55 | M46: 16884.15 | N46: 16510 | O46: 166850 | P46: 1.77%
A47: 37 | B47: Oil_Gas | C47: BPCL | D47: 2021-12-30 | E47: 392.45 | F47: 391.92 | G47: 390.48 | H47: 388.52 | I47: 387.08 | J47: 393.88 | K47: 395.32 | L47: 397.28 | M47: 393.35 | N47: 389.95 | O47: 29188800 | P47: 0.84%
A48: 38 | B48: FMCG | C48: BRITANNIA | D48: 2021-12-30 | E48: 3590.30 | F48: 3583.80 | G48: 3567.85 | H48: 3545.40 | I48: 3529.45 | J48: 3606.25 | K48: 3622.20 | L48: 3644.65 | M48: 3599.75 | N48: 3561.35 | O48: 1401400 | P48: -0.96%
A49: 39 | B49: Technology | C49: BSOFT | D49: 2021-12-30 | E49: 507.20 | F49: 509.03 | G49: 500.42 | H49: 493.63 | I49: 485.02 | J49: 515.82 | K49: 524.43 | L49: 531.22 | M49: 517.65 | N49: 502.25 | O49: 5310500 | P49: 0.57%
A50: 40 | B50: Pharma | C50: CADILAHC | D50: 2021-12-30 | E50: 469.35 | F50: 468.55 | G50: 461.35 | H50: 453.35 | I50: 446.15 | J50: 476.55 | K50: 483.75 | L50: 491.75 | M50: 475.75 | N50: 460.55 | O50: 19072900 | P50: -0.15%
A51: 41 | B51: Banking | C51: CANBK | D51: 2021-12-30 | E51: 216.75 | F51: 215.82 | G51: 213.48 | H51: 210.22 | I51: 207.88 | J51: 219.08 | K51: 221.42 | L51: 224.68 | M51: 218.15 | N51: 212.55 | O51: 53865000 | P51: 0.63%
A52: 42 | B52: Finance | C52: CANFINHOME | D52: 2021-12-30 | E52: 599.60 | F52: 595.85 | G52: 590.35 | H52: 581.10 | I52: 575.60 | J52: 605.10 | K52: 610.60 | L52: 619.85 | M52: 601.35 | N52: 586.6 | O52: 4562025 | P52: -2.60%
A53: 43 | B53: Others | C53: CHAMBLFERT | D53: 2021-12-30 | E53: 401.80 | F53: 399.75 | G53: 395.65 | H53: 389.50 | I53: 385.40 | J53: 405.90 | K53: 410.00 | L53: 416.15 | M53: 403.85 | N53: 393.6 | O53: 2707500 | P53: 0.28%
A54: 44 | B54: Finance | C54: CHOLAFIN | D54: 2021-12-30 | E54: 557.35 | F54: 564.17 | G54: 548.18 | H54: 539.02 | I54: 523.03 | J54: 573.33 | K54: 589.32 | L54: 598.48 | M54: 580.15 | N54: 555 | O54: 8428750 | P54: -0.74%
A55: 45 | B55: Pharma | C55: CIPLA | D55: 2021-12-30 | E55: 898.80 | F55: 900.78 | G55: 891.92 | H55: 885.03 | I55: 876.17 | J55: 907.67 | K55: 916.53 | L55: 923.42 | M55: 909.65 | N55: 893.9 | O55: 12075700 | P55: 3.02%
A56: 46 | B56: Others | C56: COALINDIA | D56: 2021-12-30 | E56: 149.35 | F56: 149.05 | G56: 147.75 | H56: 146.15 | I56: 144.85 | J56: 150.65 | K56: 151.95 | L56: 153.55 | M56: 150.35 | N56: 147.45 | O56: 55540800 | P56: 1.91%
A57: 47 | B57: Technology | C57: COFORGE | D57: 2021-12-30 | E57: 5459.50 | F57: 5437.95 | G57: 5367.35 | H57: 5275.20 | I57: 5204.60 | J57: 5530.10 | K57: 5600.70 | L57: 5692.85 | M57: 5508.55 | N57: 5345.8 | O57: 978300 | P57: -2.23%
A58: 48 | B58: FMCG | C58: COLPAL | D58: 2021-12-30 | E58: 1461.65 | F58: 1453.05 | G58: 1441.10 | H58: 1420.55 | I58: 1408.60 | J58: 1473.60 | K58: 1485.55 | L58: 1506.10 | M58: 1465 | N58: 1432.5 | O58: 3908450 | P58: -1.02%
A59: 49 | B59: Others | C59: CONCOR | D59: 2021-12-30 | E59: 645.00 | F59: 646.07 | G59: 640.03 | H59: 635.07 | I59: 629.03 | J59: 651.03 | K59: 657.07 | L59: 662.03 | M59: 652.1 | N59: 641.1 | O59: 6289656 | P59: 0.63%
A60: 50 | B60: Others | C60: COROMANDEL | D60: 2021-12-30 | E60: 750.65 | F60: 754.28 | G60: 743.57 | H60: 736.48 | I60: 725.77 | J60: 761.37 | K60: 772.08 | L60: 779.17 | M60: 765 | N60: 747.2 | O60: 1481250 | P60: 2.02%
A61: 51 | B61: Capital_Goods | C61: CROMPTON | D61: 2021-12-30 | E61: 417.20 | F61: 414.87 | G61: 403.73 | H61: 390.27 | I61: 379.13 | J61: 428.33 | K61: 439.47 | L61: 452.93 | M61: 426 | N61: 401.4 | O61: 2726900 | P61: 3.98%
A62: 52 | B62: Banking | C62: CUB | D62: 2021-12-30 | E62: 148.50 | F62: 148.22 | G62: 147.38 | H62: 146.27 | I62: 145.43 | J62: 149.33 | K62: 150.17 | L62: 151.28 | M62: 149.05 | N62: 147.1 | O62: 10089700 | P62: 1.50%
A63: 53 | B63: Capital_Goods | C63: CUMMINSIND | D63: 2021-12-30 | E63: 968.70 | F63: 974.32 | G63: 958.28 | H63: 947.87 | I63: 931.83 | J63: 984.73 | K63: 1000.77 | L63: 1011.18 | M63: 990.35 | N63: 963.9 | O63: 1545000 | P63: -3.59%
A64: 54 | B64: FMCG | C64: DABUR | D64: 2021-12-30 | E64: 580.45 | F64: 578.35 | G64: 575.60 | H64: 570.75 | I64: 568.00 | J64: 583.20 | K64: 585.95 | L64: 590.80 | M64: 581.1 | N64: 573.5 | O64: 10935000 | P64: -2.98%
A65: 55 | B65: Cement | C65: DALBHARAT | D65: 2021-12-30 | E65: 1919.15 | F65: 1907.23 | G65: 1885.52 | H65: 1851.88 | I65: 1830.17 | J65: 1940.87 | K65: 1962.58 | L65: 1996.22 | M65: 1928.95 | N65: 1873.6 | O65: 523500 | P65: -6.60%
A66: 56 | B66: Chemical | C66: DEEPAKNTR | D66: 2021-12-30 | E66: 2337.00 | F66: 2334.70 | G66: 2301.30 | H66: 2265.60 | I66: 2232.20 | J66: 2370.40 | K66: 2403.80 | L66: 2439.50 | M66: 2368.1 | N66: 2299 | O66: 2563250 | P66: 0.39%
A67: 57 | B67: Others | C67: DELTACORP | D67: 2021-12-30 | E67: 296.05 | F67: 296.85 | G67: 291.55 | H67: 287.05 | I67: 281.75 | J67: 301.35 | K67: 306.65 | L67: 311.15 | M67: 302.15 | N67: 292.35 | O67: 16261000 | P67: 0.97%
A68: 58 | B68: Pharma | C68: DIVISLAB | D68: 2021-12-30 | E68: 4662.60 | F68: 4619.48 | G68: 4570.97 | H68: 4479.33 | I68: 4430.82 | J68: 4711.12 | K68: 4759.63 | L68: 4851.27 | M68: 4668 | N68: 4527.85 | O68: 2636000 | P68: -0.02%
A69: 59 | B69: Others | C69: DIXON | D69: 2021-12-30 | E69: 5560.60 | F69: 5578.32 | G69: 5473.28 | H69: 5385.97 | I69: 5280.93 | J69: 5665.63 | K69: 5770.67 | L69: 5857.98 | M69: 5683.35 | N69: 5491 | O69: 432750 | P69: 1.47%
A70: 60 | B70: Realty | C70: DLF | D70: 2021-12-30 | E70: 417.55 | F70: 414.80 | G70: 409.75 | H70: 401.95 | I70: 396.90 | J70: 422.60 | K70: 427.65 | L70: 435.45 | M70: 419.85 | N70: 407 | O70: 29498700 | P70: -1.80%
A71: 61 | B71: Pharma | C71: DRREDDY | D71: 2021-12-30 | E71: 4657.65 | F71: 4645.43 | G71: 4615.62 | H71: 4573.58 | I71: 4543.77 | J71: 4687.47 | K71: 4717.28 | L71: 4759.32 | M71: 4675.25 | N71: 4603.4 | O71: 2827250 | P71: -1.24%
A72: 62 | B72: Automobile | C72: EICHERMOT | D72: 2021-12-30 | E72: 2495.15 | F72: 2485.52 | G72: 2470.48 | H72: 2445.82 | I72: 2430.78 | J72: 2510.18 | K72: 2525.22 | L72: 2549.88 | M72: 2500.55 | N72: 2460.85 | O72: 3360700 | P72: -0.76%
A73: 63 | B73: Automobile | C73: ESCORTS | D73: 2021-12-30 | E73: 1860.25 | F73: 1859.58 | G73: 1850.72 | H73: 1841.18 | I73: 1832.32 | J73: 1869.12 | K73: 1877.98 | L73: 1887.52 | M73: 1868.45 | N73: 1850.05 | O73: 6982250 | P73: -0.89%
A74: 64 | B74: Automobile | C74: EXIDEIND | D74: 2021-12-30 | E74: 168.45 | F74: 168.03 | G74: 167.07 | H74: 165.68 | I74: 164.72 | J74: 169.42 | K74: 170.38 | L74: 171.77 | M74: 169 | N74: 166.65 | O74: 25790400 | P74: -0.14%
A75: 65 | B75: Banking | C75: FEDERALBNK | D75: 2021-12-30 | E75: 91.50 | F75: 91.08 | G75: 90.47 | H75: 89.43 | I75: 88.82 | J75: 92.12 | K75: 92.73 | L75: 93.77 | M75: 91.7 | N75: 90.05 | O75: 99220000 | P75: 0.62%
A76: 66 | B76: Technology | C76: FSL | D76: 2021-12-30 | E76: 172.95 | F76: 172.68 | G76: 170.62 | H76: 168.28 | I76: 166.22 | J76: 175.02 | K76: 177.08 | L76: 179.42 | M76: 174.75 | N76: 170.35 | O76: 8660600 | P76: -1.80%
A77: 67 | B77: Oil_Gas | C77: GAIL | D77: 2021-12-30 | E77: 135.00 | F77: 134.13 | G77: 132.82 | H77: 130.63 | I77: 129.32 | J77: 136.32 | K77: 137.63 | L77: 139.82 | M77: 135.45 | N77: 131.95 | O77: 52618600 | P77: 5.36%
A78: 68 | B78: Pharma | C78: GLENMARK | D78: 2021-12-30 | E78: 521.10 | F78: 525.57 | G78: 511.48 | H78: 501.87 | I78: 487.78 | J78: 535.18 | K78: 549.27 | L78: 558.88 | M78: 539.65 | N78: 515.95 | O78: 9968200 | P78: -0.28%
A79: 69 | B79: Infrastructure | C79: GMRINFRA | D79: 2021-12-30 | E79: 43.40 | F79: 42.95 | G79: 42.35 | H79: 41.30 | I79: 40.70 | J79: 44.00 | K79: 44.60 | L79: 45.65 | M79: 43.55 | N79: 41.9 | O79: 143730000 | P79: 1.33%
A80: 70 | B80: FMCG | C80: GODREJCP | D80: 2021-12-30 | E80: 933.10 | F80: 929.78 | G80: 923.12 | H80: 913.13 | I80: 906.47 | J80: 939.77 | K80: 946.43 | L80: 956.42 | M80: 936.45 | N80: 919.8 | O80: 5790500 | P80: -0.78%
A81: 71 | B81: Realty | C81: GODREJPROP | D81: 2021-12-30 | E81: 2088.70 | F81: 2068.18 | G81: 2042.37 | H81: 1996.03 | I81: 1970.22 | J81: 2114.52 | K81: 2140.33 | L81: 2186.67 | M81: 2094 | N81: 2021.85 | O81: 3220750 | P81: -2.07%
A82: 72 | B82: Pharma | C82: GRANULES | D82: 2021-12-30 | E82: 342.40 | F82: 342.92 | G82: 336.93 | H82: 331.47 | I82: 325.48 | J82: 348.38 | K82: 354.37 | L82: 359.83 | M82: 348.9 | N82: 337.45 | O82: 14024400 | P82: -2.44%
A83: 73 | B83: Cement | C83: GRASIM | D83: 2021-12-30 | E83: 1725.30 | F83: 1729.43 | G83: 1710.92 | H83: 1696.53 | I83: 1678.02 | J83: 1743.82 | K83: 1762.33 | L83: 1776.72 | M83: 1747.95 | N83: 1715.05 | O83: 11278875 | P83: 0.19%
A84: 74 | B84: Oil_Gas | C84: GSPL | D84: 2021-12-30 | E84: 320.05 | F84: 320.68 | G84: 314.17 | H84: 308.28 | I84: 301.77 | J84: 326.57 | K84: 333.08 | L84: 338.97 | M84: 327.2 | N84: 314.8 | O84: 1677900 | P84: 16.53%
A85: 75 | B85: Oil_Gas | C85: GUJGASLTD | D85: 2021-12-30 | E85: 668.15 | F85: 665.90 | G85: 661.60 | H85: 655.05 | I85: 650.75 | J85: 672.45 | K85: 676.75 | L85: 683.30 | M85: 670.2 | N85: 659.35 | O85: 2357500 | P85: 0.27%
A86: 76 | B86: Others | C86: HAL | D86: 2021-12-30 | E86: 1293.60 | F86: 1297.47 | G86: 1281.78 | H86: 1269.97 | I86: 1254.28 | J86: 1309.28 | K86: 1324.97 | L86: 1336.78 | M86: 1313.15 | N86: 1285.65 | O86: 2959725 | P86: 1.91%
A87: 77 | B87: Capital_Goods | C87: HAVELLS | D87: 2021-12-30 | E87: 1358.60 | F87: 1359.15 | G87: 1344.45 | H87: 1330.30 | I87: 1315.60 | J87: 1373.30 | K87: 1388.00 | L87: 1402.15 | M87: 1373.85 | N87: 1345 | O87: 4055000 | P87: -0.58%
A88: 78 | B88: Technology | C88: HCLTECH | D88: 2021-12-30 | E88: 1164.75 | F88: 1161.75 | G88: 1153.55 | H88: 1142.35 | I88: 1134.15 | J88: 1172.95 | K88: 1181.15 | L88: 1192.35 | M88: 1169.95 | N88: 1150.55 | O88: 22790600 | P88: 0.37%
A89: 79 | B89: Finance | C89: HDFC | D89: 2021-12-30 | E89: 2757.80 | F89: 2753.22 | G89: 2736.73 | H89: 2715.67 | I89: 2699.18 | J89: 2774.28 | K89: 2790.77 | L89: 2811.83 | M89: 2769.7 | N89: 2732.15 | O89: 12885300 | P89: 0.50%
A90: 80 | B90: Finance | C90: HDFCAMC | D90: 2021-12-30 | E90: 2498.90 | F90: 2501.85 | G90: 2480.30 | H90: 2461.70 | I90: 2440.15 | J90: 2520.45 | K90: 2542.00 | L90: 2560.60 | M90: 2523.4 | N90: 2483.25 | O90: 3424200 | P90: 0.12%
A91: 81 | B91: Banking | C91: HDFCBANK | D91: 2021-12-30 | E91: 1509.80 | F91: 1510.98 | G91: 1502.02 | H91: 1494.23 | I91: 1485.27 | J91: 1518.77 | K91: 1527.73 | L91: 1535.52 | M91: 1519.95 | N91: 1503.2 | O91: 36327500 | P91: 2.64%
A92: 82 | B92: Finance | C92: HDFCLIFE | D92: 2021-12-30 | E92: 671.80 | F92: 673.38 | G92: 665.92 | H92: 660.03 | I92: 652.57 | J92: 679.27 | K92: 686.73 | L92: 692.62 | M92: 680.85 | N92: 667.5 | O92: 21178300 | P92: 2.76%
A93: 83 | B93: Automobile | C93: HEROMOTOCO | D93: 2021-12-30 | E93: 2488.80 | F93: 2484.83 | G93: 2474.97 | H93: 2461.13 | I93: 2451.27 | J93: 2498.67 | K93: 2508.53 | L93: 2522.37 | M93: 2494.7 | N93: 2471 | O93: 5139300 | P93: 0.91%
A94: 84 | B94: Metals | C94: HINDALCO | D94: 2021-12-30 | E94: 462.35 | F94: 461.48 | G94: 457.72 | H94: 453.08 | I94: 449.32 | J94: 466.12 | K94: 469.88 | L94: 474.52 | M94: 465.25 | N94: 456.85 | O94: 28944375 | P94: -4.04%
A95: 85 | B95: Oil_Gas | C95: HINDPETRO | D95: 2021-12-30 | E95: 302.35 | F95: 301.63 | G95: 298.77 | H95: 295.18 | I95: 292.32 | J95: 305.22 | K95: 308.08 | L95: 311.67 | M95: 304.5 | N95: 298.05 | O95: 11618100 | P95: -4.27%
A96: 86 | B96: FMCG | C96: HINDUNILVR | D96: 2021-12-30 | E96: 2322.70 | F96: 2319.63 | G96: 2312.27 | H96: 2301.83 | I96: 2294.47 | J96: 2330.07 | K96: 2337.43 | L96: 2347.87 | M96: 2327 | N96: 2309.2 | O96: 11782200 | P96: -0.75%
A97: 87 | B97: Finance | C97: IBULHSGFIN | D97: 2021-12-30 | E97: 265.00 | F97: 263.68 | G97: 257.87 | H97: 250.73 | I97: 244.92 | J97: 270.82 | K97: 276.63 | L97: 283.77 | M97: 269.5 | N97: 256.55 | O97: 34295300 | P97: -1.80%
A98: 88 | B98: Banking | C98: ICICIBANK | D98: 2021-12-30 | E98: 759.90 | F98: 757.80 | G98: 749.90 | H98: 739.90 | I98: 732.00 | J98: 767.80 | K98: 775.70 | L98: 785.70 | M98: 765.7 | N98: 747.8 | O98: 98605375 | P98: -1.21%
A99: 89 | B99: Finance | C99: ICICIGI | D99: 2021-12-30 | E99: 1437.75 | F99: 1430.08 | G99: 1420.17 | H99: 1402.58 | I99: 1392.67 | J99: 1447.67 | K99: 1457.58 | L99: 1475.17 | M99: 1440 | N99: 1412.5 | O99: 3144575 | P99: -1.23%
A100: 90 | B100: Finance | C100: ICICIPRULI | D100: 2021-12-30 | E100: 577.85 | F100: 574.23 | G100: 569.67 | H100: 561.48 | I100: 556.92 | J100: 582.42 | K100: 586.98 | L100: 595.17 | M100: 578.8 | N100: 566.05 | O100: 5901750 | P100: 1.47%
A101: 91 | B101: Telecom | C101: IDEA | D101: 2021-12-30 | E101: 15.40 | F101: 15.50 | G101: 15.00 | H101: 14.60 | I101: 14.10 | J101: 15.90 | K101: 16.40 | L101: 16.80 | M101: 16 | N101: 15.1 | O101: 802060000 | P101: -1.95%
A102: 92 | B102: Banking | C102: IDFCFIRSTB | D102: 2021-12-30 | E102: 51.10 | F102: 50.93 | G102: 50.37 | H102: 49.63 | I102: 49.07 | J102: 51.67 | K102: 52.23 | L102: 52.97 | M102: 51.5 | N102: 50.2 | O102: 155672000 | P102: 0.99%
A103: 93 | B103: Others | C103: IEX | D103: 2021-12-30 | E103: 280.40 | F103: 281.68 | G103: 276.77 | H103: 273.13 | I103: 268.22 | J103: 285.32 | K103: 290.23 | L103: 293.87 | M103: 286.6 | N103: 278.05 | O103: 33221250 | P103: 13.10%
A104: 94 | B104: Oil_Gas | C104: IGL | D104: 2021-12-30 | E104: 512.15 | F104: 507.47 | G104: 501.48 | H104: 490.82 | I104: 484.83 | J104: 518.13 | K104: 524.12 | L104: 534.78 | M104: 513.45 | N104: 496.8 | O104: 10342750 | P104: 0.17%
A105: 95 | B105: Infrastructure | C105: INDHOTEL | D105: 2021-12-30 | E105: 199.15 | F105: 200.10 | G105: 196.70 | H105: 194.25 | I105: 190.85 | J105: 202.55 | K105: 205.95 | L105: 208.40 | M105: 203.5 | N105: 197.65 | O105: 13767306 | P105: 5.00%
A106: 96 | B106: Cement | C106: INDIACEM | D106: 2021-12-30 | E106: 195.05 | F106: 193.83 | G106: 192.17 | H106: 189.28 | I106: 187.62 | J106: 196.72 | K106: 198.38 | L106: 201.27 | M106: 195.5 | N106: 190.95 | O106: 11727600 | P106: 0.70%
A107: 97 | B107: Others | C107: INDIAMART | D107: 2021-12-30 | E107: 7148.50 | F107: 7163.60 | G107: 7100.40 | H107: 7052.30 | I107: 6989.10 | J107: 7211.70 | K107: 7274.90 | L107: 7323.00 | M107: 7226.8 | N107: 7115.5 | O107: 221700 | P107: 1.34%
A108: 98 | B108: Others | C108: INDIGO | D108: 2021-12-30 | E108: 1984.70 | F108: 1992.97 | G108: 1956.38 | H108: 1928.07 | I108: 1891.48 | J108: 2021.28 | K108: 2057.87 | L108: 2086.18 | M108: 2029.55 | N108: 1964.65 | O108: 3483750 | P108: 0.48%
A109: 99 | B109: Banking | C109: INDUSINDBK | D109: 2021-12-30 | E109: 949.15 | F109: 942.23 | G109: 933.27 | H109: 917.38 | I109: 908.42 | J109: 958.12 | K109: 967.08 | L109: 982.97 | M109: 951.2 | N109: 926.35 | O109: 27311400 | P109: 0.49%
A110: 100 | B110: Telecom | C110: INDUSTOWER | D110: 2021-12-30 | E110: 267.00 | F110: 268.15 | G110: 264.85 | H110: 262.70 | I110: 259.40 | J110: 270.30 | K110: 273.60 | L110: 275.75 | M110: 271.45 | N110: 266 | O110: 17998400 | P110: -3.13%
A111: 101 | B111: Technology | C111: INFY | D111: 2021-12-30 | E111: 1757.60 | F111: 1747.02 | G111: 1729.33 | H111: 1701.07 | I111: 1683.38 | J111: 1775.28 | K111: 1792.97 | L111: 1821.23 | M111: 1764.7 | N111: 1718.75 | O111: 35145600 | P111: 0.01%
A112: 102 | B112: Oil_Gas | C112: IOC | D112: 2021-12-30 | E112: 118.30 | F112: 118.52 | G112: 117.63 | H112: 116.97 | I112: 116.08 | J112: 119.18 | K112: 120.07 | L112: 120.73 | M112: 119.4 | N112: 117.85 | O112: 46644000 | P112: 1.04%
A113: 103 | B113: Pharma | C113: IPCALAB | D113: 2021-12-30 | E113: 2037.30 | F113: 2036.72 | G113: 2027.58 | H113: 2017.87 | I113: 2008.73 | J113: 2046.43 | K113: 2055.57 | L113: 2065.28 | M113: 2045.85 | N113: 2027 | O113: 2822850 | P113: -2.18%
A114: 104 | B114: Others | C114: IRCTC | D114: 2021-12-30 | E114: 858.05 | F114: 855.75 | G114: 847.75 | H114: 837.45 | I114: 829.45 | J114: 866.05 | K114: 874.05 | L114: 884.35 | M114: 863.75 | N114: 845.45 | O114: 10746125 | P114: 2.93%
A115: 105 | B115: FMCG | C115: ITC | D115: 2021-12-30 | E115: 229.20 | F115: 231.67 | G115: 225.83 | H115: 222.47 | I115: 216.63 | J115: 235.03 | K115: 240.87 | L115: 244.23 | M115: 237.5 | N115: 228.3 | O115: 254476800 | P115: 1.44%
A116: 106 | B116: Metals | C116: JINDALSTEL | D116: 2021-12-30 | E116: 400.80 | F116: 398.08 | G116: 393.52 | H116: 386.23 | I116: 381.67 | J116: 405.37 | K116: 409.93 | L116: 417.22 | M116: 402.65 | N116: 390.8 | O116: 35540000 | P116: -3.17%
A117: 107 | B117: Cement | C117: JKCEMENT | D117: 2021-12-30 | E117: 3483.25 | F117: 3473.92 | G117: 3401.33 | H117: 3319.42 | I117: 3246.83 | J117: 3555.83 | K117: 3628.42 | L117: 3710.33 | M117: 3546.5 | N117: 3392 | O117: 181475 | P117: 2.57%
A118: 108 | B118: Metals | C118: JSWSTEEL | D118: 2021-12-30 | E118: 671.85 | F118: 670.98 | G118: 663.37 | H118: 654.88 | I118: 647.27 | J118: 679.47 | K118: 687.08 | L118: 695.57 | M118: 678.6 | N118: 662.5 | O118: 43699500 | P118: -1.79%
A119: 109 | B119: Others | C119: JUBLFOOD | D119: 2021-12-30 | E119: 3768.45 | F119: 3741.53 | G119: 3708.42 | H119: 3648.38 | I119: 3615.27 | J119: 3801.57 | K119: 3834.68 | L119: 3894.72 | M119: 3774.65 | N119: 3681.5 | O119: 1702500 | P119: 0.01%
A120: 110 | B120: Banking | C120: KOTAKBANK | D120: 2021-12-30 | E120: 1850.05 | F120: 1852.22 | G120: 1823.78 | H120: 1797.52 | I120: 1769.08 | J120: 1878.48 | K120: 1906.92 | L120: 1933.18 | M120: 1880.65 | N120: 1825.95 | O120: 21643600 | P120: 24.89%
A121: 111 | B121: Finance | C121: L&TFH | D121: 2021-12-30 | E121: 81.45 | F121: 80.68 | G121: 79.72 | H121: 77.98 | I121: 77.02 | J121: 82.42 | K121: 83.38 | L121: 85.12 | M121: 81.65 | N121: 78.95 | O121: 70749472 | P121: 6.47%
A122: 112 | B122: Others | C122: LALPATHLAB | D122: 2021-12-30 | E122: 3497.10 | F122: 3494.48 | G122: 3457.07 | H122: 3417.03 | I122: 3379.62 | J122: 3534.52 | K122: 3571.93 | L122: 3611.97 | M122: 3531.9 | N122: 3454.45 | O122: 551500 | P122: -3.54%
A123: 113 | B123: Pharma | C123: LAURUSLABS | D123: 2021-12-30 | E123: 516.25 | F123: 518.58 | G123: 510.67 | H123: 505.08 | I123: 497.17 | J123: 524.17 | K123: 532.08 | L123: 537.67 | M123: 526.5 | N123: 513 | O123: 3942000 | P123: 2.72%
A124: 114 | B124: Finance | C124: LICHSGFIN | D124: 2021-12-30 | E124: 388.25 | F124: 386.52 | G124: 383.63 | H124: 379.02 | I124: 376.13 | J124: 391.13 | K124: 394.02 | L124: 398.63 | M124: 389.4 | N124: 381.9 | O124: 14546000 | P124: 2.96%
A125: 115 | B125: Capital_Goods | C125: LT | D125: 2021-12-30 | E125: 1869.65 | F125: 1865.33 | G125: 1855.67 | H125: 1841.68 | I125: 1832.02 | J125: 1879.32 | K125: 1888.98 | L125: 1902.97 | M125: 1875 | N125: 1851.35 | O125: 11655250 | P125: -1.91%
A126: 116 | B126: Technology | C126: LTI | D126: 2021-12-30 | E126: 6703.70 | F126: 6724.12 | G126: 6649.58 | H126: 6595.47 | I126: 6520.93 | J126: 6778.23 | K126: 6852.77 | L126: 6906.88 | M126: 6798.65 | N126: 6670 | O126: 847350 | P126: 4.09%
A127: 117 | B127: Technology | C127: LTTS | D127: 2021-12-30 | E127: 5466.60 | F127: 5478.97 | G127: 5399.98 | H127: 5333.37 | I127: 5254.38 | J127: 5545.58 | K127: 5624.57 | L127: 5691.18 | M127: 5557.95 | N127: 5412.35 | O127: 573800 | P127: 4.94%
A128: 118 | B128: Pharma | C128: LUPIN | D128: 2021-12-30 | E128: 947.95 | F128: 936.30 | G128: 895.25 | H128: 842.55 | I128: 801.50 | J128: 989.00 | K128: 1030.05 | L128: 1082.75 | M128: 977.35 | N128: 883.6 | O128: 9439250 | P128: -0.32%
A129: 119 | B129: Automobile | C129: M&M | D129: 2021-12-30 | E129: 839.95 | F129: 837.62 | G129: 832.03 | H129: 824.12 | I129: 818.53 | J129: 845.53 | K129: 851.12 | L129: 859.03 | M129: 843.2 | N129: 829.7 | O129: 12866700 | P129: 0.86%
A130: 120 | B130: Finance | C130: M&MFIN | D130: 2021-12-30 | E130: 163.15 | F130: 163.48 | G130: 160.97 | H130: 158.78 | I130: 156.27 | J130: 165.67 | K130: 168.18 | L130: 170.37 | M130: 166 | N130: 161.3 | O130: 25972000 | P130: 1.58%
A131: 121 | B131: Finance | C131: MANAPPURAM | D131: 2021-12-30 | E131: 174.50 | F131: 173.92 | G131: 172.08 | H131: 169.67 | I131: 167.83 | J131: 176.33 | K131: 178.17 | L131: 180.58 | M131: 175.75 | N131: 171.5 | O131: 18498000 | P131: -4.55%
A132: 122 | B132: FMCG | C132: MARICO | D132: 2021-12-30 | E132: 517.60 | F132: 518.52 | G132: 514.08 | H132: 510.57 | I132: 506.13 | J132: 522.03 | K132: 526.47 | L132: 529.98 | M132: 522.95 | N132: 515 | O132: 8727000 | P132: 4.13%
A133: 123 | B133: Automobile | C133: MARUTI | D133: 2021-12-30 | E133: 7501.60 | F133: 7513.98 | G133: 7458.87 | H133: 7416.13 | I133: 7361.02 | J133: 7556.72 | K133: 7611.83 | L133: 7654.57 | M133: 7569.1 | N133: 7471.25 | O133: 2924600 | P133: -6.95%
A134: 124 | B134: FMCG | C134: MCDOWELL-N | D134: 2021-12-30 | E134: 930.00 | F134: 927.23 | G134: 913.52 | H134: 897.03 | I134: 883.32 | J134: 943.72 | K134: 957.43 | L134: 973.92 | M134: 940.95 | N134: 910.75 | O134: 16648750 | P134: 0.08%
A135: 125 | B135: Others | C135: MCX | D135: 2021-12-30 | E135: 1798.70 | F135: 1779.18 | G135: 1741.72 | H135: 1684.73 | I135: 1647.27 | J135: 1836.17 | K135: 1873.63 | L135: 1930.62 | M135: 1816.65 | N135: 1722.2 | O135: 1963150 | P135: 1.34%
A136: 126 | B136: Pharma | C136: METROPOLIS | D136: 2021-12-30 | E136: 3273.45 | F136: 3259.88 | G136: 3204.77 | H136: 3136.08 | I136: 3080.97 | J136: 3328.57 | K136: 3383.68 | L136: 3452.37 | M136: 3315 | N136: 3191.2 | O136: 614600 | P136: -2.69%
A137: 127 | B137: Finance | C137: MFSL | D137: 2021-12-30 | E137: 1000.35 | F137: 996.17 | G137: 989.33 | H137: 978.32 | I137: 971.48 | J137: 1007.18 | K137: 1014.02 | L137: 1025.03 | M137: 1003 | N137: 985.15 | O137: 1615250 | P137: -4.35%
A138: 128 | B138: Oil_Gas | C138: MGL | D138: 2021-12-30 | E138: 918.95 | F138: 909.83 | G138: 899.22 | H138: 879.48 | I138: 868.87 | J138: 929.57 | K138: 940.18 | L138: 959.92 | M138: 920.45 | N138: 890.1 | O138: 5197800 | P138: 3.38%
A139: 129 | B139: Technology | C139: MINDTREE | D139: 2021-12-30 | E139: 4644.15 | F139: 4619.87 | G139: 4579.58 | H139: 4515.02 | I139: 4474.73 | J139: 4684.43 | K139: 4724.72 | L139: 4789.28 | M139: 4660.15 | N139: 4555.3 | O139: 2440600 | P139: 0.39%
A140: 130 | B140: Automobile | C140: MOTHERSUMI | D140: 2021-12-30 | E140: 222.75 | F140: 224.08 | G140: 220.57 | H140: 218.38 | I140: 214.87 | J140: 226.27 | K140: 229.78 | L140: 231.97 | M140: 227.6 | N140: 221.9 | O140: 29141000 | P140: 0.54%
A141: 131 | B141: Technology | C141: MPHASIS | D141: 2021-12-30 | E141: 3200.80 | F141: 3190.57 | G141: 3153.13 | H141: 3105.47 | I141: 3068.03 | J141: 3238.23 | K141: 3275.67 | L141: 3323.33 | M141: 3228 | N141: 3142.9 | O141: 1668525 | P141: 0.14%
A142: 132 | B142: Automobile | C142: MRF | D142: 2021-12-30 | E142: 74351.60 | F142: 74177.30 | G142: 73854.60 | H142: 73357.60 | I142: 73034.90 | J142: 74674.30 | K142: 74997.00 | L142: 75494.00 | M142: 74500 | N142: 73680.3 | O142: 71360 | P142: -1.59%
A143: 133 | B143: Finance | C143: MUTHOOTFIN | D143: 2021-12-30 | E143: 1497.75 | F143: 1486.15 | G143: 1469.60 | H143: 1441.45 | I143: 1424.90 | J143: 1514.30 | K143: 1530.85 | L143: 1559.00 | M143: 1502.7 | N143: 1458 | O143: 3619500 | P143: -0.85%
A144: 134 | B144: Others | C144: NAM-INDIA | D144: 2021-12-30 | E144: 361.55 | F144: 362.87 | G144: 358.13 | H144: 354.72 | I144: 349.98 | J144: 366.28 | K144: 371.02 | L144: 374.43 | M144: 367.6 | N144: 359.45 | O144: 3958400 | P144: 2.27%
A145: 135 | B145: Metals | C145: NATIONALUM | D145: 2021-12-30 | E145: 102.40 | F145: 101.72 | G145: 100.18 | H145: 97.97 | I145: 96.43 | J145: 103.93 | K145: 105.47 | L145: 107.68 | M145: 103.25 | N145: 99.5 | O145: 100648500 | P145: 4.00%
A146: 136 | B146: Others | C146: NAUKRI | D146: 2021-12-30 | E146: 5393.75 | F146: 5430.22 | G146: 5309.48 | H146: 5225.22 | I146: 5104.48 | J146: 5514.48 | K146: 5635.22 | L146: 5719.48 | M146: 5550.95 | N146: 5345.95 | O146: 1560875 | P146: 10.80%
A147: 137 | B147: Chemical | C147: NAVINFLUOR | D147: 2021-12-30 | E147: 3971.00 | F147: 3955.35 | G147: 3915.70 | H147: 3860.40 | I147: 3820.75 | J147: 4010.65 | K147: 4050.30 | L147: 4105.60 | M147: 3995 | N147: 3900.05 | O147: 563625 | P147: -2.79%
A148: 138 | B148: FMCG | C148: NESTLEIND | D148: 2021-12-30 | E148: 19238.40 | F148: 19173.20 | G148: 19021.40 | H148: 18804.40 | I148: 18652.60 | J148: 19390.20 | K148: 19542.00 | L148: 19759.00 | M148: 19325 | N148: 18956.2 | O148: 296425 | P148: -2.05%
A149: 139 | B149: Metals | C149: NMDC | D149: 2021-12-30 | E149: 139.40 | F149: 139.50 | G149: 138.05 | H149: 136.70 | I149: 135.25 | J149: 140.85 | K149: 142.30 | L149: 143.65 | M149: 140.95 | N149: 138.15 | O149: 84111800 | P149: -1.78%
A150: 140 | B150: Power | C150: NTPC | D150: 2021-12-30 | E150: 126.50 | F150: 126.43 | G150: 125.27 | H150: 124.03 | I150: 122.87 | J150: 127.67 | K150: 128.83 | L150: 130.07 | M150: 127.6 | N150: 125.2 | O150: 72555300 | P150: 0.17%
A151: 141 | B151: Realty | C151: OBEROIRLTY | D151: 2021-12-30 | E151: 890.00 | F151: 886.00 | G151: 875.00 | H151: 860.00 | I151: 849.00 | J151: 901.00 | K151: 912.00 | L151: 927.00 | M151: 897 | N151: 871 | O151: 3364900 | P151: -1.03%
A152: 142 | B152: Technology | C152: OFSS | D152: 2021-12-30 | E152: 4324.50 | F152: 4311.53 | G152: 4278.97 | H152: 4233.43 | I152: 4200.87 | J152: 4357.07 | K152: 4389.63 | L152: 4435.17 | M152: 4344.1 | N152: 4266 | O152: 637625 | P152: 0.45%
A153: 143 | B153: Oil_Gas | C153: ONGC | D153: 2021-12-30 | E153: 147.15 | F153: 146.37 | G153: 145.13 | H153: 143.12 | I153: 141.88 | J153: 148.38 | K153: 149.62 | L153: 151.63 | M153: 147.6 | N153: 144.35 | O153: 38038000 | P153: -4.36%
A154: 144 | B154: Textile | C154: PAGEIND | D154: 2021-12-30 | E154: 40369.25 | F154: 39696.68 | G154: 38872.57 | H154: 37375.88 | I154: 36551.77 | J154: 41193.37 | K154: 42017.48 | L154: 43514.17 | M154: 40520.8 | N154: 38200 | O154: 88980 | P154: -0.34%
A155: 145 | B155: Pharma | C155: PEL | D155: 2021-12-30 | E155: 2607.10 | F155: 2643.50 | G155: 2525.70 | H155: 2444.30 | I155: 2326.50 | J155: 2724.90 | K155: 2842.70 | L155: 2924.10 | M155: 2761.3 | N155: 2562.1 | O155: 3894550 | P155: 4.29%
A156: 146 | B156: Technology | C156: PERSISTENT | D156: 2021-12-30 | E156: 4426.15 | F156: 4412.95 | G156: 4354.30 | H156: 4282.45 | I156: 4223.80 | J156: 4484.80 | K156: 4543.45 | L156: 4615.30 | M156: 4471.6 | N156: 4341.1 | O156: 409050 | P156: 3.06%
A157: 147 | B157: Oil_Gas | C157: PETRONET | D157: 2021-12-30 | E157: 223.75 | F157: 223.95 | G157: 221.90 | H157: 220.05 | I157: 218.00 | J157: 225.80 | K157: 227.85 | L157: 229.70 | M157: 226 | N157: 222.1 | O157: 19581000 | P157: 3.21%
A158: 148 | B158: Finance | C158: PFC | D158: 2021-12-30 | E158: 124.35 | F158: 123.85 | G158: 123.10 | H158: 121.85 | I158: 121.10 | J158: 125.10 | K158: 125.85 | L158: 127.10 | M158: 124.6 | N158: 122.6 | O158: 46481400 | P158: 0.25%
A159: 149 | B159: Pharma | C159: PFIZER | D159: 2021-12-30 | E159: 5204.90 | F159: 5109.48 | G159: 4974.02 | H159: 4743.13 | I159: 4607.67 | J159: 5340.37 | K159: 5475.83 | L159: 5706.72 | M159: 5244.95 | N159: 4878.6 | O159: 233750 | P159: 8.66%
A160: 150 | B160: FMCG | C160: PIDILITIND | D160: 2021-12-30 | E160: 2398.20 | F160: 2390.45 | G160: 2372.30 | H160: 2346.40 | I160: 2328.25 | J160: 2416.35 | K160: 2434.50 | L160: 2460.40 | M160: 2408.6 | N160: 2364.55 | O160: 2498250 | P160: -4.25%
A161: 151 | B161: Chemical | C161: PIIND | D161: 2021-12-30 | E161: 2962.20 | F161: 2937.50 | G161: 2905.65 | H161: 2849.10 | I161: 2817.25 | J161: 2994.05 | K161: 3025.90 | L161: 3082.45 | M161: 2969.35 | N161: 2880.95 | O161: 1660750 | P161: -0.69%
A162: 152 | B162: Banking | C162: PNB | D162: 2021-12-30 | E162: 40.35 | F162: 40.20 | G162: 39.75 | H162: 39.15 | I162: 38.70 | J162: 40.80 | K162: 41.25 | L162: 41.85 | M162: 40.65 | N162: 39.6 | O162: 314368000 | P162: 0.57%
A163: 153 | B163: Others | C163: POLYCAB | D163: 2021-12-30 | E163: 2560.90 | F163: 2548.65 | G163: 2518.40 | H163: 2475.90 | I163: 2445.65 | J163: 2591.15 | K163: 2621.40 | L163: 2663.90 | M163: 2578.9 | N163: 2506.15 | O163: 719700 | P163: 1.83%
A164: 154 | B164: Power | C164: POWERGRID | D164: 2021-12-30 | E164: 206.25 | F164: 201.53 | G164: 195.92 | H164: 185.58 | I164: 179.97 | J164: 211.87 | K164: 217.48 | L164: 227.82 | M164: 207.15 | N164: 191.2 | O164: 20681374 | P164: 6.22%
A165: 155 | B165: Media | C165: PVR | D165: 2021-12-30 | E165: 1432.65 | F165: 1430.90 | G165: 1411.75 | H165: 1390.85 | I165: 1371.70 | J165: 1451.80 | K165: 1470.95 | L165: 1491.85 | M165: 1450.05 | N165: 1410 | O165: 3121283 | P165: 5.87%
A166: 156 | B166: Cement | C166: RAMCOCEM | D166: 2021-12-30 | E166: 996.70 | F166: 983.62 | G166: 968.73 | H166: 940.77 | I166: 925.88 | J166: 1011.58 | K166: 1026.47 | L166: 1054.43 | M166: 998.5 | N166: 955.65 | O166: 1730600 | P166: 0.34%
A167: 157 | B167: Banking | C167: RBLBANK | D167: 2021-12-30 | E167: 194.55 | F167: 194.05 | G167: 192.10 | H167: 189.65 | I167: 187.70 | J167: 196.50 | K167: 198.45 | L167: 200.90 | M167: 196 | N167: 191.6 | O167: 29562600 | P167: 2.38%
A168: 158 | B168: Power | C168: RECLTD | D168: 2021-12-30 | E168: 137.60 | F168: 137.37 | G168: 136.13 | H168: 134.67 | I168: 133.43 | J168: 138.83 | K168: 140.07 | L168: 141.53 | M168: 138.6 | N168: 135.9 | O168: 46320000 | P168: -0.72%
A169: 159 | B169: Oil_Gas | C169: RELIANCE | D169: 2021-12-30 | E169: 2390.70 | F169: 2396.53 | G169: 2379.17 | H169: 2367.63 | I169: 2350.27 | J169: 2408.07 | K169: 2425.43 | L169: 2436.97 | M169: 2413.9 | N169: 2385 | O169: 38642500 | P169: 1.22%
A170: 160 | B170: Metals | C170: SAIL | D170: 2021-12-30 | E170: 115.10 | F170: 114.48 | G170: 112.32 | H170: 109.53 | I170: 107.37 | J170: 117.27 | K170: 119.43 | L170: 122.22 | M170: 116.65 | N170: 111.7 | O170: 163029500 | P170: -0.01%
A171: 161 | B171: Banking | C171: SBICARD | D171: 2021-12-30 | E171: 906.90 | F171: 909.20 | G171: 898.40 | H171: 889.90 | I171: 879.10 | J171: 917.70 | K171: 928.50 | L171: 937.00 | M171: 920 | N171: 900.7 | O171: 6594500 | P171: 8.12%
A172: 162 | B172: Finance | C172: SBILIFE | D172: 2021-12-30 | E172: 1190.50 | F172: 1190.07 | G172: 1183.73 | H172: 1176.97 | I172: 1170.63 | J172: 1196.83 | K172: 1203.17 | L172: 1209.93 | M172: 1196.4 | N172: 1183.3 | O172: 7533000 | P172: -2.08%
A173: 163 | B173: Banking | C173: SBIN | D173: 2021-12-30 | E173: 489.45 | F173: 487.93 | G173: 484.17 | H173: 478.88 | I173: 475.12 | J173: 493.22 | K173: 496.98 | L173: 502.27 | M173: 491.7 | N173: 482.65 | O173: 104941500 | P173: -0.77%
A174: 164 | B174: Cement | C174: SHREECEM | D174: 2021-12-30 | E174: 26500.60 | F174: 26363.10 | G174: 26170.95 | H174: 25841.30 | I174: 25649.15 | J174: 26692.75 | K174: 26884.90 | L174: 27214.55 | M174: 26555.25 | N174: 26033.45 | O174: 176700 | P174: -0.23%
A175: 165 | B175: Capital_Goods | C175: SIEMENS | D175: 2021-12-30 | E175: 2527.90 | F175: 2521.77 | G175: 2492.08 | H175: 2456.27 | I175: 2426.58 | J175: 2557.58 | K175: 2587.27 | L175: 2623.08 | M175: 2551.45 | N175: 2485.95 | O175: 1911250 | P175: 2.70%
A176: 166 | B176: Textile | C176: SRF | D176: 2021-12-30 | E176: 2163.95 | F176: 2164.65 | G176: 2149.30 | H176: 2134.65 | I176: 2119.30 | J176: 2179.30 | K176: 2194.65 | L176: 2209.30 | M176: 2180 | N176: 2150 | O176: 3569875 | P176: -0.05%
A177: 167 | B177: Finance | C177: SRTRANSFIN | D177: 2021-12-30 | E177: 1391.40 | F177: 1407.85 | G177: 1355.70 | H177: 1320.00 | I177: 1267.85 | J177: 1443.55 | K177: 1495.70 | L177: 1531.40 | M177: 1460 | N177: 1372.15 | O177: 2863200 | P177: -0.72%
A178: 168 | B178: Pharma | C178: STAR | D178: 2021-12-30 | E178: 479.00 | F178: 484.75 | G178: 471.35 | H178: 463.70 | I178: 450.30 | J178: 492.40 | K178: 505.80 | L178: 513.45 | M178: 498.15 | N178: 477.1 | O178: 5968800 | P178: -1.07%
A179: 169 | B179: Pharma | C179: SUNPHARMA | D179: 2021-12-30 | E179: 759.50 | F179: 762.90 | G179: 754.40 | H179: 749.30 | I179: 740.80 | J179: 768.00 | K179: 776.50 | L179: 781.60 | M179: 771.4 | N179: 757.8 | O179: 34910400 | P179: 0.51%
A180: 170 | B180: Media | C180: SUNTV | D180: 2021-12-30 | E180: 549.45 | F180: 546.47 | G180: 540.93 | H180: 532.42 | I180: 526.88 | J180: 554.98 | K180: 560.52 | L180: 569.03 | M180: 552 | N180: 537.95 | O180: 12040500 | P180: 1.11%
A181: 171 | B181: Pharma | C181: SYNGENE | D181: 2021-12-30 | E181: 610.35 | F181: 616.00 | G181: 598.00 | H181: 585.65 | I181: 567.65 | J181: 628.35 | K181: 646.35 | L181: 658.70 | M181: 634 | N181: 603.65 | O181: 1376150 | P181: 2.99%
A182: 172 | B182: Chemical | C182: TATACHEM | D182: 2021-12-30 | E182: 938.05 | F182: 937.27 | G182: 929.68 | H182: 921.32 | I182: 913.73 | J182: 945.63 | K182: 953.22 | L182: 961.58 | M182: 944.85 | N182: 928.9 | O182: 7787000 | P182: -0.78%
A183: 173 | B183: FMCG | C183: TATACONSUM | D183: 2021-12-30 | E183: 742.75 | F183: 745.27 | G183: 733.53 | H183: 724.32 | I183: 712.58 | J183: 754.48 | K183: 766.22 | L183: 775.43 | M183: 757 | N183: 736.05 | O183: 10625175 | P183: 2.46%
A184: 174 | B184: Automobile | C184: TATAMOTORS | D184: 2021-12-30 | E184: 490.40 | F184: 489.17 | G184: 485.53 | H184: 480.67 | I184: 477.03 | J184: 494.03 | K184: 497.67 | L184: 502.53 | M184: 492.8 | N184: 484.3 | O184: 93348900 | P184: -0.45%
A185: 175 | B185: Power | C185: TATAPOWER | D185: 2021-12-30 | E185: 230.10 | F185: 229.07 | G185: 227.33 | H185: 224.57 | I185: 222.83 | J185: 231.83 | K185: 233.57 | L185: 236.33 | M185: 230.8 | N185: 226.3 | O185: 118239750 | P185: 1.41%
A186: 176 | B186: Metals | C186: TATASTEEL | D186: 2021-12-30 | E186: 1171.50 | F186: 1168.73 | G186: 1153.97 | H186: 1136.43 | I186: 1121.67 | J186: 1186.27 | K186: 1201.03 | L186: 1218.57 | M186: 1183.5 | N186: 1151.2 | O186: 50970675 | P186: 0.19%
A187: 177 | B187: Technology | C187: TCS | D187: 2021-12-30 | E187: 3632.85 | F187: 3625.57 | G187: 3600.28 | H187: 3567.72 | I187: 3542.43 | J187: 3658.13 | K187: 3683.42 | L187: 3715.98 | M187: 3650.85 | N187: 3593 | O187: 11261250 | P187: 0.93%
A188: 178 | B188: Technology | C188: TECHM | D188: 2021-12-30 | E188: 1649.65 | F188: 1648.35 | G188: 1631.85 | H188: 1614.05 | I188: 1597.55 | J188: 1666.15 | K188: 1682.65 | L188: 1700.45 | M188: 1664.85 | N188: 1630.55 | O188: 10916400 | P188: 1.40%
A189: 179 | B189: FMCG | C189: TITAN | D189: 2021-12-30 | E189: 2365.75 | F189: 2357.33 | G189: 2334.92 | H189: 2304.08 | I189: 2281.67 | J189: 2388.17 | K189: 2410.58 | L189: 2441.42 | M189: 2379.75 | N189: 2326.5 | O189: 5244375 | P189: 1.64%
A190: 180 | B190: Pharma | C190: TORNTPHARM | D190: 2021-12-30 | E190: 3127.60 | F190: 3125.47 | G190: 3077.13 | H190: 3026.67 | I190: 2978.33 | J190: 3175.93 | K190: 3224.27 | L190: 3274.73 | M190: 3173.8 | N190: 3075 | O190: 753250 | P190: 2.55%
A191: 181 | B191: Power | C191: TORNTPOWER | D191: 2021-12-30 | E191: 583.60 | F191: 581.53 | G191: 576.62 | H191: 569.63 | I191: 564.72 | J191: 588.52 | K191: 593.43 | L191: 600.42 | M191: 586.45 | N191: 574.55 | O191: 3528000 | P191: -2.24%
A192: 182 | B192: Others | C192: TRENT | D192: 2021-12-30 | E192: 1033.90 | F192: 1028.63 | G192: 1012.27 | H192: 990.63 | I192: 974.27 | J192: 1050.27 | K192: 1066.63 | L192: 1088.27 | M192: 1045 | N192: 1007 | O192: 2327975 | P192: -0.09%
A193: 183 | B193: Automobile | C193: TVSMOTOR | D193: 2021-12-30 | E193: 663.45 | F193: 667.70 | G193: 656.50 | H193: 649.55 | I193: 638.35 | J193: 674.65 | K193: 685.85 | L193: 692.80 | M193: 678.9 | N193: 660.75 | O193: 7673400 | P193: 4.42%
A194: 184 | B194: FMCG | C194: UBL | D194: 2021-12-30 | E194: 1588.25 | F194: 1594.72 | G194: 1573.63 | H194: 1559.02 | I194: 1537.93 | J194: 1609.33 | K194: 1630.42 | L194: 1645.03 | M194: 1615.8 | N194: 1580.1 | O194: 1290800 | P194: 4.27%
A195: 185 | B195: Cement | C195: ULTRACEMCO | D195: 2021-12-30 | E195: 7399.35 | F195: 7405.77 | G195: 7337.13 | H195: 7274.92 | I195: 7206.28 | J195: 7467.98 | K195: 7536.62 | L195: 7598.83 | M195: 7474.4 | N195: 7343.55 | O195: 1507300 | P195: -2.99%
A196: 186 | B196: Chemical | C196: UPL | D196: 2021-12-30 | E196: 748.60 | F196: 744.92 | G196: 740.03 | H196: 731.47 | I196: 726.58 | J196: 753.48 | K196: 758.37 | L196: 766.93 | M196: 749.8 | N196: 736.35 | O196: 24120200 | P196: -0.89%
A197: 187 | B197: Metals | C197: VEDL | D197: 2021-12-30 | E197: 347.95 | F197: 346.77 | G197: 343.83 | H197: 339.72 | I197: 336.78 | J197: 350.88 | K197: 353.82 | L197: 357.93 | M197: 349.7 | N197: 342.65 | O197: 51633600 | P197: -2.15%
A198: 188 | B198: Capital_Goods | C198: VOLTAS | D198: 2021-12-30 | E198: 1236.25 | F198: 1233.30 | G198: 1224.95 | H198: 1213.65 | I198: 1205.30 | J198: 1244.60 | K198: 1252.95 | L198: 1264.25 | M198: 1241.65 | N198: 1222 | O198: 2172000 | P198: 0.35%
A199: 189 | B199: Capital_Goods | C199: WHIRLPOOL | D199: 2021-12-30 | E199: 1889.90 | F199: 1899.77 | G199: 1874.53 | H199: 1859.17 | I199: 1833.93 | J199: 1915.13 | K199: 1940.37 | L199: 1955.73 | M199: 1925 | N199: 1884.4 | O199: 1119000 | P199: -1.43%
A200: 190 | B200: Technology | C200: WIPRO | D200: 2021-12-30 | E200: 649.85 | F200: 648.38 | G200: 642.62 | H200: 635.38 | I200: 629.62 | J200: 655.62 | K200: 661.38 | L200: 668.62 | M200: 654.15 | N200: 641.15 | O200: 30216000 | P200: 0.10%
A201: 191 | B201: Media | C201: ZEEL | D201: 2021-12-30 | E201: 372.20 | F201: 366.95 | G201: 359.55 | H201: 346.90 | I201: 339.50 | J201: 379.60 | K201: 387.00 | L201: 399.65 | M201: 374.35 | N201: 354.3 | O201: 87459000 | P201: 2.16%
A210: Pivot Point: This is trigger point for intra day buy/sell based on the price range of the previous day
A211: As per the tool,the trader should take BUY position just above Pivot and keep the stop loss of pivot point and the first target would be Resistance 1(R1)
A212: If R1 is crossed then R2 becomes the next target with stop loss of at R1
A213: Similarly if price goes below pivot point then the trader should sell and keep a stop loss of pivot point and the first target would be S1
A214: If S1 is crossed then S2 becomes the next target with stop loss of at S1
... 10 more rows

Sheet Cash Intra
M5: Back to Main Page
A6: FOR INTRA DAY TRADING | K6: =Main!B10 -> 2021-12-15
A8: Sr.no | C8: CLOSE RATE | D8: Pivot Point | E8: Supports | H8: Resistances
E9: S1 | F9: S2 | G9: S3 | H9: R1 | I9: R2 | J9: R3 | K9: HIGH | L9: LOW | M9: Total Trade Quanity in Lakhs
A10: 1 | B10: Nifty 50 | C10: 17324.9 | D10: 17308.97 | E10: 17241.73 | F10: 17158.57 | G10: 17091.33 | H10: 17392.13 | I10: 17459.37 | J10: 17542.53 | K10: 17376.2 | L10: 17225.8
A11: 2 | B11: Nifty Bank | C11: 36893.95 | D11: 36826.13 | E11: 36613.22 | F11: 36332.48 | G11: 36119.57 | H11: 37106.87 | I11: 37319.78 | J11: 37600.52 | K11: 37039.05 | L11: 36545.4
A12: 3 | B12: Nifty CPSE | C12: 2315.7 | D12: 2305.98 | E12: 2291.57 | F12: 2267.43 | G12: 2253.02 | H12: 2330.12 | I12: 2344.53 | J12: 2368.67 | K12: 2320.4 | L12: 2281.85
A13: 4 | B13: Nifty Infra | C13: 5030.5 | D13: 5025.77 | E13: 5004.53 | F13: 4978.57 | G13: 4957.33 | H13: 5051.73 | I13: 5072.97 | J13: 5098.93 | K13: 5047 | L13: 4999.8
A14: 5 | B14: Nifty IT | C14: 36102.55 | D14: 35997.48 | E14: 35742.92 | F14: 35383.28 | G14: 35128.72 | H14: 36357.12 | I14: 36611.68 | J14: 36971.32 | K14: 36252.05 | L14: 35637.85
A15: 6 | B15: Nifty PSE | C15: 3956.5 | D15: 3943.92 | E15: 3925.18 | F15: 3893.87 | G15: 3875.13 | H15: 3975.23 | I15: 3993.97 | J15: 4025.28 | K15: 3962.65 | L15: 3912.6
A16: 7 | B16: Nifty Midcap 50 | C16: 8593.15 | D16: 8575.43 | E16: 8536.97 | F16: 8480.78 | G16: 8442.32 | H16: 8631.62 | I16: 8670.08 | J16: 8726.27 | K16: 8613.9 | L16: 8519.25
A17: 8 | B17: ACC | C17: 2320.15 | D17: 2306.30 | E17: 2286.30 | F17: 2252.45 | G17: 2232.45 | H17: 2340.15 | I17: 2360.15 | J17: 2394.00 | K17: 2326.3 | L17: 2272.45 | M17: 4.0805
A18: 9 | B18: AUBANK | C18: 1168.9 | D18: 1167.80 | E18: 1151.10 | F18: 1133.30 | G18: 1116.60 | H18: 1185.60 | I18: 1202.30 | J18: 1220.10 | K18: 1184.5 | L18: 1150 | M18: 6.84112
A19: 10 | B19: AARTIIND | C19: 988.45 | D19: 996.13 | E19: 977.47 | F19: 966.48 | G19: 947.82 | H19: 1007.12 | I19: 1025.78 | J19: 1036.77 | K19: 1014.8 | L19: 985.15 | M19: 6.95765
A20: 11 | B20: ADANIENT | C20: 1720.1 | D20: 1710.33 | E20: 1692.77 | F20: 1665.43 | G20: 1647.87 | H20: 1737.67 | I20: 1755.23 | J20: 1782.57 | K20: 1727.9 | L20: 1683 | M20: 11.98653
A21: 12 | B21: ADANIGREEN | C21: 1436.35 | D21: 1426.40 | E21: 1397.95 | F21: 1359.55 | G21: 1331.10 | H21: 1464.80 | I21: 1493.25 | J21: 1531.65 | K21: 1454.85 | L21: 1388 | M21: 9.49575
A22: 13 | B22: ADANIPORTS | C22: 763.7 | D22: 760.07 | E22: 754.13 | F22: 744.57 | G22: 738.63 | H22: 769.63 | I22: 775.57 | J22: 785.13 | K22: 766 | L22: 750.5 | M22: 29.19015
A23: 14 | B23: ATGL | C23: 1899.8 | D23: 1857.02 | E23: 1813.53 | F23: 1727.27 | G23: 1683.78 | H23: 1943.28 | I23: 1986.77 | J23: 2073.03 | K23: 1900.5 | L23: 1770.75 | M23: 1.83215
A24: 15 | B24: ADANITRANS | C24: 1872.7 | D24: 1859.23 | E24: 1833.47 | F24: 1794.23 | G24: 1768.47 | H24: 1898.47 | I24: 1924.23 | J24: 1963.47 | K24: 1885 | L24: 1820 | M24: 4.10771
A25: 16 | B25: ABCAPITAL | C25: 121.9 | D25: 122.57 | E25: 120.23 | F25: 118.57 | G25: 116.23 | H25: 124.23 | I25: 126.57 | J25: 128.23 | K25: 124.9 | L25: 120.9 | M25: 46.21461
A26: 17 | B26: ABFRL | C26: 283.35 | D26: 279.55 | E26: 268.20 | F26: 253.05 | G26: 241.70 | H26: 294.70 | I26: 306.05 | J26: 321.20 | K26: 290.9 | L26: 264.4 | M26: 182.37309
A27: 18 | B27: AJANTPHARM | C27: 2136.55 | D27: 2133.60 | E27: 2108.00 | F27: 2079.45 | G27: 2053.85 | H27: 2162.15 | I27: 2187.75 | J27: 2216.30 | K27: 2159.2 | L27: 2105.05 | M27: 0.19033
A28: 19 | B28: APLLTD | C28: 797.05 | D28: 800.02 | E28: 785.08 | F28: 773.12 | G28: 758.18 | H28: 811.98 | I28: 826.92 | J28: 838.88 | K28: 814.95 | L28: 788.05 | M28: 4.23851
A29: 20 | B29: ALKEM | C29: 3466.45 | D29: 3460.28 | E29: 3435.57 | F29: 3404.68 | G29: 3379.97 | H29: 3491.17 | I29: 3515.88 | J29: 3546.77 | K29: 3485 | L29: 3429.4 | M29: 0.84853
A30: 21 | B30: AMARAJABAT | C30: 638.55 | D30: 636.87 | E30: 633.68 | F30: 628.82 | G30: 625.63 | H30: 641.73 | I30: 644.92 | J30: 649.78 | K30: 640.05 | L30: 632 | M30: 4.3744
A31: 22 | B31: AMBUJACEM | C31: 378.55 | D31: 377.80 | E31: 374.75 | F31: 370.95 | G31: 367.90 | H31: 381.60 | I31: 384.65 | J31: 388.45 | K31: 380.85 | L31: 374 | M31: 17.89446
A32: 23 | B32: APOLLOHOSP | C32: 5212 | D32: 5175.68 | E32: 5101.37 | F32: 4990.73 | G32: 4916.42 | H32: 5286.32 | I32: 5360.63 | J32: 5471.27 | K32: 5250 | L32: 5065.05 | M32: 10.07056
A33: 24 | B33: APOLLOTYRE | C33: 216.85 | D33: 216.63 | E33: 214.57 | F33: 212.28 | G33: 210.22 | H33: 218.92 | I33: 220.98 | J33: 223.27 | K33: 218.7 | L33: 214.35 | M33: 19.21045
A34: 25 | B34: ASHOKLEY | C34: 125.95 | D34: 126.15 | E34: 124.60 | F34: 123.25 | G34: 121.70 | H34: 127.50 | I34: 129.05 | J34: 130.40 | K34: 127.7 | L34: 124.8 | M34: 94.95087
A35: 26 | B35: ASIANPAINT | C35: 3297.5 | D35: 3283.83 | E35: 3262.67 | F35: 3227.83 | G35: 3206.67 | H35: 3318.67 | I35: 3339.83 | J35: 3374.67 | K35: 3305 | L35: 3249 | M35: 8.63179
A36: 27 | B36: ASTRAL | C36: 2248.3 | D36: 2234.80 | E36: 2206.45 | F36: 2164.60 | G36: 2136.25 | H36: 2276.65 | I36: 2305.00 | J36: 2346.85 | K36: 2263.15 | L36: 2192.95 | M36: 2.41135
A37: 28 | B37: AUROPHARMA | C37: 708.85 | D37: 705.37 | E37: 695.73 | F37: 682.62 | G37: 672.98 | H37: 718.48 | I37: 728.12 | J37: 741.23 | K37: 715 | L37: 692.25 | M37: 26.63847
A38: 29 | B38: DMART | C38: 4814.4 | D38: 4789.50 | E38: 4739.00 | F38: 4663.60 | G38: 4613.10 | H38: 4864.90 | I38: 4915.40 | J38: 4990.80 | K38: 4840 | L38: 4714.1 | M38: 3.52396
A39: 30 | B39: AXISBANK | C39: 710.9 | D39: 707.50 | E39: 701.00 | F39: 691.10 | G39: 684.60 | H39: 717.40 | I39: 723.90 | J39: 733.80 | K39: 714 | L39: 697.6 | M39: 86.12512
A40: 31 | B40: BAJAJ-AUTO | C40: 3291.65 | D40: 3288.22 | E40: 3271.43 | F40: 3251.22 | G40: 3234.43 | H40: 3308.43 | I40: 3325.22 | J40: 3345.43 | K40: 3305 | L40: 3268 | M40: 1.81626
A41: 32 | B41: BAJFINANCE | C41: 7065.9 | D41: 7093.63 | E41: 7007.27 | F41: 6948.63 | G41: 6862.27 | H41: 7152.27 | I41: 7238.63 | J41: 7297.27 | K41: 7180 | L41: 7035 | M41: 12.76481
A42: 33 | B42: BAJAJFINSV | C42: 17123.5 | D42: 17082.83 | E42: 16905.67 | F42: 16687.83 | G42: 16510.67 | H42: 17300.67 | I42: 17477.83 | J42: 17695.67 | K42: 17260 | L42: 16865 | M42: 2.42026
A43: 34 | B43: BAJAJHLDNG | C43: 5487.9 | D43: 5495.75 | E43: 5433.80 | F43: 5379.70 | G43: 5317.75 | H43: 5549.85 | I43: 5611.80 | J43: 5665.90 | K43: 5557.7 | L43: 5441.65 | M43: 0.23287
A44: 35 | B44: BALKRISIND | C44: 2250.95 | D44: 2234.03 | E44: 2213.27 | F44: 2175.58 | G44: 2154.82 | H44: 2271.72 | I44: 2292.48 | J44: 2330.17 | K44: 2254.8 | L44: 2196.35 | M44: 1.64727
A45: 36 | B45: BANDHANBNK | C45: 280.35 | D45: 279.33 | E45: 277.67 | F45: 274.98 | G45: 273.32 | H45: 282.02 | I45: 283.68 | J45: 286.37 | K45: 281 | L45: 276.65 | M45: 39.63694
A46: 37 | B46: BANKBARODA | C46: 92.35 | D46: 92.13 | E46: 91.22 | F46: 90.08 | G46: 89.17 | H46: 93.27 | I46: 94.18 | J46: 95.32 | K46: 93.05 | L46: 91 | M46: 163.68468
A47: 38 | B47: BANKINDIA | C47: 56.15 | D47: 56.40 | E47: 55.75 | F47: 55.35 | G47: 54.70 | H47: 56.80 | I47: 57.45 | J47: 57.85 | K47: 57.05 | L47: 56 | M47: 50.48826
A48: 39 | B48: BATAINDIA | C48: 1957.5 | D48: 1968.72 | E48: 1931.48 | F48: 1905.47 | G48: 1868.23 | H48: 1994.73 | I48: 2031.97 | J48: 2057.98 | K48: 2005.95 | L48: 1942.7 | M48: 5.77344
A49: 40 | B49: BERGEPAINT | C49: 756.85 | D49: 754.62 | E49: 749.83 | F49: 742.82 | G49: 738.03 | H49: 761.63 | I49: 766.42 | J49: 773.43 | K49: 759.4 | L49: 747.6 | M49: 4.15526
A50: 41 | B50: BEL | C50: 209.8 | D50: 210.45 | E50: 208.00 | F50: 206.20 | G50: 203.75 | H50: 212.25 | I50: 214.70 | J50: 216.50 | K50: 212.9 | L50: 208.65 | M50: 64.79571
A51: 42 | B51: BHARATFORG | C51: 735.9 | D51: 733.02 | E51: 726.08 | F51: 716.27 | G51: 709.33 | H51: 742.83 | I51: 749.77 | J51: 759.58 | K51: 739.95 | L51: 723.2 | M51: 5.86248
A52: 43 | B52: BHEL | C52: 64.8 | D52: 64.58 | E52: 63.62 | F52: 62.43 | G52: 61.47 | H52: 65.77 | I52: 66.73 | J52: 67.92 | K52: 65.55 | L52: 63.4 | M52: 274.98312
A53: 44 | B53: BPCL | C53: 391.65 | D53: 391.23 | E53: 389.52 | F53: 387.38 | G53: 385.67 | H53: 393.37 | I53: 395.08 | J53: 397.22 | K53: 392.95 | L53: 389.1 | M53: 32.91399
A54: 45 | B54: BHARTIARTL | C54: 691.6 | D54: 695.43 | E54: 684.57 | F54: 677.53 | G54: 666.67 | H54: 702.47 | I54: 713.33 | J54: 720.37 | K54: 706.3 | L54: 688.4 | M54: 92.75631
A55: 46 | B55: BIOCON | C55: 378.15 | D55: 378.58 | E55: 373.77 | F55: 369.38 | G55: 364.57 | H55: 382.97 | I55: 387.78 | J55: 392.17 | K55: 383.4 | L55: 374.2 | M55: 24.19263
A56: 47 | B56: BOSCHLTD | C56: 16871.8 | D56: 16781.87 | E56: 16650.18 | F56: 16428.57 | G56: 16296.88 | H56: 17003.48 | I56: 17135.17 | J56: 17356.78 | K56: 16913.55 | L56: 16560.25 | M56: 0.1419
A57: 48 | B57: BRITANNIA | C57: 3579.65 | D57: 3573.38 | E57: 3549.32 | F57: 3518.98 | G57: 3494.92 | H57: 3603.72 | I57: 3627.78 | J57: 3658.12 | K57: 3597.45 | L57: 3543.05 | M57: 2.97867
A58: 49 | B58: CADILAHC | C58: 467.6 | D58: 466.97 | E58: 459.53 | F58: 451.47 | G58: 444.03 | H58: 475.03 | I58: 482.47 | J58: 490.53 | K58: 474.4 | L58: 458.9 | M58: 34.46381
A59: 50 | B59: CANBK | C59: 215.6 | D59: 215.02 | E59: 212.73 | F59: 209.87 | G59: 207.58 | H59: 217.88 | I59: 220.17 | J59: 223.03 | K59: 217.3 | L59: 212.15 | M59: 82.91075
A60: 51 | B60: CASTROLIND | C60: 124.65 | D60: 125.20 | E60: 123.85 | F60: 123.05 | G60: 121.70 | H60: 126.00 | I60: 127.35 | J60: 128.15 | K60: 126.55 | L60: 124.4 | M60: 7.71278
A61: 52 | B61: CHOLAFIN | C61: 554.95 | D61: 562.25 | E61: 545.35 | F61: 535.75 | G61: 518.85 | H61: 571.85 | I61: 588.75 | J61: 598.35 | K61: 579.15 | L61: 552.65 | M61: 40.27319
A62: 53 | B62: CIPLA | C62: 895.6 | D62: 898.15 | E62: 888.45 | F62: 881.30 | G62: 871.60 | H62: 905.30 | I62: 915.00 | J62: 922.15 | K62: 907.85 | L62: 891 | M62: 26.51452
A63: 54 | B63: CUB | C63: 147.6 | D63: 147.67 | E63: 146.53 | F63: 145.47 | G63: 144.33 | H63: 148.73 | I63: 149.87 | J63: 150.93 | K63: 148.8 | L63: 146.6 | M63: 9.22594
A64: 55 | B64: COALINDIA | C64: 148.9 | D64: 148.47 | E64: 147.18 | F64: 145.47 | G64: 144.18 | H64: 150.18 | I64: 151.47 | J64: 153.18 | K64: 149.75 | L64: 146.75 | M64: 84.74759
A65: 56 | B65: COFORGE | C65: 5439.45 | D65: 5424.83 | E65: 5353.42 | F65: 5267.38 | G65: 5195.97 | H65: 5510.87 | I65: 5582.28 | J65: 5668.32 | K65: 5496.25 | L65: 5338.8 | M65: 2.33815
A66: 57 | B66: COLPAL | C66: 1458.95 | D66: 1448.98 | E66: 1435.07 | F66: 1411.18 | G66: 1397.27 | H66: 1472.87 | I66: 1486.78 | J66: 1510.67 | K66: 1462.9 | L66: 1425.1 | M66: 6.34424
A67: 58 | B67: CONCOR | C67: 641.65 | D67: 643.10 | E67: 636.20 | F67: 630.75 | G67: 623.85 | H67: 648.55 | I67: 655.45 | J67: 660.90 | K67: 650 | L67: 637.65 | M67: 5.74501
A68: 59 | B68: COROMANDEL | C68: 748.05 | D68: 751.90 | E68: 740.15 | F68: 732.25 | G68: 720.50 | H68: 759.80 | I68: 771.55 | J68: 779.45 | K68: 763.65 | L68: 744 | M68: 2.70254
A69: 60 | B69: CROMPTON | C69: 415.85 | D69: 418.65 | E69: 410.30 | F69: 404.75 | G69: 396.40 | H69: 424.20 | I69: 432.55 | J69: 438.10 | K69: 427 | L69: 413.1 | M69: 27.88053
A70: 61 | B70: CUMMINSIND | C70: 963.8 | D70: 970.58 | E70: 952.42 | F70: 941.03 | G70: 922.87 | H70: 981.97 | I70: 1000.13 | J70: 1011.52 | K70: 988.75 | L70: 959.2 | M70: 6.52333
A71: 62 | B71: DLF | C71: 417 | D71: 414.32 | E71: 408.08 | F71: 399.17 | G71: 392.93 | H71: 423.23 | I71: 429.47 | J71: 438.38 | K71: 420.55 | L71: 405.4 | M71: 50.58088
A72: 63 | B72: DABUR | C72: 579.4 | D72: 577.65 | E72: 574.90 | F72: 570.40 | G72: 567.65 | H72: 582.15 | I72: 584.90 | J72: 589.40 | K72: 580.4 | L72: 573.15 | M72: 11.67762
A73: 64 | B73: DALBHARAT | C73: 1916.9 | D73: 1905.38 | E73: 1883.52 | F73: 1850.13 | G73: 1828.27 | H73: 1938.77 | I73: 1960.63 | J73: 1994.02 | K73: 1927.25 | L73: 1872 | M73: 1.20147
A74: 65 | B74: DEEPAKNTR | C74: 2324.95 | D74: 2325.15 | E74: 2291.80 | F74: 2258.65 | G74: 2225.30 | H74: 2358.30 | I74: 2391.65 | J74: 2424.80 | K74: 2358.5 | L74: 2292 | M74: 4.266
A75: 66 | B75: DHANI | C75: 165.65 | D75: 166.37 | E75: 164.43 | F75: 163.22 | G75: 161.28 | H75: 167.58 | I75: 169.52 | J75: 170.73 | K75: 168.3 | L75: 165.15 | M75: 11.03724
A76: 67 | B76: DIVISLAB | C76: 4654.4 | D76: 4605.80 | E76: 4549.60 | F76: 4444.80 | G76: 4388.60 | H76: 4710.60 | I76: 4766.80 | J76: 4871.60 | K76: 4662 | L76: 4501 | M76: 8.83708
A77: 68 | B77: DIXON | C77: 5529.35 | D77: 5564.72 | E77: 5449.63 | F77: 5369.92 | G77: 5254.83 | H77: 5644.43 | I77: 5759.52 | J77: 5839.23 | K77: 5679.8 | L77: 5485 | M77: 3.26
A78: 69 | B78: LALPATHLAB | C78: 3477.65 | D78: 3472.50 | E78: 3430.15 | F78: 3382.65 | G78: 3340.30 | H78: 3520.00 | I78: 3562.35 | J78: 3609.85 | K78: 3514.85 | L78: 3425 | M78: 1.88294
A79: 70 | B79: DRREDDY | C79: 4646.55 | D79: 4627.88 | E79: 4595.77 | F79: 4544.98 | G79: 4512.87 | H79: 4678.67 | I79: 4710.78 | J79: 4761.57 | K79: 4660 | L79: 4577.1 | M79: 2.39183
A80: 71 | B80: EICHERMOT | C80: 2487.45 | D80: 2476.93 | E80: 2461.52 | F80: 2435.58 | G80: 2420.17 | H80: 2502.87 | I80: 2518.28 | J80: 2544.22 | K80: 2492.35 | L80: 2451 | M80: 3.95362
A81: 72 | B81: EMAMILTD | C81: 527.55 | D81: 528.08 | E81: 521.72 | F81: 515.88 | G81: 509.52 | H81: 533.92 | I81: 540.28 | J81: 546.12 | K81: 534.45 | L81: 522.25 | M81: 1.61809
A82: 73 | B82: ENDURANCE | C82: 1715.05 | D82: 1727.55 | E82: 1692.55 | F82: 1670.05 | G82: 1635.05 | H82: 1750.05 | I82: 1785.05 | J82: 1807.55 | K82: 1762.55 | L82: 1705.05 | M82: 0.3317
A83: 74 | B83: ESCORTS | C83: 1851.35 | D83: 1853.43 | E83: 1842.92 | F83: 1834.48 | G83: 1823.97 | H83: 1861.87 | I83: 1872.38 | J83: 1880.82 | K83: 1863.95 | L83: 1845 | M83: 4.16745
A84: 75 | B84: EXIDEIND | C84: 167.65 | D84: 167.38 | E84: 166.12 | F84: 164.58 | G84: 163.32 | H84: 168.92 | I84: 170.18 | J84: 171.72 | K84: 168.65 | L84: 165.85 | M84: 19.11493
A85: 76 | B85: FEDERALBNK | C85: 91 | D85: 90.80 | E85: 90.10 | F85: 89.20 | G85: 88.50 | H85: 91.70 | I85: 92.40 | J85: 93.30 | K85: 91.5 | L85: 89.9 | M85: 77.86084
A86: 77 | B86: FORTIS | C86: 282.85 | D86: 281.28 | E86: 278.07 | F86: 273.28 | G86: 270.07 | H86: 286.07 | I86: 289.28 | J86: 294.07 | K86: 284.5 | L86: 276.5 | M86: 14.13799
A87: 78 | B87: GAIL | C87: 135.3 | D87: 134.43 | E87: 132.87 | F87: 130.43 | G87: 128.87 | H87: 136.87 | I87: 138.43 | J87: 140.87 | K87: 136 | L87: 132 | M87: 130.18242
A88: 79 | B88: GMRINFRA | C88: 43.15 | D88: 42.78 | E88: 42.12 | F88: 41.08 | G88: 40.42 | H88: 43.82 | I88: 44.48 | J88: 45.52 | K88: 43.45 | L88: 41.75 | M88: 176.81931
A89: 80 | B89: GLAND | C89: 3634.7 | D89: 3614.18 | E89: 3580.57 | F89: 3526.43 | G89: 3492.82 | H89: 3668.32 | I89: 3701.93 | J89: 3756.07 | K89: 3647.8 | L89: 3560.05 | M89: 2.04683
A90: 81 | B90: GLENMARK | C90: 518.3 | D90: 522.90 | E90: 508.80 | F90: 499.30 | G90: 485.20 | H90: 532.40 | I90: 546.50 | J90: 556.00 | K90: 537 | L90: 513.4 | M90: 16.61556
A91: 82 | B91: GODREJCP | C91: 930.7 | D91: 926.23 | E91: 919.67 | F91: 908.63 | G91: 902.07 | H91: 937.27 | I91: 943.83 | J91: 954.87 | K91: 932.8 | L91: 915.2 | M91: 5.66133
A92: 83 | B92: GODREJIND | C92: 583.85 | D92: 583.38 | E92: 578.17 | F92: 572.48 | G92: 567.27 | H92: 589.07 | I92: 594.28 | J92: 599.97 | K92: 588.6 | L92: 577.7 | M92: 0.81076
A93: 84 | B93: GODREJPROP | C93: 2082.5 | D93: 2060.83 | E93: 2033.67 | F93: 1984.83 | G93: 1957.67 | H93: 2109.67 | I93: 2136.83 | J93: 2185.67 | K93: 2088 | L93: 2012 | M93: 9.96662
A94: 85 | B94: GRASIM | C94: 1722 | D94: 1725.78 | E94: 1706.67 | F94: 1691.33 | G94: 1672.22 | H94: 1741.12 | I94: 1760.23 | J94: 1775.57 | K94: 1744.9 | L94: 1710.45 | M94: 6.12932
A95: 86 | B95: GUJGASLTD | C95: 664.9 | D95: 663.33 | E95: 658.37 | F95: 651.83 | G95: 646.87 | H95: 669.87 | I95: 674.83 | J95: 681.37 | K95: 668.3 | L95: 656.8 | M95: 5.01164
A96: 87 | B96: GSPL | C96: 318.6 | D96: 319.52 | E96: 313.03 | F96: 307.47 | G96: 300.98 | H96: 325.08 | I96: 331.57 | J96: 337.13 | K96: 326 | L96: 313.95 | M96: 20.58622
A97: 88 | B97: HCLTECH | C97: 1162.35 | D97: 1157.92 | E97: 1149.93 | F97: 1137.52 | G97: 1129.53 | H97: 1170.33 | I97: 1178.32 | J97: 1190.73 | K97: 1165.9 | L97: 1145.5 | M97: 19.72685
A98: 89 | B98: HDFCAMC | C98: 2487.2 | D98: 2492.20 | E98: 2471.00 | F98: 2454.80 | G98: 2433.60 | H98: 2508.40 | I98: 2529.60 | J98: 2545.80 | K98: 2513.4 | L98: 2476 | M98: 2.42029
A99: 90 | B99: HDFCBANK | C99: 1502.45 | D99: 1505.17 | E99: 1494.33 | F99: 1486.22 | G99: 1475.38 | H99: 1513.28 | I99: 1524.12 | J99: 1532.23 | K99: 1516 | L99: 1497.05 | M99: 45.9555
A100: 91 | B100: HDFCLIFE | C100: 669.5 | D100: 671.05 | E100: 664.10 | F100: 658.70 | G100: 651.75 | H100: 676.45 | I100: 683.40 | J100: 688.80 | K100: 678 | L100: 665.65 | M100: 20.93071
A101: 92 | B101: HAVELLS | C101: 1352.45 | D101: 1355.13 | E101: 1337.32 | F101: 1322.18 | G101: 1304.37 | H101: 1370.27 | I101: 1388.08 | J101: 1403.22 | K101: 1372.95 | L101: 1340 | M101: 13.22715
A102: 93 | B102: HEROMOTOCO | C102: 2483.8 | D102: 2477.27 | E102: 2466.53 | F102: 2449.27 | G102: 2438.53 | H102: 2494.53 | I102: 2505.27 | J102: 2522.53 | K102: 2488 | L102: 2460 | M102: 3.65318
A103: 94 | B103: HINDALCO | C103: 461.7 | D103: 460.27 | E103: 456.13 | F103: 450.57 | G103: 446.43 | H103: 465.83 | I103: 469.97 | J103: 475.53 | K103: 464.4 | L103: 454.7 | M103: 80.27659
A104: 95 | B104: HAL | C104: 1287.6 | D104: 1292.20 | E104: 1276.40 | F104: 1265.20 | G104: 1249.40 | H104: 1303.40 | I104: 1319.20 | J104: 1330.40 | K104: 1308 | L104: 1281 | M104: 3.8518
A105: 96 | B105: HINDCOPPER | C105: 126.85 | D105: 127.62 | E105: 125.23 | F105: 123.62 | G105: 121.23 | H105: 129.23 | I105: 131.62 | J105: 133.23 | K105: 130 | L105: 126 | M105: 28.39843
A106: 97 | B106: HINDPETRO | C106: 301.25 | D106: 300.95 | E106: 297.95 | F106: 294.65 | G106: 291.65 | H106: 304.25 | I106: 307.25 | J106: 310.55 | K106: 303.95 | L106: 297.65 | M106: 34.56986
A107: 98 | B107: HINDUNILVR | C107: 2318.3 | D107: 2315.75 | E107: 2306.55 | F107: 2294.80 | G107: 2285.60 | H107: 2327.50 | I107: 2336.70 | J107: 2348.45 | K107: 2324.95 | L107: 2304 | M107: 12.19031
A108: 99 | B108: HINDZINC | C108: 338.6 | D108: 341.27 | E108: 330.48 | F108: 322.37 | G108: 311.58 | H108: 349.38 | I108: 360.17 | J108: 368.28 | K108: 352.05 | L108: 333.15 | M108: 27.17685
A109: 100 | B109: HDFC | C109: 2751.95 | D109: 2745.52 | E109: 2727.03 | F109: 2702.12 | G109: 2683.63 | H109: 2770.43 | I109: 2788.92 | J109: 2813.83 | K109: 2764 | L109: 2720.6 | M109: 20.39433
A110: 101 | B110: ICICIBANK | C110: 758.65 | D110: 756.43 | E110: 748.52 | F110: 738.38 | G110: 730.47 | H110: 766.57 | I110: 774.48 | J110: 784.62 | K110: 764.35 | L110: 746.3 | M110: 174.88089
A111: 102 | B111: ICICIGI | C111: 1434.95 | D111: 1426.93 | E111: 1414.92 | F111: 1394.88 | G111: 1382.87 | H111: 1446.97 | I111: 1458.98 | J111: 1479.02 | K111: 1438.95 | L111: 1406.9 | M111: 4.9663
A112: 103 | B112: ICICIPRULI | C112: 576.5 | D112: 572.45 | E112: 567.15 | F112: 557.80 | G112: 552.50 | H112: 581.80 | I112: 587.10 | J112: 596.45 | K112: 577.75 | L112: 563.1 | M112: 19.16743
A113: 104 | B113: ISEC | C113: 785.55 | D113: 780.92 | E113: 769.93 | F113: 754.32 | G113: 743.33 | H113: 796.53 | I113: 807.52 | J113: 823.13 | K113: 791.9 | L113: 765.3 | M113: 3.74983
A114: 105 | B114: IDFCFIRSTB | C114: 50.8 | D114: 50.68 | E114: 50.12 | F114: 49.43 | G114: 48.87 | H114: 51.37 | I114: 51.93 | J114: 52.62 | K114: 51.25 | L114: 50 | M114: 178.18067
A115: 106 | B115: ITC | C115: 228.6 | D115: 231.08 | E115: 225.07 | F115: 221.53 | G115: 215.52 | H115: 234.62 | I115: 240.63 | J115: 244.17 | K115: 237.1 | L115: 227.55 | M115: 375.08445
A116: 107 | B116: INDIAMART | C116: 7118.15 | D116: 7139.72 | E116: 7079.43 | F116: 7040.72 | G116: 6980.43 | H116: 7178.43 | I116: 7238.72 | J116: 7277.43 | K116: 7200 | L116: 7101 | M116: 0.33989
A117: 108 | B117: INDIANB | C117: 154.5 | D117: 155.38 | E117: 152.62 | F117: 150.73 | G117: 147.97 | H117: 157.27 | I117: 160.03 | J117: 161.92 | K117: 158.15 | L117: 153.5 | M117: 25.13614
A118: 109 | B118: INDHOTEL | C118: 198.15 | D118: 199.33 | E118: 196.07 | F118: 193.98 | G118: 190.72 | H118: 201.42 | I118: 204.68 | J118: 206.77 | K118: 202.6 | L118: 197.25 | M118: 48.32344
A119: 110 | B119: IOC | C119: 117.9 | D119: 118.08 | E119: 116.97 | F119: 116.03 | G119: 114.92 | H119: 119.02 | I119: 120.13 | J119: 121.07 | K119: 119.2 | L119: 117.15 | M119: 116.14836
A120: 111 | B120: IRCTC | C120: 855.05 | D120: 852.68 | E120: 845.37 | F120: 835.68 | G120: 828.37 | H120: 862.37 | I120: 869.68 | J120: 879.37 | K120: 860 | L120: 843 | M120: 33.74432
A121: 112 | B121: IRFC | C121: 23.45 | D121: 23.50 | E121: 23.35 | F121: 23.25 | G121: 23.10 | H121: 23.60 | I121: 23.75 | J121: 23.85 | K121: 23.65 | L121: 23.4 | M121: 43.50221
A122: 113 | B122: IGL | C122: 510.85 | D122: 506.50 | E122: 500.50 | F122: 490.15 | G122: 484.15 | H122: 516.85 | I122: 522.85 | J122: 533.20 | K122: 512.5 | L122: 496.15 | M122: 18.0511
A123: 114 | B123: INDUSTOWER | C123: 266.15 | D123: 267.52 | E123: 264.03 | F123: 261.92 | G123: 258.43 | H123: 269.63 | I123: 273.12 | J123: 275.23 | K123: 271 | L123: 265.4 | M123: 29.11351
A124: 115 | B124: INDUSINDBK | C124: 946.05 | D124: 939.80 | E124: 930.45 | F124: 914.85 | G124: 905.50 | H124: 955.40 | I124: 964.75 | J124: 980.35 | K124: 949.15 | L124: 924.2 | M124: 27.25729
A125: 116 | B125: NAUKRI | C125: 5366.05 | D125: 5395.87 | E125: 5286.73 | F125: 5207.42 | G125: 5098.28 | H125: 5475.18 | I125: 5584.32 | J125: 5663.63 | K125: 5505 | L125: 5316.55 | M125: 7.43041
A126: 117 | B126: INFY | C126: 1752.15 | D126: 1741.83 | E126: 1720.67 | F126: 1689.18 | G126: 1668.02 | H126: 1773.32 | I126: 1794.48 | J126: 1825.97 | K126: 1763 | L126: 1710.35 | M126: 47.68144
A127: 118 | B127: INDIGO | C127: 1977.5 | D127: 1987.85 | E127: 1950.70 | F127: 1923.90 | G127: 1886.75 | H127: 2014.65 | I127: 2051.80 | J127: 2078.60 | K127: 2025 | L127: 1961.05 | M127: 9.32488
A128: 119 | B128: IPCALAB | C128: 2031 | D128: 2029.90 | E128: 2015.10 | F128: 1999.20 | G128: 1984.40 | H128: 2045.80 | I128: 2060.60 | J128: 2076.50 | K128: 2044.7 | L128: 2014 | M128: 5.02193
A129: 120 | B129: JSWENERGY | C129: 295.5 | D129: 293.25 | E129: 287.50 | F129: 279.50 | G129: 273.75 | H129: 301.25 | I129: 307.00 | J129: 315.00 | K129: 299 | L129: 285.25 | M129: 4.45411
A130: 121 | B130: JSWSTEEL | C130: 670.3 | D130: 669.18 | E130: 662.37 | F130: 654.43 | G130: 647.62 | H130: 677.12 | I130: 683.93 | J130: 691.87 | K130: 676 | L130: 661.25 | M130: 29.42047
A131: 122 | B131: JINDALSTEL | C131: 399.1 | D131: 396.57 | E131: 392.13 | F131: 385.17 | G131: 380.73 | H131: 403.53 | I131: 407.97 | J131: 414.93 | K131: 401 | L131: 389.6 | M131: 51.9367
A132: 123 | B132: JUBLFOOD | C132: 3752.9 | D132: 3726.80 | E132: 3692.65 | F132: 3632.40 | G132: 3598.25 | H132: 3787.05 | I132: 3821.20 | J132: 3881.45 | K132: 3760.95 | L132: 3666.55 | M132: 3.93511
A133: 124 | B133: KOTAKBANK | C133: 1840.4 | D133: 1843.48 | E133: 1812.97 | F133: 1785.53 | G133: 1755.02 | H133: 1870.92 | I133: 1901.43 | J133: 1928.87 | K133: 1874 | L133: 1816.05 | M133: 101.11252
A134: 125 | B134: L&TFH | C134: 81.05 | D134: 80.27 | E134: 79.28 | F134: 77.52 | G134: 76.53 | H134: 82.03 | I134: 83.02 | J134: 84.78 | K134: 81.25 | L134: 78.5 | M134: 110.51944
A135: 126 | B135: LTTS | C135: 5438.3 | D135: 5453.33 | E135: 5368.82 | F135: 5299.33 | G135: 5214.82 | H135: 5522.82 | I135: 5607.33 | J135: 5676.82 | K135: 5537.85 | L135: 5383.85 | M135: 2.19735
A136: 127 | B136: LICHSGFIN | C136: 386.2 | D136: 384.97 | E136: 382.38 | F136: 378.57 | G136: 375.98 | H136: 388.78 | I136: 391.37 | J136: 395.18 | K136: 387.55 | L136: 381.15 | M136: 19.26062
A137: 128 | B137: LTI | C137: 6670.05 | D137: 6699.93 | E137: 6611.87 | F137: 6553.68 | G137: 6465.62 | H137: 6758.12 | I137: 6846.18 | J137: 6904.37 | K137: 6788 | L137: 6641.75 | M137: 2.64969
A138: 129 | B138: LT | C138: 1865.7 | D138: 1861.97 | E138: 1849.93 | F138: 1834.17 | G138: 1822.13 | H138: 1877.73 | I138: 1889.77 | J138: 1905.53 | K138: 1874 | L138: 1846.2 | M138: 16.85243
A139: 130 | B139: LAURUSLABS | C139: 514.7 | D139: 516.28 | E139: 507.67 | F139: 500.63 | G139: 492.02 | H139: 523.32 | I139: 531.93 | J139: 538.97 | K139: 524.9 | L139: 509.25 | M139: 12.1952
A140: 131 | B140: LUPIN | C140: 943.05 | D140: 932.68 | E140: 892.97 | F140: 842.88 | G140: 803.17 | H140: 982.77 | I140: 1022.48 | J140: 1072.57 | K140: 972.4 | L140: 882.6 | M140: 104.36546
A141: 132 | B141: MRF | C141: 74111.85 | D141: 73937.28 | E141: 73674.57 | F141: 73237.28 | G141: 72974.57 | H141: 74374.57 | I141: 74637.28 | J141: 75074.57 | K141: 74200 | L141: 73500 | M141: 0.0583
A142: 133 | B142: MGL | C142: 913.8 | D142: 908.93 | E142: 902.42 | F142: 891.03 | G142: 884.52 | H142: 920.32 | I142: 926.83 | J142: 938.22 | K142: 915.45 | L142: 897.55 | M142: 7.92411
A143: 134 | B143: M&MFIN | C143: 162.3 | D143: 162.93 | E143: 160.37 | F143: 158.43 | G143: 155.87 | H143: 164.87 | I143: 167.43 | J143: 169.37 | K143: 165.5 | L143: 161 | M143: 32.02038
A144: 135 | B144: M&M | C144: 836.85 | D144: 834.93 | E144: 827.92 | F144: 818.98 | G144: 811.97 | H144: 843.87 | I144: 850.88 | J144: 859.82 | K144: 841.95 | L144: 826 | M144: 19.79863
A145: 136 | B145: MANAPPURAM | C145: 173.65 | D145: 173.37 | E145: 171.13 | F145: 168.62 | G145: 166.38 | H145: 175.88 | I145: 178.12 | J145: 180.63 | K145: 175.6 | L145: 170.85 | M145: 35.14427
A146: 137 | B146: MARICO | C146: 515.05 | D146: 516.42 | E146: 510.88 | F146: 506.72 | G146: 501.18 | H146: 520.58 | I146: 526.12 | J146: 530.28 | K146: 521.95 | L146: 512.25 | M146: 16.19756
A147: 138 | B147: MARUTI | C147: 7493.15 | D147: 7502.42 | E147: 7448.53 | F147: 7403.92 | G147: 7350.03 | H147: 7547.03 | I147: 7600.92 | J147: 7645.53 | K147: 7556.3 | L147: 7457.8 | M147: 7.49704
A148: 139 | B148: MFSL | C148: 996.05 | D148: 992.53 | E148: 985.57 | F148: 975.08 | G148: 968.12 | H148: 1003.02 | I148: 1009.98 | J148: 1020.47 | K148: 999.5 | L148: 982.05 | M148: 3.26854
A149: 140 | B149: MINDTREE | C149: 4625.55 | D149: 4601.18 | E149: 4564.37 | F149: 4503.18 | G149: 4466.37 | H149: 4662.37 | I149: 4699.18 | J149: 4760.37 | K149: 4638 | L149: 4540 | M149: 5.55346
A150: 141 | B150: MPHASIS | C150: 3187.6 | D150: 3182.53 | E150: 3135.07 | F150: 3082.53 | G150: 3035.07 | H150: 3235.07 | I150: 3282.53 | J150: 3335.07 | K150: 3230 | L150: 3130 | M150: 5.67038
A151: 142 | B151: MUTHOOTFIN | C151: 1495.75 | D151: 1483.67 | E151: 1465.63 | F151: 1435.52 | G151: 1417.48 | H151: 1513.78 | I151: 1531.82 | J151: 1561.93 | K151: 1501.7 | L151: 1453.55 | M151: 7.93589
A152: 143 | B152: NATCOPHARM | C152: 901.15 | D152: 894.93 | E152: 877.82 | F152: 854.48 | G152: 837.37 | H152: 918.27 | I152: 935.38 | J152: 958.72 | K152: 912.05 | L152: 871.6 | M152: 4.30886
A153: 144 | B153: NMDC | C153: 138.65 | D153: 138.83 | E153: 137.32 | F153: 135.98 | G153: 134.47 | H153: 140.17 | I153: 141.68 | J153: 143.02 | K153: 140.35 | L153: 137.5 | M153: 166.7336
A154: 145 | B154: NTPC | C154: 126.35 | D154: 126.27 | E154: 125.08 | F154: 123.82 | G154: 122.63 | H154: 127.53 | I154: 128.72 | J154: 129.98 | K154: 127.45 | L154: 125 | M154: 116.49242
A155: 146 | B155: NATIONALUM | C155: 101.9 | D155: 101.25 | E155: 99.75 | F155: 97.60 | G155: 96.10 | H155: 103.40 | I155: 104.90 | J155: 107.05 | K155: 102.75 | L155: 99.1 | M155: 258.84738
A156: 147 | B156: NAVINFLUOR | C156: 3959.75 | D156: 3940.47 | E156: 3904.93 | F156: 3850.12 | G156: 3814.58 | H156: 3995.28 | I156: 4030.82 | J156: 4085.63 | K156: 3976 | L156: 3885.65 | M156: 0.84533
A157: 148 | B157: NESTLEIND | C157: 19238.8 | D157: 19158.38 | E157: 18993.82 | F157: 18748.83 | G157: 18584.27 | H157: 19403.37 | I157: 19567.93 | J157: 19812.92 | K157: 19322.95 | L157: 18913.4 | M157: 0.69067
A158: 149 | B158: NAM-INDIA | C158: 359.7 | D158: 361.43 | E158: 356.52 | F158: 353.33 | G158: 348.42 | H158: 364.62 | I158: 369.53 | J158: 372.72 | K158: 366.35 | L158: 358.25 | M158: 9.45804
A159: 150 | B159: OBEROIRLTY | C159: 886.1 | D159: 882.20 | E159: 871.90 | F159: 857.70 | G159: 847.40 | H159: 896.40 | I159: 906.70 | J159: 920.90 | K159: 892.5 | L159: 868 | M159: 5.30972
A160: 151 | B160: ONGC | C160: 146.9 | D160: 146.10 | E160: 144.75 | F160: 142.60 | G160: 141.25 | H160: 148.25 | I160: 149.60 | J160: 151.75 | K160: 147.45 | L160: 143.95 | M160: 123.31999
A161: 152 | B161: OIL | C161: 199.95 | D161: 200.62 | E161: 198.33 | F161: 196.72 | G161: 194.43 | H161: 202.23 | I161: 204.52 | J161: 206.13 | K161: 202.9 | L161: 199 | M161: 6.44894
A162: 153 | B162: PIIND | C162: 2952.4 | D162: 2930.48 | E162: 2897.97 | F162: 2843.53 | G162: 2811.02 | H162: 2984.92 | I162: 3017.43 | J162: 3071.87 | K162: 2963 | L162: 2876.05 | M162: 1.76434
A163: 154 | B163: PAGEIND | C163: 40299.35 | D163: 38956.43 | E163: 37432.92 | F163: 34566.48 | G163: 33042.97 | H163: 41822.87 | I163: 43346.38 | J163: 46212.82 | K163: 40479.95 | L163: 36090 | M163: 0.23083
A164: 155 | B164: PETRONET | C164: 223.1 | D164: 223.27 | E164: 220.93 | F164: 218.77 | G164: 216.43 | H164: 225.43 | I164: 227.77 | J164: 229.93 | K164: 225.6 | L164: 221.1 | M164: 23.69837
A165: 156 | B165: PFIZER | C165: 5185.2 | D165: 5095.10 | E165: 4954.65 | F165: 4724.10 | G165: 4583.65 | H165: 5325.65 | I165: 5466.10 | J165: 5696.65 | K165: 5235.55 | L165: 4864.55 | M165: 3.50498
A166: 157 | B166: PIDILITIND | C166: 2389.25 | D166: 2380.82 | E166: 2361.73 | F166: 2334.22 | G166: 2315.13 | H166: 2408.33 | I166: 2427.42 | J166: 2454.93 | K166: 2399.9 | L166: 2353.3 | M166: 9.71135
A167: 158 | B167: PEL | C167: 2602.5 | D167: 2636.70 | E167: 2523.45 | F167: 2444.40 | G167: 2331.15 | H167: 2715.75 | I167: 2829.00 | J167: 2908.05 | K167: 2749.95 | L167: 2557.65 | M167: 14.97505
A168: 159 | B168: POLYCAB | C168: 2553.8 | D168: 2538.42 | E168: 2506.18 | F168: 2458.57 | G168: 2426.33 | H168: 2586.03 | I168: 2618.27 | J168: 2665.88 | K168: 2570.65 | L168: 2490.8 | M168: 2.96437
A169: 160 | B169: PFC | C169: 123.85 | D169: 123.28 | E169: 122.57 | F169: 121.28 | G169: 120.57 | H169: 124.57 | I169: 125.28 | J169: 126.57 | K169: 124 | L169: 122 | M169: 32.53445
A170: 161 | B170: POWERGRID | C170: 212.25 | D170: 209.53 | E170: 205.92 | F170: 199.58 | G170: 195.97 | H170: 215.87 | I170: 219.48 | J170: 225.82 | K170: 213.15 | L170: 203.2 | M170: 360.31527
A171: 162 | B171: PRESTIGE | C171: 461.35 | D171: 459.65 | E171: 452.70 | F171: 444.05 | G171: 437.10 | H171: 468.30 | I171: 475.25 | J171: 483.90 | K171: 466.6 | L171: 451 | M171: 4.9333
A172: 163 | B172: PGHH | C172: 15162.2 | D172: 15167.97 | E172: 15099.03 | F172: 15035.87 | G172: 14966.93 | H172: 15231.13 | I172: 15300.07 | J172: 15363.23 | K172: 15236.9 | L172: 15104.8 | M172: 0.08864
A173: 164 | B173: PNB | C173: 40.15 | D173: 40.05 | E173: 39.65 | F173: 39.15 | G173: 38.75 | H173: 40.55 | I173: 40.95 | J173: 41.45 | K173: 40.45 | L173: 39.55 | M173: 409.50927
A174: 165 | B174: RBLBANK | C174: 193.5 | D174: 193.52 | E174: 191.23 | F174: 188.97 | G174: 186.68 | H174: 195.78 | I174: 198.07 | J174: 200.33 | K174: 195.8 | L174: 191.25 | M174: 57.76866
A175: 166 | B175: RECLTD | C175: 136.85 | D175: 136.58 | E175: 135.37 | F175: 133.88 | G175: 132.67 | H175: 138.07 | I175: 139.28 | J175: 140.77 | K175: 137.8 | L175: 135.1 | M175: 65.48363
A176: 167 | B176: RELIANCE | C176: 2380.15 | D176: 2386.52 | E176: 2367.03 | F176: 2353.92 | G176: 2334.43 | H176: 2399.63 | I176: 2419.12 | J176: 2432.23 | K176: 2406 | L176: 2373.4 | M176: 59.95586
A177: 168 | B177: SBICARD | C177: 902.25 | D177: 906.32 | E177: 891.98 | F177: 881.72 | G177: 867.38 | H177: 916.58 | I177: 930.92 | J177: 941.18 | K177: 920.65 | L177: 896.05 | M177: 74.30675
A178: 169 | B178: SBILIFE | C178: 1188.55 | D178: 1186.53 | E178: 1180.17 | F178: 1171.78 | G178: 1165.42 | H178: 1194.92 | I178: 1201.28 | J178: 1209.67 | K178: 1192.9 | L178: 1178.15 | M178: 11.71502
A179: 170 | B179: SRF | C179: 2155.85 | D179: 2157.73 | E179: 2140.82 | F179: 2125.78 | G179: 2108.87 | H179: 2172.77 | I179: 2189.68 | J179: 2204.72 | K179: 2174.65 | L179: 2142.7 | M179: 3.68847
A180: 171 | B180: SANOFI | C180: 7704.7 | D180: 7679.57 | E180: 7645.18 | F180: 7585.67 | G180: 7551.28 | H180: 7739.08 | I180: 7773.47 | J180: 7832.98 | K180: 7713.95 | L180: 7620.05 | M180: 0.16594
A181: 172 | B181: SHREECEM | C181: 26461.4 | D181: 26310.10 | E181: 26120.20 | F181: 25779.00 | G181: 25589.10 | H181: 26651.30 | I181: 26841.20 | J181: 27182.40 | K181: 26500 | L181: 25968.9 | M181: 0.24245
A182: 173 | B182: SRTRANSFIN | C182: 1384.1 | D182: 1405.93 | E182: 1348.22 | F182: 1312.33 | G182: 1254.62 | H182: 1441.82 | I182: 1499.53 | J182: 1535.42 | K182: 1463.65 | L182: 1370.05 | M182: 18.15916
A183: 174 | B183: SIEMENS | C183: 2515.9 | D183: 2510.00 | E183: 2476.60 | F183: 2437.30 | G183: 2403.90 | H183: 2549.30 | I183: 2582.70 | J183: 2622.00 | K183: 2543.4 | L183: 2470.7 | M183: 6.50266
A184: 175 | B184: SBIN | C184: 488.55 | D184: 486.90 | E184: 483.45 | F184: 478.35 | G184: 474.90 | H184: 492.00 | I184: 495.45 | J184: 500.55 | K184: 490.35 | L184: 481.8 | M184: 116.42447
A185: 176 | B185: SAIL | C185: 114.6 | D185: 114.07 | E185: 112.13 | F185: 109.67 | G185: 107.73 | H185: 116.53 | I185: 118.47 | J185: 120.93 | K185: 116 | L185: 111.6 | M185: 411.78093
A186: 177 | B186: SUNPHARMA | C186: 756.05 | D186: 759.47 | E186: 750.18 | F186: 744.32 | G186: 735.03 | H186: 765.33 | I186: 774.62 | J186: 780.48 | K186: 768.75 | L186: 753.6 | M186: 32.24172
A187: 178 | B187: SUNTV | C187: 546.5 | D187: 543.82 | E187: 538.78 | F187: 531.07 | G187: 526.03 | H187: 551.53 | I187: 556.57 | J187: 564.28 | K187: 548.85 | L187: 536.1 | M187: 8.07281
A188: 179 | B188: SYNGENE | C188: 609.4 | D188: 614.50 | E188: 597.00 | F188: 584.60 | G188: 567.10 | H188: 626.90 | I188: 644.40 | J188: 656.80 | K188: 632 | L188: 602.1 | M188: 14.62855
A189: 180 | B189: TVSMOTOR | C189: 660.15 | D189: 664.87 | E189: 653.08 | F189: 646.02 | G189: 634.23 | H189: 671.93 | I189: 683.72 | J189: 690.78 | K189: 676.65 | L189: 657.8 | M189: 12.94853
A190: 181 | B190: TATACHEM | C190: 933.35 | D190: 932.95 | E190: 925.40 | F190: 917.45 | G190: 909.90 | H190: 940.90 | I190: 948.45 | J190: 956.40 | K190: 940.5 | L190: 925 | M190: 7.15048
A191: 182 | B191: TATACOMM | C191: 1445.4 | D191: 1461.47 | E191: 1419.53 | F191: 1393.67 | G191: 1351.73 | H191: 1487.33 | I191: 1529.27 | J191: 1555.13 | K191: 1503.4 | L191: 1435.6 | M191: 12.21855
A192: 183 | B192: TCS | C192: 3623.8 | D192: 3611.83 | E192: 3588.67 | F192: 3553.53 | G192: 3530.37 | H192: 3646.97 | I192: 3670.13 | J192: 3705.27 | K192: 3635 | L192: 3576.7 | M192: 17.47007
A193: 184 | B193: TATACONSUM | C193: 739.5 | D193: 741.95 | E193: 729.95 | F193: 720.40 | G193: 708.40 | H193: 751.50 | I193: 763.50 | J193: 773.05 | K193: 753.95 | L193: 732.4 | M193: 23.33787
A194: 185 | B194: TATAELXSI | C194: 6021.95 | D194: 6001.98 | E194: 5904.97 | F194: 5787.98 | G194: 5690.97 | H194: 6118.97 | I194: 6215.98 | J194: 6332.97 | K194: 6099 | L194: 5885 | M194: 2.51089
A195: 186 | B195: TATAMOTORS | C195: 489.4 | D195: 488.22 | E195: 484.48 | F195: 479.57 | G195: 475.83 | H195: 493.13 | I195: 496.87 | J195: 501.78 | K195: 491.95 | L195: 483.3 | M195: 177.22547
A196: 187 | B196: TATAPOWER | C196: 229.05 | D196: 228.18 | E196: 226.37 | F196: 223.68 | G196: 221.87 | H196: 230.87 | I196: 232.68 | J196: 235.37 | K196: 230 | L196: 225.5 | M196: 246.98002
A197: 188 | B197: TATASTEEL | C197: 1167.2 | D197: 1164.03 | E197: 1150.17 | F197: 1133.13 | G197: 1119.27 | H197: 1181.07 | I197: 1194.93 | J197: 1211.97 | K197: 1177.9 | L197: 1147 | M197: 53.52264
A198: 189 | B198: TECHM | C198: 1642.7 | D198: 1644.45 | E198: 1623.90 | F198: 1605.10 | G198: 1584.55 | H198: 1663.25 | I198: 1683.80 | J198: 1702.60 | K198: 1665 | L198: 1625.65 | M198: 27.25454
A199: 190 | B199: RAMCOCEM | C199: 992.6 | D199: 987.90 | E199: 981.10 | F199: 969.60 | G199: 962.80 | H199: 999.40 | I199: 1006.20 | J199: 1017.70 | K199: 994.7 | L199: 976.4 | M199: 0.65299
A200: 191 | B200: TITAN | C200: 2354.85 | D200: 2348.28 | E200: 2325.32 | F200: 2295.78 | G200: 2272.82 | H200: 2377.82 | I200: 2400.78 | J200: 2430.32 | K200: 2371.25 | L200: 2318.75 | M200: 7.65269
A201: 192 | B201: TORNTPHARM | C201: 3120.55 | D201: 3115.87 | E201: 3065.63 | F201: 3010.72 | G201: 2960.48 | H201: 3170.78 | I201: 3221.02 | J201: 3275.93 | K201: 3166.1 | L201: 3060.95 | M201: 1.35929
A202: 193 | B202: TORNTPOWER | C202: 582.05 | D202: 579.45 | E202: 574.05 | F202: 566.05 | G202: 560.65 | H202: 587.45 | I202: 592.85 | J202: 600.85 | K202: 584.85 | L202: 571.45 | M202: 4.07005
A203: 194 | B203: TRENT | C203: 1030.45 | D203: 1024.60 | E203: 1006.65 | F203: 982.85 | G203: 964.90 | H203: 1048.40 | I203: 1066.35 | J203: 1090.15 | K203: 1042.55 | L203: 1000.8 | M203: 6.16598
A204: 195 | B204: UPL | C204: 747.05 | D204: 743.03 | E204: 737.62 | F204: 728.18 | G204: 722.77 | H204: 752.47 | I204: 757.88 | J204: 767.32 | K204: 748.45 | L204: 733.6 | M204: 15.61018
A205: 196 | B205: ULTRACEMCO | C205: 7386.4 | D205: 7394.13 | E205: 7329.37 | F205: 7272.33 | G205: 7207.57 | H205: 7451.17 | I205: 7515.93 | J205: 7572.97 | K205: 7458.9 | L205: 7337.1 | M205: 2.10516
... 29 more rows

Sheet MidCap Intra
L5: Back To Main Page
A6: FOR INTRA DAY TRADING | K6: =Main!B10 -> 2021-12-15
A9: Sr.no | B9: Scrip | C9: CLOSE RATE | D9: Pivot Point | E9: Supports | H9: Resistances
E10: S1 | F10: S2 | G10: S3 | H10: R1 | I10: R2 | J10: R3 | K10: HIGH | L10: LOW | M10: Total Trade Quanity in Lakhs
A11: 1 | B11: 3MINDIA | C11: 24777.5 | D11: 24902.33 | E11: 24575.22 | F11: 24372.93 | G11: 24045.82 | H11: 25104.62 | I11: 25431.73 | J11: 25634.02 | K11: 25229.45 | L11: 24700.05 | M11: 0.01153
A12: 2 | B12: AARTIDRUGS | C12: 565.1 | D12: 571.03 | E12: 552.27 | F12: 539.43 | G12: 520.67 | H12: 583.87 | I12: 602.63 | J12: 615.47 | K12: 589.8 | L12: 558.2 | M12: 2.56449
A13: 3 | B13: AARTIIND | C13: 988.45 | D13: 996.13 | E13: 977.47 | F13: 966.48 | G13: 947.82 | H13: 1007.12 | I13: 1025.78 | J13: 1036.77 | K13: 1014.8 | L13: 985.15 | M13: 6.95765
A14: 4 | B14: AAVAS | C14: 2555.4 | D14: 2573.50 | E14: 2511.90 | F14: 2468.40 | G14: 2406.80 | H14: 2617.00 | I14: 2678.60 | J14: 2722.10 | K14: 2635.1 | L14: 2530 | M14: 1.24985
A15: 5 | B15: ABB | C15: 2272.55 | D15: 2284.10 | E15: 2248.50 | F15: 2224.45 | G15: 2188.85 | H15: 2308.15 | I15: 2343.75 | J15: 2367.80 | K15: 2319.7 | L15: 2260.05 | M15: 0.71628
A16: 6 | B16: ABBOTINDIA | C16: 18273.75 | D16: 18269.75 | E16: 18069.00 | F16: 17864.25 | G16: 17663.50 | H16: 18474.50 | I16: 18675.25 | J16: 18880.00 | K16: 18470.5 | L16: 18065 | M16: 0.1873
A17: 7 | B17: ABCAPITAL | C17: 121.9 | D17: 122.57 | E17: 120.23 | F17: 118.57 | G17: 116.23 | H17: 124.23 | I17: 126.57 | J17: 128.23 | K17: 124.9 | L17: 120.9 | M17: 46.21461
A18: 8 | B18: ABFRL | C18: 283.35 | D18: 279.55 | E18: 268.20 | F18: 253.05 | G18: 241.70 | H18: 294.70 | I18: 306.05 | J18: 321.20 | K18: 290.9 | L18: 264.4 | M18: 182.37309
A19: 9 | B19: ACC | C19: 2320.15 | D19: 2306.30 | E19: 2286.30 | F19: 2252.45 | G19: 2232.45 | H19: 2340.15 | I19: 2360.15 | J19: 2394.00 | K19: 2326.3 | L19: 2272.45 | M19: 4.0805
A20: 10 | B20: ADANIENT | C20: 1720.1 | D20: 1710.33 | E20: 1692.77 | F20: 1665.43 | G20: 1647.87 | H20: 1737.67 | I20: 1755.23 | J20: 1782.57 | K20: 1727.9 | L20: 1683 | M20: 11.98653
A21: 11 | B21: ADANIGREEN | C21: 1436.35 | D21: 1426.40 | E21: 1397.95 | F21: 1359.55 | G21: 1331.10 | H21: 1464.80 | I21: 1493.25 | J21: 1531.65 | K21: 1454.85 | L21: 1388 | M21: 9.49575
A22: 12 | B22: ADANIPORTS | C22: 763.7 | D22: 760.07 | E22: 754.13 | F22: 744.57 | G22: 738.63 | H22: 769.63 | I22: 775.57 | J22: 785.13 | K22: 766 | L22: 750.5 | M22: 29.19015
A23: 13 | B23: ADANITRANS | C23: 1872.7 | D23: 1859.23 | E23: 1833.47 | F23: 1794.23 | G23: 1768.47 | H23: 1898.47 | I23: 1924.23 | J23: 1963.47 | K23: 1885 | L23: 1820 | M23: 4.10771
A24: 14 | B24: ADVENZYMES | C24: 343.85 | D24: 345.80 | E24: 340.65 | F24: 337.45 | G24: 332.30 | H24: 349.00 | I24: 354.15 | J24: 357.35 | K24: 350.95 | L24: 342.6 | M24: 0.57075
A25: 15 | B25: AEGISCHEM | C25: 226.3 | D25: 228.52 | E25: 223.03 | F25: 219.77 | G25: 214.28 | H25: 231.78 | I25: 237.27 | J25: 240.53 | K25: 234 | L25: 225.25 | M25: 6.70176
A26: 16 | B26: AFFLE | C26: 1100.85 | D26: 1097.52 | E26: 1085.33 | F26: 1069.82 | G26: 1057.63 | H26: 1113.03 | I26: 1125.22 | J26: 1140.73 | K26: 1109.7 | L26: 1082 | M26: 4.13427
A27: 17 | B27: AIAENG | C27: 1831 | D27: 1838.63 | E27: 1816.07 | F27: 1801.13 | G27: 1778.57 | H27: 1853.57 | I27: 1876.13 | J27: 1891.07 | K27: 1861.2 | L27: 1823.7 | M27: 0.41816
A28: 18 | B28: AJANTPHARM | C28: 2136.55 | D28: 2133.60 | E28: 2108.00 | F28: 2079.45 | G28: 2053.85 | H28: 2162.15 | I28: 2187.75 | J28: 2216.30 | K28: 2159.2 | L28: 2105.05 | M28: 0.19033
A29: 19 | B29: ALEMBICLTD | C29: 102.05 | D29: 102.20 | E29: 101.45 | F29: 100.85 | G29: 100.10 | H29: 102.80 | I29: 103.55 | J29: 104.15 | K29: 102.95 | L29: 101.6 | M29: 1.16697
A30: 20 | B30: ALKEM | C30: 3466.45 | D30: 3460.28 | E30: 3435.57 | F30: 3404.68 | G30: 3379.97 | H30: 3491.17 | I30: 3515.88 | J30: 3546.77 | K30: 3485 | L30: 3429.4 | M30: 0.84853
A31: 21 | B31: ALKYLAMINE | C31: 3214.75 | D31: 3211.72 | E31: 3184.43 | F31: 3154.12 | G31: 3126.83 | H31: 3242.03 | I31: 3269.32 | J31: 3299.63 | K31: 3239 | L31: 3181.4 | M31: 0.2051
A32: 22 | B32: ALOKINDS | C32: 27 | D32: 26.30 | E32: 25.30 | F32: 23.60 | G32: 22.60 | H32: 28.00 | I32: 29.00 | J32: 30.70 | K32: 27.3 | L32: 24.6 | M32: 668.37917
A33: 23 | B33: AMARAJABAT | C33: 638.55 | D33: 636.87 | E33: 633.68 | F33: 628.82 | G33: 625.63 | H33: 641.73 | I33: 644.92 | J33: 649.78 | K33: 640.05 | L33: 632 | M33: 4.3744
A34: 24 | B34: AMBER | C34: 3231.3 | D34: 3225.13 | E34: 3145.27 | F34: 3059.23 | G34: 2979.37 | H34: 3311.17 | I34: 3391.03 | J34: 3477.07 | K34: 3305 | L34: 3139.1 | M34: 0.70731
A35: 25 | B35: AMBUJACEM | C35: 378.55 | D35: 377.80 | E35: 374.75 | F35: 370.95 | G35: 367.90 | H35: 381.60 | I35: 384.65 | J35: 388.45 | K35: 380.85 | L35: 374 | M35: 17.89446
A36: 26 | B36: ANGELONE | C36: 1166.95 | D36: 1161.53 | E36: 1121.07 | F36: 1075.18 | G36: 1034.72 | H36: 1207.42 | I36: 1247.88 | J36: 1293.77 | K36: 1202 | L36: 1115.65 | M36: 6.43953
A37: 27 | B37: ANURAS | C37: 841.6 | D37: 838.02 | E37: 828.03 | F37: 814.47 | G37: 804.48 | H37: 851.58 | I37: 861.57 | J37: 875.13 | K37: 848 | L37: 824.45 | M37: 0.67589
A38: 28 | B38: APLAPOLLO | C38: 1058.95 | D38: 1058.62 | E38: 1012.53 | F38: 966.12 | G38: 920.03 | H38: 1105.03 | I38: 1151.12 | J38: 1197.53 | K38: 1104.7 | L38: 1012.2 | M38: 20.37313
A39: 29 | B39: APLLTD | C39: 797.05 | D39: 800.02 | E39: 785.08 | F39: 773.12 | G39: 758.18 | H39: 811.98 | I39: 826.92 | J39: 838.88 | K39: 814.95 | L39: 788.05 | M39: 4.23851
A40: 30 | B40: APOLLOHOSP | C40: 5212 | D40: 5175.68 | E40: 5101.37 | F40: 4990.73 | G40: 4916.42 | H40: 5286.32 | I40: 5360.63 | J40: 5471.27 | K40: 5250 | L40: 5065.05 | M40: 10.07056
A41: 31 | B41: APOLLOTYRE | C41: 216.85 | D41: 216.63 | E41: 214.57 | F41: 212.28 | G41: 210.22 | H41: 218.92 | I41: 220.98 | J41: 223.27 | K41: 218.7 | L41: 214.35 | M41: 19.21045
A42: 32 | B42: ASAHIINDIA | C42: 475.45 | D42: 474.62 | E42: 469.28 | F42: 463.12 | G42: 457.78 | H42: 480.78 | I42: 486.12 | J42: 492.28 | K42: 479.95 | L42: 468.45 | M42: 0.94159
A43: 33 | B43: ASHOKA | C43: 95.95 | D43: 96.18 | E43: 95.27 | F43: 94.58 | G43: 93.67 | H43: 96.87 | I43: 97.78 | J43: 98.47 | K43: 97.1 | L43: 95.5 | M43: 9.36599
A44: 34 | B44: ASHOKLEY | C44: 125.95 | D44: 126.15 | E44: 124.60 | F44: 123.25 | G44: 121.70 | H44: 127.50 | I44: 129.05 | J44: 130.40 | K44: 127.7 | L44: 124.8 | M44: 94.95087
A45: 35 | B45: ASIANPAINT | C45: 3297.5 | D45: 3283.83 | E45: 3262.67 | F45: 3227.83 | G45: 3206.67 | H45: 3318.67 | I45: 3339.83 | J45: 3374.67 | K45: 3305 | L45: 3249 | M45: 8.63179
A46: 36 | B46: ASTERDM | C46: 190.7 | D46: 191.52 | E46: 189.28 | F46: 187.87 | G46: 185.63 | H46: 192.93 | I46: 195.17 | J46: 196.58 | K46: 193.75 | L46: 190.1 | M46: 2.40506
A47: 37 | B47: ASTRAL | C47: 2248.3 | D47: 2234.80 | E47: 2206.45 | F47: 2164.60 | G47: 2136.25 | H47: 2276.65 | I47: 2305.00 | J47: 2346.85 | K47: 2263.15 | L47: 2192.95 | M47: 2.41135
A48: 38 | B48: ASTRAZEN | C48: 3054.7 | D48: 3067.40 | E48: 3034.80 | F48: 3014.90 | G48: 2982.30 | H48: 3087.30 | I48: 3119.90 | J48: 3139.80 | K48: 3100 | L48: 3047.5 | M48: 0.13228
A49: 39 | B49: ATGL | C49: 1899.8 | D49: 1857.02 | E49: 1813.53 | F49: 1727.27 | G49: 1683.78 | H49: 1943.28 | I49: 1986.77 | J49: 2073.03 | K49: 1900.5 | L49: 1770.75 | M49: 1.83215
A50: 40 | B50: ATUL | C50: 8800.75 | D50: 8837.27 | E50: 8743.48 | F50: 8686.22 | G50: 8592.43 | H50: 8894.53 | I50: 8988.32 | J50: 9045.58 | K50: 8931.05 | L50: 8780 | M50: 0.13358
A51: 41 | B51: AUBANK | C51: 1168.9 | D51: 1167.80 | E51: 1151.10 | F51: 1133.30 | G51: 1116.60 | H51: 1185.60 | I51: 1202.30 | J51: 1220.10 | K51: 1184.5 | L51: 1150 | M51: 6.84112
A52: 42 | B52: AUROPHARMA | C52: 708.85 | D52: 705.37 | E52: 695.73 | F52: 682.62 | G52: 672.98 | H52: 718.48 | I52: 728.12 | J52: 741.23 | K52: 715 | L52: 692.25 | M52: 26.63847
A53: 43 | B53: AVANTIFEED | C53: 545.1 | D53: 544.88 | E53: 534.87 | F53: 524.63 | G53: 514.62 | H53: 555.12 | I53: 565.13 | J53: 575.37 | K53: 554.9 | L53: 534.65 | M53: 2.09754
A54: 44 | B54: AXISBANK | C54: 710.9 | D54: 707.50 | E54: 701.00 | F54: 691.10 | G54: 684.60 | H54: 717.40 | I54: 723.90 | J54: 733.80 | K54: 714 | L54: 697.6 | M54: 86.12512
A55: 45 | B55: BAJAJ-AUTO | C55: 3291.65 | D55: 3288.22 | E55: 3271.43 | F55: 3251.22 | G55: 3234.43 | H55: 3308.43 | I55: 3325.22 | J55: 3345.43 | K55: 3305 | L55: 3268 | M55: 1.81626
A56: 46 | B56: BAJAJCON | C56: 202.25 | D56: 201.50 | E56: 198.60 | F56: 194.95 | G56: 192.05 | H56: 205.15 | I56: 208.05 | J56: 211.70 | K56: 204.4 | L56: 197.85 | M56: 9.78246
A57: 47 | B57: BAJAJELEC | C57: 1146.5 | D57: 1145.52 | E57: 1132.03 | F57: 1117.57 | G57: 1104.08 | H57: 1159.98 | I57: 1173.47 | J57: 1187.93 | K57: 1159 | L57: 1131.05 | M57: 1.72571
A58: 48 | B58: BAJAJFINSV | C58: 17123.5 | D58: 17082.83 | E58: 16905.67 | F58: 16687.83 | G58: 16510.67 | H58: 17300.67 | I58: 17477.83 | J58: 17695.67 | K58: 17260 | L58: 16865 | M58: 2.42026
A59: 49 | B59: BAJAJHLDNG | C59: 5487.9 | D59: 5495.75 | E59: 5433.80 | F59: 5379.70 | G59: 5317.75 | H59: 5549.85 | I59: 5611.80 | J59: 5665.90 | K59: 5557.7 | L59: 5441.65 | M59: 0.23287
A60: 50 | B60: BAJFINANCE | C60: 7065.9 | D60: 7093.63 | E60: 7007.27 | F60: 6948.63 | G60: 6862.27 | H60: 7152.27 | I60: 7238.63 | J60: 7297.27 | K60: 7180 | L60: 7035 | M60: 12.76481
A61: 51 | B61: BALAMINES | C61: 3176.25 | D61: 3185.43 | E61: 3131.82 | F61: 3087.38 | G61: 3033.77 | H61: 3229.87 | I61: 3283.48 | J61: 3327.92 | K61: 3239.05 | L61: 3141 | M61: 0.33871
A62: 52 | B62: BALKRISIND | C62: 2250.95 | D62: 2234.03 | E62: 2213.27 | F62: 2175.58 | G62: 2154.82 | H62: 2271.72 | I62: 2292.48 | J62: 2330.17 | K62: 2254.8 | L62: 2196.35 | M62: 1.64727
A63: 53 | B63: BALRAMCHIN | C63: 333.4 | D63: 330.52 | E63: 325.88 | F63: 318.37 | G63: 313.73 | H63: 338.03 | I63: 342.67 | J63: 350.18 | K63: 335.15 | L63: 323 | M63: 7.73029
A64: 54 | B64: BANDHANBNK | C64: 280.35 | D64: 279.33 | E64: 277.67 | F64: 274.98 | G64: 273.32 | H64: 282.02 | I64: 283.68 | J64: 286.37 | K64: 281 | L64: 276.65 | M64: 39.63694
A65: 55 | B65: BANKBARODA | C65: 92.35 | D65: 92.13 | E65: 91.22 | F65: 90.08 | G65: 89.17 | H65: 93.27 | I65: 94.18 | J65: 95.32 | K65: 93.05 | L65: 91 | M65: 163.68468
A66: 56 | B66: BANKINDIA | C66: 56.15 | D66: 56.40 | E66: 55.75 | F66: 55.35 | G66: 54.70 | H66: 56.80 | I66: 57.45 | J66: 57.85 | K66: 57.05 | L66: 56 | M66: 50.48826
A67: 57 | B67: BASF | C67: 2910.4 | D67: 2944.47 | E67: 2858.93 | F67: 2807.47 | G67: 2721.93 | H67: 2995.93 | I67: 3081.47 | J67: 3132.93 | K67: 3030 | L67: 2893 | M67: 0.71345
A68: 58 | B68: BATAINDIA | C68: 1957.5 | D68: 1968.72 | E68: 1931.48 | F68: 1905.47 | G68: 1868.23 | H68: 1994.73 | I68: 2031.97 | J68: 2057.98 | K68: 2005.95 | L68: 1942.7 | M68: 5.77344
A69: 59 | B69: BAYERCROP | C69: 4713.45 | D69: 4725.32 | E69: 4692.13 | F69: 4670.82 | G69: 4637.63 | H69: 4746.63 | I69: 4779.82 | J69: 4801.13 | K69: 4758.5 | L69: 4704 | M69: 0.03623
A70: 60 | B70: BBTC | C70: 1160.5 | D70: 1140.22 | E70: 1101.43 | F70: 1042.37 | G70: 1003.58 | H70: 1199.28 | I70: 1238.07 | J70: 1297.13 | K70: 1179 | L70: 1081.15 | M70: 5.99876
A71: 61 | B71: BDL | C71: 399.75 | D71: 400.30 | E71: 396.05 | F71: 392.35 | G71: 388.10 | H71: 404.00 | I71: 408.25 | J71: 411.95 | K71: 404.55 | L71: 396.6 | M71: 0.55781
A72: 62 | B72: BEL | C72: 209.8 | D72: 210.45 | E72: 208.00 | F72: 206.20 | G72: 203.75 | H72: 212.25 | I72: 214.70 | J72: 216.50 | K72: 212.9 | L72: 208.65 | M72: 64.79571
A73: 63 | B73: BEML | C73: 1950.6 | D73: 1940.27 | E73: 1915.53 | F73: 1880.47 | G73: 1855.73 | H73: 1975.33 | I73: 2000.07 | J73: 2035.13 | K73: 1965 | L73: 1905.2 | M73: 3.25435
A74: 64 | B74: BERGEPAINT | C74: 756.85 | D74: 754.62 | E74: 749.83 | F74: 742.82 | G74: 738.03 | H74: 761.63 | I74: 766.42 | J74: 773.43 | K74: 759.4 | L74: 747.6 | M74: 4.15526
A75: 65 | B75: BHARATFORG | C75: 735.9 | D75: 733.02 | E75: 726.08 | F75: 716.27 | G75: 709.33 | H75: 742.83 | I75: 749.77 | J75: 759.58 | K75: 739.95 | L75: 723.2 | M75: 5.86248
A76: 66 | B76: BHARATRAS | C76: 10279.45 | D76: 10283.72 | E76: 10137.43 | F76: 9995.42 | G76: 9849.13 | H76: 10425.73 | I76: 10572.02 | J76: 10714.03 | K76: 10430 | L76: 10141.7 | M76: 0.01906
A77: 67 | B77: BHARTIARTL | C77: 691.6 | D77: 695.43 | E77: 684.57 | F77: 677.53 | G77: 666.67 | H77: 702.47 | I77: 713.33 | J77: 720.37 | K77: 706.3 | L77: 688.4 | M77: 92.75631
A78: 68 | B78: BHEL | C78: 64.8 | D78: 64.58 | E78: 63.62 | F78: 62.43 | G78: 61.47 | H78: 65.77 | I78: 66.73 | J78: 67.92 | K78: 65.55 | L78: 63.4 | M78: 274.98312
A79: 69 | B79: BIOCON | C79: 378.15 | D79: 378.58 | E79: 373.77 | F79: 369.38 | G79: 364.57 | H79: 382.97 | I79: 387.78 | J79: 392.17 | K79: 383.4 | L79: 374.2 | M79: 24.19263
A80: 70 | B80: BIRLACORPN | C80: 1490.7 | D80: 1484.90 | E80: 1457.80 | F80: 1424.90 | G80: 1397.80 | H80: 1517.80 | I80: 1544.90 | J80: 1577.80 | K80: 1512 | L80: 1452 | M80: 1.08392
A81: 71 | B81: BLUEDART | C81: 6426.6 | D81: 6450.23 | E81: 6356.47 | F81: 6286.33 | G81: 6192.57 | H81: 6520.37 | I81: 6614.13 | J81: 6684.27 | K81: 6544 | L81: 6380.1 | M81: 0.15586
A82: 72 | B82: BLUESTARCO | C82: 1013.45 | D82: 1010.12 | E82: 990.28 | F82: 967.12 | G82: 947.28 | H82: 1033.28 | I82: 1053.12 | J82: 1076.28 | K82: 1029.95 | L82: 986.95 | M82: 0.95729
A83: 73 | B83: BOSCHLTD | C83: 16871.8 | D83: 16781.87 | E83: 16650.18 | F83: 16428.57 | G83: 16296.88 | H83: 17003.48 | I83: 17135.17 | J83: 17356.78 | K83: 16913.55 | L83: 16560.25 | M83: 0.1419
A84: 74 | B84: BPCL | C84: 391.65 | D84: 391.23 | E84: 389.52 | F84: 387.38 | G84: 385.67 | H84: 393.37 | I84: 395.08 | J84: 397.22 | K84: 392.95 | L84: 389.1 | M84: 32.91399
A85: 75 | B85: BRIGADE | C85: 482.5 | D85: 479.42 | E85: 469.83 | F85: 457.17 | G85: 447.58 | H85: 492.08 | I85: 501.67 | J85: 514.33 | K85: 489 | L85: 466.75 | M85: 2.24184
A86: 76 | B86: BRITANNIA | C86: 3579.65 | D86: 3573.38 | E86: 3549.32 | F86: 3518.98 | G86: 3494.92 | H86: 3603.72 | I86: 3627.78 | J86: 3658.12 | K86: 3597.45 | L86: 3543.05 | M86: 2.97867
A87: 77 | B87: BSE | C87: 2291.3 | D87: 2233.10 | E87: 2143.20 | F87: 1995.10 | G87: 1905.20 | H87: 2381.20 | I87: 2471.10 | J87: 2619.20 | K87: 2323 | L87: 2085 | M87: 42.43976
A88: 78 | B88: BSOFT | C88: 505.65 | D88: 507.40 | E88: 498.95 | F88: 492.25 | G88: 483.80 | H88: 514.10 | I88: 522.55 | J88: 529.25 | K88: 515.85 | L88: 500.7 | M88: 66.22803
A89: 79 | B89: BURGERKING | C89: 156 | D89: 156.33 | E89: 154.47 | F89: 152.93 | G89: 151.07 | H89: 157.87 | I89: 159.73 | J89: 161.27 | K89: 158.2 | L89: 154.8 | M89: 9.27299
A90: 80 | B90: CADILAHC | C90: 467.6 | D90: 466.97 | E90: 459.53 | F90: 451.47 | G90: 444.03 | H90: 475.03 | I90: 482.47 | J90: 490.53 | K90: 474.4 | L90: 458.9 | M90: 34.46381
A91: 81 | B91: CAMS | C91: 2767.7 | D91: 2762.90 | E91: 2737.10 | F91: 2706.50 | G91: 2680.70 | H91: 2793.50 | I91: 2819.30 | J91: 2849.90 | K91: 2788.7 | L91: 2732.3 | M91: 5.12124
A92: 82 | B92: CANBK | C92: 215.6 | D92: 215.02 | E92: 212.73 | F92: 209.87 | G92: 207.58 | H92: 217.88 | I92: 220.17 | J92: 223.03 | K92: 217.3 | L92: 212.15 | M92: 82.91075
A93: 83 | B93: CANFINHOME | C93: 598.5 | D93: 596.50 | E93: 591.30 | F93: 584.10 | G93: 578.90 | H93: 603.70 | I93: 608.90 | J93: 616.10 | K93: 601.7 | L93: 589.3 | M93: 4.26115
A94: 84 | B94: CAPLIPOINT | C94: 802.45 | D94: 795.28 | E94: 777.17 | F94: 751.88 | G94: 733.77 | H94: 820.57 | I94: 838.68 | J94: 863.97 | K94: 813.4 | L94: 770 | M94: 0.81405
A95: 85 | B95: CARBORUNIV | C95: 895.8 | D95: 891.30 | E95: 874.50 | F95: 853.20 | G95: 836.40 | H95: 912.60 | I95: 929.40 | J95: 950.70 | K95: 908.1 | L95: 870 | M95: 5.0391
A96: 86 | B96: CASTROLIND | C96: 124.65 | D96: 125.20 | E96: 123.85 | F96: 123.05 | G96: 121.70 | H96: 126.00 | I96: 127.35 | J96: 128.15 | K96: 126.55 | L96: 124.4 | M96: 7.71278
A97: 87 | B97: CCL | C97: 401 | D97: 401.52 | E97: 397.53 | F97: 394.07 | G97: 390.08 | H97: 404.98 | I97: 408.97 | J97: 412.43 | K97: 405.5 | L97: 398.05 | M97: 1.31048
A98: 88 | B98: CDSL | C98: 1666.6 | D98: 1640.80 | E98: 1601.80 | F98: 1537.00 | G98: 1498.00 | H98: 1705.60 | I98: 1744.60 | J98: 1809.40 | K98: 1679.8 | L98: 1576 | M98: 32.44896
A99: 89 | B99: CEATLTD | C99: 1150.1 | D99: 1156.38 | E99: 1140.37 | F99: 1130.63 | G99: 1114.62 | H99: 1166.12 | I99: 1182.13 | J99: 1191.87 | K99: 1172.4 | L99: 1146.65 | M99: 0.45427
A100: 90 | B100: CENTRALBK | C100: 22.35 | D100: 22.48 | E100: 22.12 | F100: 21.88 | G100: 21.52 | H100: 22.72 | I100: 23.08 | J100: 23.32 | K100: 22.85 | L100: 22.25 | M100: 46.12335
A101: 91 | B101: CENTURYPLY | C101: 620.55 | D101: 621.03 | E101: 614.07 | F101: 607.58 | G101: 600.62 | H101: 627.52 | I101: 634.48 | J101: 640.97 | K101: 628 | L101: 614.55 | M101: 0.76692
A102: 92 | B102: CENTURYTEX | C102: 843.15 | D102: 840.88 | E102: 830.77 | F102: 818.38 | G102: 808.27 | H102: 853.27 | I102: 863.38 | J102: 875.77 | K102: 851 | L102: 828.5 | M102: 2.02792
A103: 93 | B103: CERA | C103: 4889.8 | D103: 4917.60 | E103: 4847.20 | F103: 4804.60 | G103: 4734.20 | H103: 4960.20 | I103: 5030.60 | J103: 5073.20 | K103: 4988 | L103: 4875 | M103: 0.05067
A104: 94 | B104: CESC | C104: 90.45 | D104: 89.80 | E104: 88.80 | F104: 87.15 | G104: 86.15 | H104: 91.45 | I104: 92.45 | J104: 94.10 | K104: 90.8 | L104: 88.15 | M104: 20.15867
A105: 95 | B105: CGCL | C105: 517.4 | D105: 514.23 | E105: 508.52 | F105: 499.63 | G105: 493.92 | H105: 523.12 | I105: 528.83 | J105: 537.72 | K105: 519.95 | L105: 505.35 | M105: 0.15469
A106: 96 | B106: CGPOWER | C106: 182 | D106: 179.33 | E106: 176.67 | F106: 171.33 | G106: 168.67 | H106: 184.67 | I106: 187.33 | J106: 192.67 | K106: 182 | L106: 174 | M106: 25.11352
A107: 97 | B107: CHALET | C107: 234.8 | D107: 235.78 | E107: 231.77 | F107: 228.73 | G107: 224.72 | H107: 238.82 | I107: 242.83 | J107: 245.87 | K107: 239.8 | L107: 232.75 | M107: 1.38987
A108: 98 | B108: CHAMBLFERT | C108: 399.95 | D108: 397.87 | E108: 393.18 | F108: 386.42 | G108: 381.73 | H108: 404.63 | I108: 409.32 | J108: 416.08 | K108: 402.55 | L108: 391.1 | M108: 11.02398
A109: 99 | B109: CHOLAFIN | C109: 554.95 | D109: 562.25 | E109: 545.35 | F109: 535.75 | G109: 518.85 | H109: 571.85 | I109: 588.75 | J109: 598.35 | K109: 579.15 | L109: 552.65 | M109: 40.27319
A110: 100 | B110: CHOLAHLDNG | C110: 690.4 | D110: 695.45 | E110: 681.00 | F110: 671.60 | G110: 657.15 | H110: 704.85 | I110: 719.30 | J110: 728.70 | K110: 709.9 | L110: 686.05 | M110: 0.28989
A111: 101 | B111: CIPLA | C111: 895.6 | D111: 898.15 | E111: 888.45 | F111: 881.30 | G111: 871.60 | H111: 905.30 | I111: 915.00 | J111: 922.15 | K111: 907.85 | L111: 891 | M111: 26.51452
A112: 102 | B112: COALINDIA | C112: 148.9 | D112: 148.47 | E112: 147.18 | F112: 145.47 | G112: 144.18 | H112: 150.18 | I112: 151.47 | J112: 153.18 | K112: 149.75 | L112: 146.75 | M112: 84.74759
A113: 103 | B113: COCHINSHIP | C113: 346.95 | D113: 347.58 | E113: 345.87 | F113: 344.78 | G113: 343.07 | H113: 348.67 | I113: 350.38 | J113: 351.47 | K113: 349.3 | L113: 346.5 | M113: 0.57075
A114: 104 | B114: COFORGE | C114: 5439.45 | D114: 5424.83 | E114: 5353.42 | F114: 5267.38 | G114: 5195.97 | H114: 5510.87 | I114: 5582.28 | J114: 5668.32 | K114: 5496.25 | L114: 5338.8 | M114: 2.33815
A115: 105 | B115: COLPAL | C115: 1458.95 | D115: 1448.98 | E115: 1435.07 | F115: 1411.18 | G115: 1397.27 | H115: 1472.87 | I115: 1486.78 | J115: 1510.67 | K115: 1462.9 | L115: 1425.1 | M115: 6.34424
A116: 106 | B116: CONCOR | C116: 641.65 | D116: 643.10 | E116: 636.20 | F116: 630.75 | G116: 623.85 | H116: 648.55 | I116: 655.45 | J116: 660.90 | K116: 650 | L116: 637.65 | M116: 5.74501
A117: 107 | B117: COROMANDEL | C117: 748.05 | D117: 751.90 | E117: 740.15 | F117: 732.25 | G117: 720.50 | H117: 759.80 | I117: 771.55 | J117: 779.45 | K117: 763.65 | L117: 744 | M117: 2.70254
A118: 108 | B118: CREDITACC | C118: 660.95 | D118: 676.35 | E118: 635.70 | F118: 610.45 | G118: 569.80 | H118: 701.60 | I118: 742.25 | J118: 767.50 | K118: 717 | L118: 651.1 | M118: 14.26998
A119: 109 | B119: CRISIL | C119: 3025.25 | D119: 3037.68 | E119: 3000.62 | F119: 2975.98 | G119: 2938.92 | H119: 3062.32 | I119: 3099.38 | J119: 3124.02 | K119: 3074.75 | L119: 3013.05 | M119: 0.24869
A120: 110 | B120: CROMPTON | C120: 415.85 | D120: 418.65 | E120: 410.30 | F120: 404.75 | G120: 396.40 | H120: 424.20 | I120: 432.55 | J120: 438.10 | K120: 427 | L120: 413.1 | M120: 27.88053
A121: 111 | B121: CSBBANK | C121: 270.8 | D121: 271.10 | E121: 267.20 | F121: 263.60 | G121: 259.70 | H121: 274.70 | I121: 278.60 | J121: 282.20 | K121: 275 | L121: 267.5 | M121: 0.62843
A122: 112 | B122: CUB | C122: 147.6 | D122: 147.67 | E122: 146.53 | F122: 145.47 | G122: 144.33 | H122: 148.73 | I122: 149.87 | J122: 150.93 | K122: 148.8 | L122: 146.6 | M122: 9.22594
A123: 113 | B123: CUMMINSIND | C123: 963.8 | D123: 970.58 | E123: 952.42 | F123: 941.03 | G123: 922.87 | H123: 981.97 | I123: 1000.13 | J123: 1011.52 | K123: 988.75 | L123: 959.2 | M123: 6.52333
A124: 114 | B124: CYIENT | C124: 993.25 | D124: 990.10 | E124: 973.35 | F124: 953.45 | G124: 936.70 | H124: 1010.00 | I124: 1026.75 | J124: 1046.65 | K124: 1006.85 | L124: 970.2 | M124: 1.43509
A125: 115 | B125: DABUR | C125: 579.4 | D125: 577.65 | E125: 574.90 | F125: 570.40 | G125: 567.65 | H125: 582.15 | I125: 584.90 | J125: 589.40 | K125: 580.4 | L125: 573.15 | M125: 11.67762
A126: 116 | B126: DALBHARAT | C126: 1916.9 | D126: 1905.38 | E126: 1883.52 | F126: 1850.13 | G126: 1828.27 | H126: 1938.77 | I126: 1960.63 | J126: 1994.02 | K126: 1927.25 | L126: 1872 | M126: 1.20147
A127: 117 | B127: DBL | C127: 536.65 | D127: 539.90 | E127: 531.75 | F127: 526.85 | G127: 518.70 | H127: 544.80 | I127: 552.95 | J127: 557.85 | K127: 548.05 | L127: 535 | M127: 1.16602
A128: 118 | B128: DCBBANK | C128: 85.75 | D128: 86.40 | E128: 84.90 | F128: 84.05 | G128: 82.55 | H128: 87.25 | I128: 88.75 | J128: 89.60 | K128: 87.9 | L128: 85.55 | M128: 9.78393
A129: 119 | B129: DCMSHRIRAM | C129: 982.95 | D129: 977.12 | E129: 956.33 | F129: 929.72 | G129: 908.93 | H129: 1003.73 | I129: 1024.52 | J129: 1051.13 | K129: 997.9 | L129: 950.5 | M129: 0.46813
A130: 120 | B130: DEEPAKNTR | C130: 2324.95 | D130: 2325.15 | E130: 2291.80 | F130: 2258.65 | G130: 2225.30 | H130: 2358.30 | I130: 2391.65 | J130: 2424.80 | K130: 2358.5 | L130: 2292 | M130: 4.266
A131: 121 | B131: DELTACORP | C131: 294.9 | D131: 295.65 | E131: 290.45 | F131: 286.00 | G131: 280.80 | H131: 300.10 | I131: 305.30 | J131: 309.75 | K131: 300.85 | L131: 291.2 | M131: 89.20314
A132: 122 | B132: DHANI | C132: 165.65 | D132: 166.37 | E132: 164.43 | F132: 163.22 | G132: 161.28 | H132: 167.58 | I132: 169.52 | J132: 170.73 | K132: 168.3 | L132: 165.15 | M132: 11.03724
A133: 123 | B133: DHANUKA | C133: 746.45 | D133: 749.82 | E133: 739.78 | F133: 733.12 | G133: 723.08 | H133: 756.48 | I133: 766.52 | J133: 773.18 | K133: 759.85 | L133: 743.15 | M133: 0.2244
A134: 124 | B134: DIVISLAB | C134: 4654.4 | D134: 4605.80 | E134: 4549.60 | F134: 4444.80 | G134: 4388.60 | H134: 4710.60 | I134: 4766.80 | J134: 4871.60 | K134: 4662 | L134: 4501 | M134: 8.83708
A135: 125 | B135: DIXON | C135: 5529.35 | D135: 5564.72 | E135: 5449.63 | F135: 5369.92 | G135: 5254.83 | H135: 5644.43 | I135: 5759.52 | J135: 5839.23 | K135: 5679.8 | L135: 5485 | M135: 3.26
A136: 126 | B136: DLF | C136: 417 | D136: 414.32 | E136: 408.08 | F136: 399.17 | G136: 392.93 | H136: 423.23 | I136: 429.47 | J136: 438.38 | K136: 420.55 | L136: 405.4 | M136: 50.58088
A137: 127 | B137: DMART | C137: 4814.4 | D137: 4789.50 | E137: 4739.00 | F137: 4663.60 | G137: 4613.10 | H137: 4864.90 | I137: 4915.40 | J137: 4990.80 | K137: 4840 | L137: 4714.1 | M137: 3.52396
A138: 128 | B138: DRREDDY | C138: 4646.55 | D138: 4627.88 | E138: 4595.77 | F138: 4544.98 | G138: 4512.87 | H138: 4678.67 | I138: 4710.78 | J138: 4761.57 | K138: 4660 | L138: 4577.1 | M138: 2.39183
A139: 129 | B139: ECLERX | C139: 2217.15 | D139: 2204.38 | E139: 2142.82 | F139: 2068.48 | G139: 2006.92 | H139: 2278.72 | I139: 2340.28 | J139: 2414.62 | K139: 2265.95 | L139: 2130.05 | M139: 0.6991
A140: 130 | B140: EDELWEISS | C140: 74.35 | D140: 74.45 | E140: 73.60 | F140: 72.85 | G140: 72.00 | H140: 75.20 | I140: 76.05 | J140: 76.80 | K140: 75.3 | L140: 73.7 | M140: 7.51819
A141: 131 | B141: EICHERMOT | C141: 2487.45 | D141: 2476.93 | E141: 2461.52 | F141: 2435.58 | G141: 2420.17 | H141: 2502.87 | I141: 2518.28 | J141: 2544.22 | K141: 2492.35 | L141: 2451 | M141: 3.95362
A142: 132 | B142: EIDPARRY | C142: 471.65 | D142: 474.73 | E142: 466.77 | F142: 461.88 | G142: 453.92 | H142: 479.62 | I142: 487.58 | J142: 492.47 | K142: 482.7 | L142: 469.85 | M142: 1.161
A143: 133 | B143: EIHOTEL | C143: 133.55 | D143: 133.63 | E143: 132.02 | F143: 130.48 | G143: 128.87 | H143: 135.17 | I143: 136.78 | J143: 138.32 | K143: 135.25 | L143: 132.1 | M143: 4.71221
A144: 134 | B144: ELGIEQUIP | C144: 307.3 | D144: 309.43 | E144: 303.12 | F144: 298.93 | G144: 292.62 | H144: 313.62 | I144: 319.93 | J144: 324.12 | K144: 315.75 | L144: 305.25 | M144: 2.70995
A145: 135 | B145: EMAMILTD | C145: 527.55 | D145: 528.08 | E145: 521.72 | F145: 515.88 | G145: 509.52 | H145: 533.92 | I145: 540.28 | J145: 546.12 | K145: 534.45 | L145: 522.25 | M145: 1.61809
A146: 136 | B146: ENDURANCE | C146: 1715.05 | D146: 1727.55 | E146: 1692.55 | F146: 1670.05 | G146: 1635.05 | H146: 1750.05 | I146: 1785.05 | J146: 1807.55 | K146: 1762.55 | L146: 1705.05 | M146: 0.3317
A147: 137 | B147: ENGINERSIN | C147: 71.7 | D147: 71.90 | E147: 71.35 | F147: 71.00 | G147: 70.45 | H147: 72.25 | I147: 72.80 | J147: 73.15 | K147: 72.45 | L147: 71.55 | M147: 8.9748
A148: 138 | B148: EPL | C148: 199.85 | D148: 200.73 | E148: 198.12 | F148: 196.38 | G148: 193.77 | H148: 202.47 | I148: 205.08 | J148: 206.82 | K148: 203.35 | L148: 199 | M148: 0.97948
A149: 139 | B149: EQUITAS | C149: 128.15 | D149: 129.78 | E149: 125.67 | F149: 123.18 | G149: 119.07 | H149: 132.27 | I149: 136.38 | J149: 138.87 | K149: 133.9 | L149: 127.3 | M149: 14.55924
A150: 140 | B150: EQUITASBNK | C150: 62 | D150: 62.08 | E150: 61.47 | F150: 60.93 | G150: 60.32 | H150: 62.62 | I150: 63.23 | J150: 63.77 | K150: 62.7 | L150: 61.55 | M150: 2.6902
A151: 141 | B151: ERIS | C151: 703.45 | D151: 704.60 | E151: 697.85 | F151: 692.25 | G151: 685.50 | H151: 710.20 | I151: 716.95 | J151: 722.55 | K151: 711.35 | L151: 699 | M151: 1.14822
A152: 142 | B152: ESCORTS | C152: 1851.35 | D152: 1853.43 | E152: 1842.92 | F152: 1834.48 | G152: 1823.97 | H152: 1861.87 | I152: 1872.38 | J152: 1880.82 | K152: 1863.95 | L152: 1845 | M152: 4.16745
A153: 143 | B153: EXIDEIND | C153: 167.65 | D153: 167.38 | E153: 166.12 | F153: 164.58 | G153: 163.32 | H153: 168.92 | I153: 170.18 | J153: 171.72 | K153: 168.65 | L153: 165.85 | M153: 19.11493
A154: 144 | B154: FACT | C154: 117.4 | D154: 117.40 | E154: 116.05 | F154: 114.70 | G154: 113.35 | H154: 118.75 | I154: 120.10 | J154: 121.45 | K154: 118.75 | L154: 116.05 | M154: 0.81551
A155: 145 | B155: FDC | C155: 294.9 | D155: 294.17 | E155: 290.33 | F155: 285.77 | G155: 281.93 | H155: 298.73 | I155: 302.57 | J155: 307.13 | K155: 298 | L155: 289.6 | M155: 1.45861
A156: 146 | B156: FEDERALBNK | C156: 91 | D156: 90.80 | E156: 90.10 | F156: 89.20 | G156: 88.50 | H156: 91.70 | I156: 92.40 | J156: 93.30 | K156: 91.5 | L156: 89.9 | M156: 77.86084
A157: 147 | B157: FINCABLES | C157: 568.7 | D157: 570.03 | E157: 563.92 | F157: 559.13 | G157: 553.02 | H157: 574.82 | I157: 580.93 | J157: 585.72 | K157: 576.15 | L157: 565.25 | M157: 0.70543
A158: 148 | B158: FINEORG | C158: 3721.4 | D158: 3681.73 | E158: 3623.47 | F158: 3525.53 | G158: 3467.27 | H158: 3779.67 | I158: 3837.93 | J158: 3935.87 | K158: 3740 | L158: 3583.8 | M158: 0.16484
A159: 149 | B159: FINPIPE | C159: 208.95 | D159: 208.42 | E159: 206.93 | F159: 204.92 | G159: 203.43 | H159: 210.43 | I159: 211.92 | J159: 213.93 | K159: 209.9 | L159: 206.4 | M159: 4.38759
A160: 150 | B160: FLUOROCHEM | C160: 2405.05 | D160: 2413.68 | E160: 2369.37 | F160: 2333.68 | G160: 2289.37 | H160: 2449.37 | I160: 2493.68 | J160: 2529.37 | K160: 2458 | L160: 2378 | M160: 0.4296
A161: 151 | B161: FORTIS | C161: 282.85 | D161: 281.28 | E161: 278.07 | F161: 273.28 | G161: 270.07 | H161: 286.07 | I161: 289.28 | J161: 294.07 | K161: 284.5 | L161: 276.5 | M161: 14.13799
A162: 152 | B162: FRETAIL | C162: 48.85 | D162: 48.97 | E162: 48.38 | F162: 47.92 | G162: 47.33 | H162: 49.43 | I162: 50.02 | J162: 50.48 | K162: 49.55 | L162: 48.5 | M162: 16.33011
A163: 153 | B163: FSL | C163: 172.2 | D163: 172.53 | E163: 169.67 | F163: 167.13 | G163: 164.27 | H163: 175.07 | I163: 177.93 | J163: 180.47 | K163: 175.4 | L163: 170 | M163: 27.20703
A164: 154 | B164: GAEL | C164: 162.55 | D164: 163.42 | E164: 161.18 | F164: 159.82 | G164: 157.58 | H164: 164.78 | I164: 167.02 | J164: 168.38 | K164: 165.65 | L164: 162.05 | M164: 1.05907
A165: 155 | B165: GAIL | C165: 135.3 | D165: 134.43 | E165: 132.87 | F165: 130.43 | G165: 128.87 | H165: 136.87 | I165: 138.43 | J165: 140.87 | K165: 136 | L165: 132 | M165: 130.18242
A166: 156 | B166: GALAXYSURF | C166: 2887.6 | D166: 2874.27 | E166: 2848.53 | F166: 2809.47 | G166: 2783.73 | H166: 2913.33 | I166: 2939.07 | J166: 2978.13 | K166: 2900 | L166: 2835.2 | M166: 0.27907
A167: 157 | B167: GARFIBRES | C167: 3245.75 | D167: 3245.90 | E167: 3206.85 | F167: 3167.95 | G167: 3128.90 | H167: 3284.80 | I167: 3323.85 | J167: 3362.75 | K167: 3284.95 | L167: 3207 | M167: 0.04288
A168: 158 | B168: GESHIP | C168: 300.4 | D168: 299.48 | E168: 297.92 | F168: 295.43 | G168: 293.87 | H168: 301.97 | I168: 303.53 | J168: 306.02 | K168: 301.05 | L168: 297 | M168: 1.16606
A169: 159 | B169: GICRE | C169: 139.45 | D169: 139.58 | E169: 136.97 | F169: 134.48 | G169: 131.87 | H169: 142.07 | I169: 144.68 | J169: 147.17 | K169: 142.2 | L169: 137.1 | M169: 10.81362
A170: 160 | B170: GILLETTE | C170: 5495.8 | D170: 5504.83 | E170: 5466.02 | F170: 5436.23 | G170: 5397.42 | H170: 5534.62 | I170: 5573.43 | J170: 5603.22 | K170: 5543.65 | L170: 5475.05 | M170: 0.01616
A171: 161 | B171: GLAND | C171: 3634.7 | D171: 3614.18 | E171: 3580.57 | F171: 3526.43 | G171: 3492.82 | H171: 3668.32 | I171: 3701.93 | J171: 3756.07 | K171: 3647.8 | L171: 3560.05 | M171: 2.04683
A172: 162 | B172: GLAXO | C172: 1867.75 | D172: 1868.80 | E172: 1844.95 | F172: 1822.15 | G172: 1798.30 | H172: 1891.60 | I172: 1915.45 | J172: 1938.25 | K172: 1892.65 | L172: 1846 | M172: 0.49791
A173: 163 | B173: GLENMARK | C173: 518.3 | D173: 522.90 | E173: 508.80 | F173: 499.30 | G173: 485.20 | H173: 532.40 | I173: 546.50 | J173: 556.00 | K173: 537 | L173: 513.4 | M173: 16.61556
A174: 164 | B174: GMMPFAUDLR | C174: 4445.85 | D174: 4464.53 | E174: 4411.32 | F174: 4376.78 | G174: 4323.57 | H174: 4499.07 | I174: 4552.28 | J174: 4586.82 | K174: 4517.75 | L174: 4430 | M174: 0.10685
A175: 165 | B175: GMRINFRA | C175: 43.15 | D175: 42.78 | E175: 42.12 | F175: 41.08 | G175: 40.42 | H175: 43.82 | I175: 44.48 | J175: 45.52 | K175: 43.45 | L175: 41.75 | M175: 176.81931
A176: 166 | B176: GNFC | C176: 423 | D176: 420.25 | E176: 415.80 | F176: 408.60 | G176: 404.15 | H176: 427.45 | I176: 431.90 | J176: 439.10 | K176: 424.7 | L176: 413.05 | M176: 2.9246
A177: 167 | B177: GODFRYPHLP | C177: 1221.95 | D177: 1224.72 | E177: 1212.38 | F177: 1202.82 | G177: 1190.48 | H177: 1234.28 | I177: 1246.62 | J177: 1256.18 | K177: 1237.05 | L177: 1215.15 | M177: 0.11563
A178: 168 | B178: GODREJAGRO | C178: 534.05 | D178: 531.35 | E178: 527.70 | F178: 521.35 | G178: 517.70 | H178: 537.70 | I178: 541.35 | J178: 547.70 | K178: 535 | L178: 525 | M178: 0.55571
A179: 169 | B179: GODREJCP | C179: 930.7 | D179: 926.23 | E179: 919.67 | F179: 908.63 | G179: 902.07 | H179: 937.27 | I179: 943.83 | J179: 954.87 | K179: 932.8 | L179: 915.2 | M179: 5.66133
A180: 170 | B180: GODREJIND | C180: 583.85 | D180: 583.38 | E180: 578.17 | F180: 572.48 | G180: 567.27 | H180: 589.07 | I180: 594.28 | J180: 599.97 | K180: 588.6 | L180: 577.7 | M180: 0.81076
A181: 171 | B181: GODREJPROP | C181: 2082.5 | D181: 2060.83 | E181: 2033.67 | F181: 1984.83 | G181: 1957.67 | H181: 2109.67 | I181: 2136.83 | J181: 2185.67 | K181: 2088 | L181: 2012 | M181: 9.96662
A182: 172 | B182: GPPL | C182: 99.5 | D182: 100.18 | E182: 98.47 | F182: 97.43 | G182: 95.72 | H182: 101.22 | I182: 102.93 | J182: 103.97 | K182: 101.9 | L182: 99.15 | M182: 2.72793
A183: 173 | B183: GRANULES | C183: 340.85 | D183: 341.23 | E183: 335.67 | F183: 330.48 | G183: 324.92 | H183: 346.42 | I183: 351.98 | J183: 357.17 | K183: 346.8 | L183: 336.05 | M183: 17.23185
A184: 174 | B184: GRAPHITE | C184: 432.2 | D184: 432.38 | E184: 424.87 | F184: 417.53 | G184: 410.02 | H184: 439.72 | I184: 447.23 | J184: 454.57 | K184: 439.9 | L184: 425.05 | M184: 5.04001
A185: 175 | B185: GRASIM | C185: 1722 | D185: 1725.78 | E185: 1706.67 | F185: 1691.33 | G185: 1672.22 | H185: 1741.12 | I185: 1760.23 | J185: 1775.57 | K185: 1744.9 | L185: 1710.45 | M185: 6.12932
A186: 176 | B186: GREAVESCOT | C186: 148.7 | D186: 148.60 | E186: 146.70 | F186: 144.70 | G186: 142.80 | H186: 150.60 | I186: 152.50 | J186: 154.50 | K186: 150.5 | L186: 146.6 | M186: 13.41098
A187: 177 | B187: GRINDWELL | C187: 1817.8 | D187: 1822.20 | E187: 1795.70 | F187: 1773.60 | G187: 1747.10 | H187: 1844.30 | I187: 1870.80 | J187: 1892.90 | K187: 1848.7 | L187: 1800.1 | M187: 1.01136
A188: 178 | B188: GSFC | C188: 121.7 | D188: 121.47 | E188: 120.03 | F188: 118.37 | G188: 116.93 | H188: 123.13 | I188: 124.57 | J188: 126.23 | K188: 122.9 | L188: 119.8 | M188: 7.57635
A189: 179 | B189: GSPL | C189: 318.6 | D189: 319.52 | E189: 313.03 | F189: 307.47 | G189: 300.98 | H189: 325.08 | I189: 331.57 | J189: 337.13 | K189: 326 | L189: 313.95 | M189: 20.58622
A190: 180 | B190: GUJALKALI | C190: 655.1 | D190: 660.08 | E190: 646.17 | F190: 637.23 | G190: 623.32 | H190: 669.02 | I190: 682.93 | J190: 691.87 | K190: 674 | L190: 651.15 | M190: 2.3578
A191: 181 | B191: GUJGASLTD | C191: 664.9 | D191: 663.33 | E191: 658.37 | F191: 651.83 | G191: 646.87 | H191: 669.87 | I191: 674.83 | J191: 681.37 | K191: 668.3 | L191: 656.8 | M191: 5.01164
A192: 182 | B192: HAL | C192: 1287.6 | D192: 1292.20 | E192: 1276.40 | F192: 1265.20 | G192: 1249.40 | H192: 1303.40 | I192: 1319.20 | J192: 1330.40 | K192: 1308 | L192: 1281 | M192: 3.8518
A193: 183 | B193: HAPPSTMNDS | C193: 1270.9 | D193: 1276.97 | E193: 1253.93 | F193: 1236.97 | G193: 1213.93 | H193: 1293.93 | I193: 1316.97 | J193: 1333.93 | K193: 1300 | L193: 1260 | M193: 0.67575
A194: 184 | B194: HATHWAY | C194: 22.15 | D194: 22.32 | E194: 21.88 | F194: 21.62 | G194: 21.18 | H194: 22.58 | I194: 23.02 | J194: 23.28 | K194: 22.75 | L194: 22.05 | M194: 73.38795
A195: 185 | B195: HATSUN | C195: 1284.3 | D195: 1291.20 | E195: 1258.45 | F195: 1232.60 | G195: 1199.85 | H195: 1317.05 | I195: 1349.80 | J195: 1375.65 | K195: 1323.95 | L195: 1265.35 | M195: 0.37267
A196: 186 | B196: HAVELLS | C196: 1352.45 | D196: 1355.13 | E196: 1337.32 | F196: 1322.18 | G196: 1304.37 | H196: 1370.27 | I196: 1388.08 | J196: 1403.22 | K196: 1372.95 | L196: 1340 | M196: 13.22715
A197: 187 | B197: HCLTECH | C197: 1162.35 | D197: 1157.92 | E197: 1149.93 | F197: 1137.52 | G197: 1129.53 | H197: 1170.33 | I197: 1178.32 | J197: 1190.73 | K197: 1165.9 | L197: 1145.5 | M197: 19.72685
A198: 188 | B198: HDFC | C198: 2751.95 | D198: 2745.52 | E198: 2727.03 | F198: 2702.12 | G198: 2683.63 | H198: 2770.43 | I198: 2788.92 | J198: 2813.83 | K198: 2764 | L198: 2720.6 | M198: 20.39433
A199: 189 | B199: HDFCAMC | C199: 2487.2 | D199: 2492.20 | E199: 2471.00 | F199: 2454.80 | G199: 2433.60 | H199: 2508.40 | I199: 2529.60 | J199: 2545.80 | K199: 2513.4 | L199: 2476 | M199: 2.42029
A200: 190 | B200: HDFCBANK | C200: 1502.45 | D200: 1505.17 | E200: 1494.33 | F200: 1486.22 | G200: 1475.38 | H200: 1513.28 | I200: 1524.12 | J200: 1532.23 | K200: 1516 | L200: 1497.05 | M200: 45.9555
A201: 191 | B201: HDFCLIFE | C201: 669.5 | D201: 671.05 | E201: 664.10 | F201: 658.70 | G201: 651.75 | H201: 676.45 | I201: 683.40 | J201: 688.80 | K201: 678 | L201: 665.65 | M201: 20.93071
A202: 192 | B202: HEG | C202: 1759.45 | D202: 1774.78 | E202: 1739.67 | F202: 1719.88 | G202: 1684.77 | H202: 1794.57 | I202: 1829.68 | J202: 1849.47 | K202: 1809.9 | L202: 1755 | M202: 1.1869
A203: 193 | B203: HEIDELBERG | C203: 221.2 | D203: 222.93 | E203: 218.87 | F203: 216.53 | G203: 212.47 | H203: 225.27 | I203: 229.33 | J203: 231.67 | K203: 227 | L203: 220.6 | M203: 1.21547
A204: 194 | B204: HEMIPROP | C204: 134.15 | D204: 134.57 | E204: 133.08 | F204: 132.02 | G204: 130.53 | H204: 135.63 | I204: 137.12 | J204: 138.18 | K204: 136.05 | L204: 133.5 | M204: 3.28101
A205: 195 | B205: HEROMOTOCO | C205: 2483.8 | D205: 2477.27 | E205: 2466.53 | F205: 2449.27 | G205: 2438.53 | H205: 2494.53 | I205: 2505.27 | J205: 2522.53 | K205: 2488 | L205: 2460 | M205: 3.65318
A206: 196 | B206: HFCL | C206: 80.45 | D206: 82.38 | E206: 77.87 | F206: 75.28 | G206: 70.77 | H206: 84.97 | I206: 89.48 | J206: 92.07 | K206: 86.9 | L206: 79.8 | M206: 464.04854
... 320 more rows

Sheet Bulk Deals
E6: Back To Main Page
A7: Subject : | B7: BULK DEAL | D7: =Main!B10 -> 2021-12-15
A9: Date | B9: Scrip code | C9: Scrip Name | D9: Client Name | E9: Buy / Sell | F9: Quantity Traded | G9: Trade Price / Wt.Avg.trade price | H9: Exchange
A10: 2021-12-14 | B10: 540146 | C10: ACML | D10: INVICTUS STOCK RESEARCH PRIVATE LIMITED | E10: SELL | F10: 100,000 | G10: 47.75 | H10: BSE
A11: 2021-12-14 | B11: 540923 | C11: AML | D11: SUSHIL KUMAR JAIN HUF | E11: SELL | F11: 54,000 | G11: 5.8 | H11: BSE
A12: 2021-12-14 | B12: 540923 | C12: AML | D12: ASHISH NAHATA | E12: BUY | F12: 54,000 | G12: 5.8 | H12: BSE
A13: 2021-12-14 | B13: 530109 | C13: ANUPAM | D13: MANSUKH VALJI BORICHA | E13: SELL | F13: 1,350,000 | G13: 3.31 | H13: BSE
A14: 2021-12-14 | B14: 519532 | C14: ASIANTNE | D14: PUSHPA BHAJU | E14: SELL | F14: 95,000 | G14: 32.55 | H14: BSE
A15: 2021-12-14 | B15: 514272 | C15: BHILSPIN | D15: FASHION SUITINGS PVT LTD | E15: SELL | F15: 42,000 | G15: 21.38 | H15: BSE
A16: 2021-12-14 | B16: 530249 | C16: BRIDGESE | D16: ALPHA LEON ENTERPRISES LLP | E16: SELL | F16: 33,019 | G16: 44.62 | H16: BSE
A17: 2021-12-14 | B17: 535267 | C17: COMFINCAP | D17: PARASRAMPURIA INFRASTRUCTURE LLP . | E17: BUY | F17: 722 | G17: 69.63 | H17: BSE
A18: 2021-12-14 | B18: 535267 | C18: COMFINCAP | D18: PARASRAMPURIA INFRASTRUCTURE LLP . | E18: SELL | F18: 59,522 | G18: 70.42 | H18: BSE
A19: 2021-12-14 | B19: 512379 | C19: CRESSAN | D19: TANGO COMMOSALES LLP | E19: SELL | F19: 3,589,284 | G19: 6.26 | H19: BSE
A20: 2021-12-14 | B20: 524752 | C20: DECIPHER | D20: RATNESHKUMARPRAVAKER | E20: SELL | F20: 83,036 | G20: 79.45 | H20: BSE
A21: 2021-12-14 | B21: 524752 | C21: DECIPHER | D21: A & S WEALTH CREATIONS PRIVATE LIMITED | E21: BUY | F21: 81,492 | G21: 77.68 | H21: BSE
A22: 2021-12-14 | B22: 524752 | C22: DECIPHER | D22: A & S WEALTH CREATIONS PRIVATE LIMITED | E22: SELL | F22: 81,492 | G22: 78.88 | H22: BSE
A23: 2021-12-14 | B23: 524752 | C23: DECIPHER | D23: PAVAN KUMAR | E23: SELL | F23: 272,217 | G23: 79.45 | H23: BSE
A24: 2021-12-14 | B24: 542724 | C24: EARUM | D24: AKSHAY RAJENDRABHAI OSWAL | E24: BUY | F24: 92,147 | G24: 61.05 | H24: BSE
A25: 2021-12-14 | B25: 542724 | C25: EARUM | D25: AKSHAY RAJENDRABHAI OSWAL | E25: SELL | F25: 92,147 | G25: 61.48 | H25: BSE
A26: 2021-12-14 | B26: 523277 | C26: GVFILM | D26: DEEPTHI BALAGIRI | E26: SELL | F26: 10,000,000 | G26: 0.8 | H26: BSE
A27: 2021-12-14 | B27: 540377 | C27: IFL | D27: SHIELD FINANCE PVT LTD | E27: SELL | F27: 24,000 | G27: 20.5 | H27: BSE
A28: 2021-12-14 | B28: 540377 | C28: IFL | D28: RAHUL ANANTRAI MEHTA | E28: SELL | F28: 24,000 | G28: 20.4 | H28: BSE
A29: 2021-12-14 | B29: 540377 | C29: IFL | D29: TARUNABEN LALJIBHAI TRIVEDI | E29: BUY | F29: 24,000 | G29: 19.95 | H29: BSE
A30: 2021-12-14 | B30: 540377 | C30: IFL | D30: AAMIR MEHBUBBHAI AJMERWALA | E30: BUY | F30: 24,000 | G30: 20.5 | H30: BSE
A31: 2021-12-14 | B31: 540377 | C31: IFL | D31: SANJAY KUMAR SHARMA | E31: SELL | F31: 24,000 | G31: 19.95 | H31: BSE
A32: 2021-12-14 | B32: 540377 | C32: IFL | D32: LALJIBHAI BHOGILAL TRIVEDI | E32: BUY | F32: 18,000 | G32: 20.45 | H32: BSE
A33: 2021-12-14 | B33: 517571 | C33: INDLMETER | D33: DB (INTL) OWN TRADING | E33: BUY | F33: 13,079 | G33: 18.69 | H33: BSE
A34: 2021-12-14 | B34: 517571 | C34: INDLMETER | D34: DB (INTL) OWN TRADING | E34: SELL | F34: 59,631 | G34: 19.72 | H34: BSE
A35: 2021-12-14 | B35: 517571 | C35: INDLMETER | D35: QNANCE RESEARCH CAPITAL LLP | E35: BUY | F35: 74,307 | G35: 19.34 | H35: BSE
A36: 2021-12-14 | B36: 517571 | C36: INDLMETER | D36: QNANCE RESEARCH CAPITAL LLP | E36: SELL | F36: 107,783 | G36: 19.38 | H36: BSE
A37: 2021-12-14 | B37: 539679 | C37: KAPILRAJ | D37: MADHU NEELESH KUMAR LAHOTI | E37: BUY | F37: 250,000 | G37: 10 | H37: BSE
A38: 2021-12-14 | B38: 539679 | C38: KAPILRAJ | D38: SANJAY KASHYAP | E38: SELL | F38: 55,000 | G38: 10 | H38: BSE
A39: 2021-12-14 | B39: 539679 | C39: KAPILRAJ | D39: SHAM KUMAR | E39: SELL | F39: 33,120 | G39: 10.08 | H39: BSE
A40: 2021-12-14 | B40: 539679 | C40: KAPILRAJ | D40: ANIL NAGPAL | E40: SELL | F40: 73,369 | G40: 10 | H40: BSE
A41: 2021-12-14 | B41: 539679 | C41: KAPILRAJ | D41: BANISH MEHTA | E41: BUY | F41: 29,420 | G41: 10.3 | H41: BSE
A42: 2021-12-14 | B42: 539679 | C42: KAPILRAJ | D42: MEENA KOHLI | E42: SELL | F42: 55,000 | G42: 10 | H42: BSE
A43: 2021-12-14 | B43: 539814 | C43: LELAVOIR | D43: KRUTI KEVIN KAPADIA | E43: BUY | F43: 1,403 | G43: 39.54 | H43: BSE
A44: 2021-12-14 | B44: 539814 | C44: LELAVOIR | D44: KRUTI KEVIN KAPADIA | E44: SELL | F44: 20,500 | G44: 39.5 | H44: BSE
A45: 2021-12-14 | B45: 505523 | C45: MAHACORP | D45: ALPHA LEON ENTERPRISES LLP | E45: SELL | F45: 1,200,004 | G45: 0.75 | H45: BSE
A46: 2021-12-14 | B46: 537800 | C46: MANGIND | D46: SMILE SUPPLIERS PRIVATE LIMITED | E46: SELL | F46: 5,000,000 | G46: 4.6 | H46: BSE
A47: 2021-12-14 | B47: 541337 | C47: MILEFUR | D47: ANJALEE EXIM PRIVATE LIMITED | E47: SELL | F47: 159,000 | G47: 17.59 | H47: BSE
A48: 2021-12-14 | B48: 531834 | C48: NATHUEC | D48: ALANKIT ASSIGNMENTS LIMITED | E48: BUY | F48: 28,790 | G48: 5.22 | H48: BSE
A49: 2021-12-14 | B49: 531834 | C49: NATHUEC | D49: SHREE GAJRAJ FINLEASE PRIVATE LIMITED | E49: SELL | F49: 26,590 | G49: 5.22 | H49: BSE
A50: 2021-12-14 | B50: 543207 | C50: NATURAL | D50: NAVEEN GUPTA | E50: BUY | F50: 96,404 | G50: 15.16 | H50: BSE
A51: 2021-12-14 | B51: 543207 | C51: NATURAL | D51: NAVEEN GUPTA | E51: SELL | F51: 86,404 | G51: 15.01 | H51: BSE
A52: 2021-12-14 | B52: 543207 | C52: NATURAL | D52: RIPALBEN DHARMIKKUMAR PARIKH | E52: BUY | F52: 135,178 | G52: 15.06 | H52: BSE
A53: 2021-12-14 | B53: 543207 | C53: NATURAL | D53: RIPALBEN DHARMIKKUMAR PARIKH | E53: SELL | F53: 63,159 | G53: 15.14 | H53: BSE
A54: 2021-12-14 | B54: 530557 | C54: NCLRESE | D54: ALPHA LEON ENTERPRISES LLP | E54: BUY | F54: 10,472 | G54: 1.65 | H54: BSE
A55: 2021-12-14 | B55: 530557 | C55: NCLRESE | D55: ALPHA LEON ENTERPRISES LLP | E55: SELL | F55: 3,094,482 | G55: 1.64 | H55: BSE
A56: 2021-12-14 | B56: 539287 | C56: ORTINLAABS | D56: QNANCE RESEARCH CAPITAL LLP | E56: BUY | F56: 20,141 | G56: 34.27 | H56: BSE
A57: 2021-12-14 | B57: 539287 | C57: ORTINLAABS | D57: QNANCE RESEARCH CAPITAL LLP | E57: SELL | F57: 57,334 | G57: 36 | H57: BSE
A58: 2021-12-14 | B58: 539287 | C58: ORTINLAABS | D58: MANSI SHARE & STOCK ADVISORS PRIVATE LIMITED | E58: BUY | F58: 50,001 | G58: 36.65 | H58: BSE
A59: 2021-12-14 | B59: 539287 | C59: ORTINLAABS | D59: MANSI SHARE & STOCK ADVISORS PRIVATE LIMITED | E59: SELL | F59: 1 | G59: 36 | H59: BSE
A60: 2021-12-14 | B60: 539291 | C60: OZONEWORLD | D60: KANTILAL MANISHA MARDIA | E60: BUY | F60: 20,000 | G60: 12.55 | H60: BSE
A61: 2021-12-14 | B61: 539291 | C61: OZONEWORLD | D61: PARESH NARANBHAI PRAJAPATI | E61: SELL | F61: 30,000 | G61: 12.55 | H61: BSE
A62: 2021-12-14 | B62: 531802 | C62: PRERINFRA | D62: RITIKA CHINTAN PARIKH | E62: BUY | F62: 74,245 | G62: 34.63 | H62: BSE
A63: 2021-12-14 | B63: 512217 | C63: PRISMMEDI | D63: NAVEEN GUPTA | E63: BUY | F63: 34,162 | G63: 9.55 | H63: BSE
A64: 2021-12-14 | B64: 512217 | C64: PRISMMEDI | D64: NAVEEN GUPTA | E64: SELL | F64: 14,815 | G64: 9.04 | H64: BSE
A65: 2021-12-14 | B65: 543375 | C65: PROMAX | D65: NEETIKARANI | E65: BUY | F65: 40,000 | G65: 28.09 | H65: BSE
A66: 2021-12-14 | B66: 543375 | C66: PROMAX | D66: NEETIKARANI | E66: SELL | F66: 30,000 | G66: 28.35 | H66: BSE
A67: 2021-12-14 | B67: 530461 | C67: SABOOSOD | D67: ARCHANA DEVI SABOO | E67: SELL | F67: 138,000 | G67: 25.47 | H67: BSE
A68: 2021-12-14 | B68: 512499 | C68: SHALPRO | D68: TURBOT TRADERS PRIVATE LIMITED | E68: SELL | F68: 10,000,000 | G68: 0.49 | H68: BSE
A69: 2021-12-14 | B69: 512499 | C69: SHALPRO | D69: SPOONBILL CONSULTANCY SERVICES PRIVATE LIMITED . | E69: SELL | F69: 15,179,981 | G69: 0.49 | H69: BSE
A70: 2021-12-14 | B70: 512499 | C70: SHALPRO | D70: ALPHA LEON ENTERPRISES LLP | E70: BUY | F70: 19,609,966 | G70: 0.49 | H70: BSE
A71: 2021-12-14 | B71: 512499 | C71: SHALPRO | D71: ALPHA LEON ENTERPRISES LLP | E71: SELL | F71: 4,943,102 | G71: 0.49 | H71: BSE
A72: 2021-12-14 | B72: 512499 | C72: SHALPRO | D72: TOPGAIN FINANCE PRIVATE LIMITED | E72: BUY | F72: 8,173,230 | G72: 0.49 | H72: BSE
A73: 2021-12-14 | B73: 512499 | C73: SHALPRO | D73: TOPGAIN FINANCE PRIVATE LIMITED | E73: SELL | F73: 3,173,230 | G73: 0.49 | H73: BSE
A74: 2021-12-14 | B74: 512499 | C74: SHALPRO | D74: MANSI SHARE & STOCK ADVISORS PRIVATE LIMITED | E74: BUY | F74: 10,000,000 | G74: 0.49 | H74: BSE
A75: 2021-12-14 | B75: 512499 | C75: SHALPRO | D75: COBIA DISTRIBUTORS PRIVATE LIMITED . | E75: SELL | F75: 5,000,000 | G75: 0.49 | H75: BSE
A76: 2021-12-14 | B76: 512499 | C76: SHALPRO | D76: STARLINK MANAGEMENT SERVICES PRIVATE LIMITED . | E76: SELL | F76: 5,000,000 | G76: 0.49 | H76: BSE
A77: 2021-12-14 | B77: 512499 | C77: SHALPRO | D77: TURBOT MARKETING PRIVATE LIMITED . | E77: SELL | F77: 6,000,000 | G77: 0.49 | H77: BSE
A78: 2021-12-14 | B78: 505515 | C78: SHYMINV | D78: QUMIN PHARMA PRIVATE LIMITED | E78: BUY | F78: 71,000 | G78: 13.68 | H78: BSE
A79: 2021-12-14 | B79: 505515 | C79: SHYMINV | D79: SHIKHA ANKIT CHOUDHARY | E79: SELL | F79: 156,234 | G79: 13.67 | H79: BSE
A80: 2021-12-14 | B80: 505515 | C80: SHYMINV | D80: AGRAWAL NIKUNJ | E80: BUY | F80: 57,880 | G80: 13.66 | H80: BSE
A81: 2021-12-14 | B81: 533019 | C81: SIMPLXPAP | D81: ALPHA LEON ENTERPRISES LLP | E81: BUY | F81: 17,680 | G81: 73.1 | H81: BSE
A82: 2021-12-14 | B82: 539026 | C82: SSPNFIN | D82: ESPS FINSERVE PRIVATE LIMITED | E82: SELL | F82: 48,000 | G82: 7.75 | H82: BSE
A83: 2021-12-14 | B83: 539026 | C83: SSPNFIN | D83: KAVITA AGARWAL | E83: BUY | F83: 48,000 | G83: 7.75 | H83: BSE
A84: 2021-12-14 | B84: 538610 | C84: UNISON | D84: JIGNESH PRAVINBHAI PETHANI | E84: SELL | F84: 175,000 | G84: 70.35 | H84: BSE
A85: 2021-12-14 | B85: 531025 | C85: VISAGAR | D85: ALPHA LEON ENTERPRISES LLP | E85: BUY | F85: 205,806 | G85: 4.5 | H85: BSE
A86: 2021-12-14 | B86: 531025 | C86: VISAGAR | D86: ALPHA LEON ENTERPRISES LLP | E86: SELL | F86: 6,419 | G86: 4.5 | H86: BSE
A87: 2021-12-14 | B87: 511012 | C87: YAMNINV | D87: SURBHI INFRAPROJECT PRIVATE LIMITED | E87: SELL | F87: 15,064,713 | G87: 1 | H87: BSE
A88: 2021-12-14 | B88: ANANDRATHI | C88: Anand Rathi Wealth Ltd | D88: GOLDMINE STOCKS PRIVATE LIMITED | E88: BUY | F88: 266,786 | G88: 587.41 | H88: NSE
A89: 2021-12-14 | B89: ANANDRATHI | C89: Anand Rathi Wealth Ltd | D89: ELIXIR WEALTH MANAGEMENT PRIVATE LIMITED | E89: BUY | F89: 259,810 | G89: 589.67 | H89: NSE
A90: 2021-12-14 | B90: ANANDRATHI | C90: Anand Rathi Wealth Ltd | D90: VAIBHAV STOCK AND DERIVATIVES BROKING PRIVATE LIMITED | E90: BUY | F90: 227,759 | G90: 590.31 | H90: NSE
A91: 2021-12-14 | B91: ANANDRATHI | C91: Anand Rathi Wealth Ltd | D91: ECHJAY INDUSTRIES PRIVATE LIMITED | E91: BUY | F91: 342,871 | G91: 598.26 | H91: NSE
A92: 2021-12-14 | B92: ANANDRATHI | C92: Anand Rathi Wealth Ltd | D92: KAMNA CREDITS AND PROMOTERS PRIVATE LIMITED | E92: BUY | F92: 300,000 | G92: 600 | H92: NSE
A93: 2021-12-14 | B93: ANANDRATHI | C93: Anand Rathi Wealth Ltd | D93: MUSIGMA SECURITIES | E93: BUY | F93: 219,902 | G93: 588.54 | H93: NSE
A94: 2021-12-14 | B94: ANANDRATHI | C94: Anand Rathi Wealth Ltd | D94: MARWADI SHARES AND FINANCE LTD. | E94: BUY | F94: 314,419 | G94: 587.75 | H94: NSE
A95: 2021-12-14 | B95: ANANDRATHI | C95: Anand Rathi Wealth Ltd | D95: TOWER RESEARCH CAPITAL MARKETS INDIA PRIVATE LIMITED | E95: BUY | F95: 286,392 | G95: 588.51 | H95: NSE
A96: 2021-12-14 | B96: ANANDRATHI | C96: Anand Rathi Wealth Ltd | D96: NK SECURITIES RESEARCH PRIVATE LIMITED | E96: BUY | F96: 317,164 | G96: 595.55 | H96: NSE
A97: 2021-12-14 | B97: ANANDRATHI | C97: Anand Rathi Wealth Ltd | D97: AALIDHRA TEXTOOL ENGINEERS PRIVATE LIMITED | E97: BUY | F97: 300,000 | G97: 575.1 | H97: NSE
A98: 2021-12-14 | B98: ASLIND | C98: ASL Industries Limited | D98: ABHINAV COMMOSALES | E98: BUY | F98: 92,000 | G98: 33.1 | H98: NSE
A99: 2021-12-14 | B99: ASLIND | C99: ASL Industries Limited | D99: GAURI NANDAN TRADERS | E99: BUY | F99: 92,000 | G99: 33.1 | H99: NSE
A100: 2021-12-14 | B100: ASLIND | C100: ASL Industries Limited | D100: KABEELON SALES CORP | E100: BUY | F100: 92,000 | G100: 33.1 | H100: NSE
A101: 2021-12-14 | B101: BOMDYEING | C101: Bombay Dyeing & Mfg Co. | D101: QE SECURITIES | E101: BUY | F101: 1,408,254 | G101: 103.99 | H101: NSE
A102: 2021-12-14 | B102: BOMDYEING | C102: Bombay Dyeing & Mfg Co. | D102: GRAVITON RESEARCH CAPITAL LLP | E102: BUY | F102: 1,307,449 | G102: 104.07 | H102: NSE
A103: 2021-12-14 | B103: BSE | C103: BSE Limited | D103: XTX MARKETS LLP | E103: BUY | F103: 347,898 | G103: 2209.49 | H103: NSE
A104: 2021-12-14 | B104: CALSOFT | C104: CaliforniaSoft- Roll Sett | D104: ALPHA LEON ENTERPRISES LLP | E104: BUY | F104: 37,152 | G104: 41.45 | H104: NSE
A105: 2021-12-14 | B105: CALSOFT | C105: CaliforniaSoft- Roll Sett | D105: AGARWAL RAHUL | E105: BUY | F105: 153,000 | G105: 41.42 | H105: NSE
A106: 2021-12-14 | B106: DSML | C106: Debock Sale Marketing Ltd | D106: RAMESH BHANDAPPA MUNNOLI | E106: BUY | F106: 54,000 | G106: 106.68 | H106: NSE
A107: 2021-12-14 | B107: DSML | C107: Debock Sale Marketing Ltd | D107: SUNDER SINGH | E107: BUY | F107: 42,000 | G107: 102.49 | H107: NSE
A108: 2021-12-14 | B108: DSML | C108: Debock Sale Marketing Ltd | D108: CHINTANBEN MANSUKHBHAI NAKRANI | E108: BUY | F108: 42,000 | G108: 102.5 | H108: NSE
A109: 2021-12-14 | B109: GAL | C109: Gyscoal Alloys Ltd | D109: MANSI SHARES & STOCK ADVISORS PVT LTD | E109: BUY | F109: 880,140 | G109: 3.35 | H109: NSE
A110: 2021-12-14 | B110: INDLMETER | C110: IMP Powers Ltd | D110: JAIN POOJA | E110: BUY | F110: 40,000 | G110: 19.84 | H110: NSE
A111: 2021-12-14 | B111: INDLMETER | C111: IMP Powers Ltd | D111: GAURAV DOSHI | E111: BUY | F111: 50,000 | G111: 19.89 | H111: NSE
A112: 2021-12-14 | B112: INDLMETER | C112: IMP Powers Ltd | D112: DARSHAN FINANCIAL SERVICES PVT LTD | E112: BUY | F112: 48,000 | G112: 19.07 | H112: NSE
A113: 2021-12-14 | B113: INDLMETER | C113: IMP Powers Ltd | D113: TOUCHSTONE CAPITAL MARKET SERVICES PVT LTD | E113: BUY | F113: 59,000 | G113: 19.83 | H113: NSE
A114: 2021-12-14 | B114: INDLMETER | C114: IMP Powers Ltd | D114: BONANZA PORTFOLIO LTD | E114: BUY | F114: 62,614 | G114: 19.72 | H114: NSE
A115: 2021-12-14 | B115: INDLMETER | C115: IMP Powers Ltd | D115: NK SECURITIES RESEARCH PRIVATE LIMITED | E115: BUY | F115: 166,976 | G115: 19.33 | H115: NSE
A116: 2021-12-14 | B116: INDLMETER | C116: IMP Powers Ltd | D116: PRASHANT EQUITY MANAGEMENT PRIVATE LIMITED | E116: BUY | F116: 25,012 | G116: 19.9 | H116: NSE
A117: 2021-12-14 | B117: INDLMETER | C117: IMP Powers Ltd | D117: AMIT KUMAR JAIN HUF | E117: BUY | F117: 110,052 | G117: 19.88 | H117: NSE
A118: 2021-12-14 | B118: INDLMETER | C118: IMP Powers Ltd | D118: DB INTERNATIONAL STOCK BROKERS LIMITED | E118: BUY | F118: 59,631 | G118: 19.73 | H118: NSE
A119: 2021-12-14 | B119: INDLMETER | C119: IMP Powers Ltd | D119: MATALIA STOCK BROKING TRADING A/C | E119: BUY | F119: 63,887 | G119: 19.31 | H119: NSE
A120: 2021-12-14 | B120: INDLMETER | C120: IMP Powers Ltd | D120: MUKUL MAHESHWARI (HUF) | E120: BUY | F120: 15,000 | G120: 18.79 | H120: NSE
A121: 2021-12-14 | B121: INDLMETER | C121: IMP Powers Ltd | D121: QNANCE RESEARCH CAPITAL LLP | E121: BUY | F121: 105,286 | G121: 19.34 | H121: NSE
A122: 2021-12-14 | B122: JAKHARIA | C122: JAKHARIA FABRIC LIMITED | D122: NOPEA CAPITAL SERVICES PRIVATE LIMITED | E122: BUY | F122: 36,000 | G122: 143.25 | H122: NSE
A123: 2021-12-14 | B123: JAKHARIA | C123: JAKHARIA FABRIC LIMITED | D123: S K GROWTH FUND PVT.LTD. | E123: BUY | F123: 38,400 | G123: 143.25 | H123: NSE
A124: 2021-12-14 | B124: KOTYARK | C124: Kotyark Industries Ltd | D124: DHARA PARESHBHAI PRAJAPATI | E124: BUY | F124: 46,000 | G124: 100 | H124: NSE
A125: 2021-12-14 | B125: LIBAS | C125: Libas Consu Products Ltd | D125: P S SHETH | E125: BUY | F125: 135,897 | G125: 31.29 | H125: NSE
A126: 2021-12-14 | B126: LIBAS | C126: Libas Consu Products Ltd | D126: VISA CAPITAL PARTNERS | E126: BUY | F126: 112,877 | G126: 31.61 | H126: NSE
A127: 2021-12-14 | B127: LIBAS | C127: Libas Consu Products Ltd | D127: ANISH J SARAF HUF | E127: BUY | F127: 200,000 | G127: 31.17 | H127: NSE
A128: 2021-12-14 | B128: MTEDUCARE | C128: MT Educare Ltd | D128: TOPGAIN FINANCE PRIVATE LIMITED | E128: BUY | F128: 861,642 | G128: 10.39 | H128: NSE
A129: 2021-12-14 | B129: MTEDUCARE | C129: MT Educare Ltd | D129: MULTIPLIER S AND S ADV PVT LTD | E129: BUY | F129: 725,523 | G129: 10.41 | H129: NSE
A130: 2021-12-14 | B130: ORTINLAB | C130: Ortin Laboratories Ltd | D130: MANSI SHARES & STOCK ADVISORS PVT LTD | E130: BUY | F130: 100,000 | G130: 36.79 | H130: NSE
A131: 2021-12-14 | B131: ORTINLAB | C131: Ortin Laboratories Ltd | D131: JAIN POOJA | E131: BUY | F131: 110,648 | G131: 35 | H131: NSE
A132: 2021-12-14 | B132: ORTINLAB | C132: Ortin Laboratories Ltd | D132: QNANCE RESEARCH CAPITAL LLP | E132: BUY | F132: 56,768 | G132: 35.83 | H132: NSE
A133: 2021-12-14 | B133: ORTINLAB | C133: Ortin Laboratories Ltd | D133: RAJESH KOLEKAR HUF | E133: BUY | F133: 64,329 | G133: 35.81 | H133: NSE
A134: 2021-12-14 | B134: ORTINLAB | C134: Ortin Laboratories Ltd | D134: VIJIT TRADING | E134: BUY | F134: 45,000 | G134: 36.75 | H134: NSE
A135: 2021-12-14 | B135: ORTINLAB | C135: Ortin Laboratories Ltd | D135: MUKUL MAHESHWARI (HUF) | E135: BUY | F135: 189,929 | G135: 35.05 | H135: NSE
A136: 2021-12-14 | B136: PARTYCRUS | C136: Party Cruisers Limited | D136: AKSHAY RAJENDRABHAI OSWALS | E136: BUY | F136: 48,000 | G136: 54.61 | H136: NSE
A137: 2021-12-14 | B137: PARTYCRUS | C137: Party Cruisers Limited | D137: RAJESHBHAI BHAGATBHAI KESHWALA | E137: BUY | F137: 72,000 | G137: 57.51 | H137: NSE
A138: 2021-12-14 | B138: SHRENIK | C138: Shrenik Limited | D138: ADROIT FINANCIAL SERVICES PVT LTD | E138: BUY | F138: 3,389,847 | G138: 2.22 | H138: NSE
A139: 2021-12-14 | B139: TOTAL | C139: Total Transport Sys Ltd | D139: BONANZA PORTFOLIO LTD | E139: BUY | F139: 73,000 | G139: 88.28 | H139: NSE
A140: 2021-12-14 | B140: TOTAL | C140: Total Transport Sys Ltd | D140: MOHAN BABU GUDHE | E140: BUY | F140: 96,262 | G140: 87.01 | H140: NSE
A141: 2021-12-14 | B141: ANANDRATHI | C141: Anand Rathi Wealth Ltd | D141: INTEGRATED CORE STRATEGIES ASIA PTE LTD | E141: SELL | F141: 372,477 | G141: 600 | H141: NSE
A142: 2021-12-14 | B142: ANANDRATHI | C142: Anand Rathi Wealth Ltd | D142: MARWADI SHARES AND FINANCE LTD. | E142: SELL | F142: 314,419 | G142: 585.14 | H142: NSE
A143: 2021-12-14 | B143: ANANDRATHI | C143: Anand Rathi Wealth Ltd | D143: GOLDMINE STOCKS PRIVATE LIMITED | E143: SELL | F143: 266,291 | G143: 587.01 | H143: NSE
A144: 2021-12-14 | B144: ANANDRATHI | C144: Anand Rathi Wealth Ltd | D144: ELIXIR WEALTH MANAGEMENT PRIVATE LIMITED | E144: SELL | F144: 259,810 | G144: 586.91 | H144: NSE
A145: 2021-12-14 | B145: ANANDRATHI | C145: Anand Rathi Wealth Ltd | D145: MUSIGMA SECURITIES | E145: SELL | F145: 219,902 | G145: 588.78 | H145: NSE
A146: 2021-12-14 | B146: ANANDRATHI | C146: Anand Rathi Wealth Ltd | D146: VAIBHAV STOCK AND DERIVATIVES BROKING PRIVATE LIMITED | E146: SELL | F146: 227,759 | G146: 590.49 | H146: NSE
A147: 2021-12-14 | B147: ANANDRATHI | C147: Anand Rathi Wealth Ltd | D147: NK SECURITIES RESEARCH PRIVATE LIMITED | E147: SELL | F147: 317,164 | G147: 595.75 | H147: NSE
A148: 2021-12-14 | B148: ANANDRATHI | C148: Anand Rathi Wealth Ltd | D148: TOWER RESEARCH CAPITAL MARKETS INDIA PRIVATE LIMITED | E148: SELL | F148: 286,392 | G148: 588.72 | H148: NSE
A149: 2021-12-14 | B149: ASLIND | C149: ASL Industries Limited | D149: ASL ENTERPRISES LIMITED | E149: SELL | F149: 92,000 | G149: 33.1 | H149: NSE
A150: 2021-12-14 | B150: ASLIND | C150: ASL Industries Limited | D150: SONAM GOYAL | E150: SELL | F150: 164,000 | G150: 33.1 | H150: NSE
A151: 2021-12-14 | B151: BCP | C151: B.C. Power Controls Ltd | D151: ECOTEK GENERAL TRADING L.L.C | E151: SELL | F151: 2,374,959 | G151: 3.75 | H151: NSE
A152: 2021-12-14 | B152: BEARDSELL | C152: Beardsell Limited | D152: ANUMOLU BHARAT | E152: SELL | F152: 141,093 | G152: 14.42 | H152: NSE
A153: 2021-12-14 | B153: BOMDYEING | C153: Bombay Dyeing & Mfg Co. | D153: QE SECURITIES | E153: SELL | F153: 1,389,178 | G153: 103.92 | H153: NSE
A154: 2021-12-14 | B154: BOMDYEING | C154: Bombay Dyeing & Mfg Co. | D154: GRAVITON RESEARCH CAPITAL LLP | E154: SELL | F154: 1,307,449 | G154: 103.91 | H154: NSE
A155: 2021-12-14 | B155: BRIGHT | C155: Bright Solar Limited | D155: BRAJESH KUMAR | E155: SELL | F155: 156,000 | G155: 4.95 | H155: NSE
A156: 2021-12-14 | B156: BSE | C156: BSE Limited | D156: XTX MARKETS LLP | E156: SELL | F156: 346,312 | G156: 2212.84 | H156: NSE
A157: 2021-12-14 | B157: CALSOFT | C157: CaliforniaSoft- Roll Sett | D157: ALPHA LEON ENTERPRISES LLP | E157: SELL | F157: 103,500 | G157: 41.42 | H157: NSE
A158: 2021-12-14 | B158: DSML | C158: Debock Sale Marketing Ltd | D158: SUNDER SINGH | E158: SELL | F158: 42,000 | G158: 106.06 | H158: NSE
A159: 2021-12-14 | B159: DSML | C159: Debock Sale Marketing Ltd | D159: NANALAL BHANJI DUDHAIYA | E159: SELL | F159: 60,000 | G159: 102.37 | H159: NSE
A160: 2021-12-14 | B160: GAL | C160: Gyscoal Alloys Ltd | D160: MANSI SHARES & STOCK ADVISORS PVT LTD | E160: SELL | F160: 300,000 | G160: 3.29 | H160: NSE
A161: 2021-12-14 | B161: INDLMETER | C161: IMP Powers Ltd | D161: NK SECURITIES RESEARCH PRIVATE LIMITED | E161: SELL | F161: 166,976 | G161: 19.35 | H161: NSE
A162: 2021-12-14 | B162: INDLMETER | C162: IMP Powers Ltd | D162: DB INTERNATIONAL STOCK BROKERS LIMITED | E162: SELL | F162: 13,079 | G162: 18.7 | H162: NSE
A163: 2021-12-14 | B163: INDLMETER | C163: IMP Powers Ltd | D163: SUMANCHEPURI | E163: SELL | F163: 51,000 | G163: 19.68 | H163: NSE
A164: 2021-12-14 | B164: INDLMETER | C164: IMP Powers Ltd | D164: TOUCHSTONE CAPITAL MARKET SERVICES PVT LTD | E164: SELL | F164: 59,000 | G164: 19.8 | H164: NSE
A165: 2021-12-14 | B165: INDLMETER | C165: IMP Powers Ltd | D165: PRASHANT EQUITY MANAGEMENT PRIVATE LIMITED | E165: SELL | F165: 50,012 | G165: 19.89 | H165: NSE
A166: 2021-12-14 | B166: INDLMETER | C166: IMP Powers Ltd | D166: AMIT KUMAR JAIN HUF | E166: SELL | F166: 140,052 | G166: 19.52 | H166: NSE
A167: 2021-12-14 | B167: INDLMETER | C167: IMP Powers Ltd | D167: GAURAV DOSHI | E167: SELL | F167: 75,000 | G167: 19.44 | H167: NSE
A168: 2021-12-14 | B168: INDLMETER | C168: IMP Powers Ltd | D168: QNANCE RESEARCH CAPITAL LLP | E168: SELL | F168: 71,810 | G168: 19.36 | H168: NSE
A169: 2021-12-14 | B169: INDLMETER | C169: IMP Powers Ltd | D169: MUKUL MAHESHWARI (HUF) | E169: SELL | F169: 65,000 | G169: 18.55 | H169: NSE
A170: 2021-12-14 | B170: INDLMETER | C170: IMP Powers Ltd | D170: ANIL AGARWAL | E170: SELL | F170: 60,000 | G170: 19.44 | H170: NSE
A171: 2021-12-14 | B171: INDLMETER | C171: IMP Powers Ltd | D171: MATALIA STOCK BROKING TRADING A/C | E171: SELL | F171: 63,887 | G171: 19.48 | H171: NSE
A172: 2021-12-14 | B172: INDLMETER | C172: IMP Powers Ltd | D172: JAIN POOJA | E172: SELL | F172: 53,790 | G172: 19.02 | H172: NSE
A173: 2021-12-14 | B173: INDLMETER | C173: IMP Powers Ltd | D173: BONANZA PORTFOLIO LTD | E173: SELL | F173: 27,714 | G173: 19.6 | H173: NSE
A174: 2021-12-14 | B174: JAKHARIA | C174: JAKHARIA FABRIC LIMITED | D174: NOPEA CAPITAL SERVICES PRIVATE LIMITED | E174: SELL | F174: 38,400 | G174: 143.25 | H174: NSE
A175: 2021-12-14 | B175: JAKHARIA | C175: JAKHARIA FABRIC LIMITED | D175: RIYAZ DASTHAGIR BARAGIR | E175: SELL | F175: 36,000 | G175: 143.25 | H175: NSE
A176: 2021-12-14 | B176: KOTYARK | C176: Kotyark Industries Ltd | D176: GOENKA BUSINESS & FINANCE LIMITED | E176: SELL | F176: 46,000 | G176: 100 | H176: NSE
A177: 2021-12-14 | B177: LIBAS | C177: Libas Consu Products Ltd | D177: VISA CAPITAL PARTNERS | E177: SELL | F177: 112,877 | G177: 31.24 | H177: NSE
A178: 2021-12-14 | B178: LIBAS | C178: Libas Consu Products Ltd | D178: P S SHETH | E178: SELL | F178: 135,897 | G178: 31.47 | H178: NSE
A179: 2021-12-14 | B179: LIBAS | C179: Libas Consu Products Ltd | D179: MAHIMTURA NISHANT MITRASEN | E179: SELL | F179: 228,845 | G179: 31.16 | H179: NSE
A180: 2021-12-14 | B180: LIBAS | C180: Libas Consu Products Ltd | D180: ANISH J SARAF HUF | E180: SELL | F180: 7,000 | G180: 31.45 | H180: NSE
A181: 2021-12-14 | B181: MTEDUCARE | C181: MT Educare Ltd | D181: MULTIPLIER S AND S ADV PVT LTD | E181: SELL | F181: 175,523 | G181: 10.19 | H181: NSE
A182: 2021-12-14 | B182: MTEDUCARE | C182: MT Educare Ltd | D182: TOPGAIN FINANCE PRIVATE LIMITED | E182: SELL | F182: 544,642 | G182: 10.02 | H182: NSE
A183: 2021-12-14 | B183: ORTINLAB | C183: Ortin Laboratories Ltd | D183: RAJESH KOLEKAR HUF | E183: SELL | F183: 43,547 | G183: 35.69 | H183: NSE
A184: 2021-12-14 | B184: ORTINLAB | C184: Ortin Laboratories Ltd | D184: QNANCE RESEARCH CAPITAL LLP | E184: SELL | F184: 19,575 | G184: 34.39 | H184: NSE
A185: 2021-12-14 | B185: ORTINLAB | C185: Ortin Laboratories Ltd | D185: MUKUL MAHESHWARI (HUF) | E185: SELL | F185: 161,061 | G185: 36.3 | H185: NSE
A186: 2021-12-14 | B186: ORTINLAB | C186: Ortin Laboratories Ltd | D186: JAIN POOJA | E186: SELL | F186: 110,648 | G186: 35.51 | H186: NSE
A187: 2021-12-14 | B187: PARTYCRUS | C187: Party Cruisers Limited | D187: AKSHAY RAJENDRABHAI OSWALS | E187: SELL | F187: 48,000 | G187: 57.65 | H187: NSE
A188: 2021-12-14 | B188: PREMIER | C188: Premier Limited | D188: ANAND RATHI GLOBAL FINANCE LTD | E188: SELL | F188: 346,000 | G188: 10.5 | H188: NSE
A189: 2021-12-14 | B189: SHRENIK | C189: Shrenik Limited | D189: ADROIT FINANCIAL SERVICES PVT LTD | E189: SELL | F189: 2,914,847 | G189: 2.23 | H189: NSE
A190: 2021-12-14 | B190: TOTAL | C190: Total Transport Sys Ltd | D190: MOHAN BABU GUDHE | E190: SELL | F190: 96,262 | G190: 84.3 | H190: NSE
A191: 2021-12-14 | B191: TOTAL | C191: Total Transport Sys Ltd | D191: BONANZA PORTFOLIO LTD | E191: SELL | F191: 51,400 | G191: 88.5 | H191: NSE
A192: 2021-12-14 | B192: VECO-RE1 | C192: VIKAS ECOTECH LIMITED | D192: JAYANT SHAMJI CHHEDA HUF | E192: SELL | F192: 1,582,154 | G192: 0.35 | H192: NSE
A193: 2021-12-14 | B193: WEBELSOLAR | C193: Websol Energy System Ltd | D193: INDIA MAX INVESTMENT FUND | E193: SELL | F193: 270,580 | G193: 83.97 | H193: NSE

Sheet Call Tracker (Equity & F&O)
M5: Back To Main Page
A6: Retail Research Technical Calls & Fundamental Performance Report for the month of Dec-2021
M7: =Main!B10 -> 2021-12-15
B8: Positional Call
A9: Sr.no | B9: Date | D9: Company | E9: Rec | F9: Rec Price | G9: Stop Loss*** | H9: Call Closed At | I9: Target | J9: Remark | K9: Profit / Loss per Share | L9: All charges | M9: Net Gain / Loss % | N9: Status | O9: Closed Date | P9: Market Closing Price
A10: 1 | B10: 2021-10-05 | D10: HDFCLIFE | E10: Buy | F10: 720 | G10: 660 | H10: 675.00 | I10: 820-850 | J10: Loss of Rs.42.5- | K10: =H10-F10 -> -45 | L10: =(F10*-0.7)/100 -> -5.04 | M10: =(K10+L10)/F10 -> -6.95% | N10: Unsuccessful | O10: 2021-12-13 | R10: H
A11: 2 | B11: 2021-10-26 | D11: ICICIGI | E11: Buy | F11: 1480-1500 | G11: 1395 | I11: 1600-1700 | J11: Open | P11: =VLOOKUP(D11,'MidCap Intra'!B29:C522,2,0) -> 1434.95 | R11: H
A12: 3 | B12: 2021-11-25 | D12: IEX | E12: Buy | F12: 772.5 | G12: 730 | H12: 730.00 | I12: 820-860 | J12: Loss of Rs.42.5- | K12: =H12-F12 -> -42.5 | L12: =(F12*-0.7)/100 -> -5.41 | M12: =(K12+L12)/F12 -> -6.20% | N12: Unsuccessful | O12: 2021-12-01 | R12: H
A13: 4 | B13: 2021-11-25 | D13: IPCALAB | E13: Buy | F13: 2065 | G13: 1950 | H13: 2,155.00 | I13: 2200-2250 | J13: Part Profit of Rs.90/- | K13: =H13-F13 -> 90 | L13: =(F13*-0.7)/100 -> -14.46 | M13: =(K13+L13)/F13 -> 3.66% | N13: Successful | O13: 2021-11-30 | R13: H
A14: 5 | B14: 2021-11-26 | D14: SUPREMEIND | E14: Buy | F14: 2160 | G14: 2030 | H14: 2,290.00 | I14: 2400-2500 | J14: Profit of Rs.130/- | K14: =H14-F14 -> 130 | L14: =(F14*-0.7)/100 -> -15.12 | M14: =(K14+L14)/F14 -> 5.32% | N14: Successful | O14: 2021-12-01 | R14: H
A15: 6 | B15: 2021-11-26 | D15: BEL | E15: Buy | F15: 201 | G15: 189 | H15: 213.50 | I15: 214-224 | J15: Profit of Rs.12.50/- | K15: 12.5 | L15: =(F15*-0.7)/100 -> -1.41 | M15: 5.52% | N15: Successful | O15: 2021-12-07 | R15: H
A16: 7 | B16: 2021-12-01 | D16: VTL | E16: Buy | F16: 1970 | G16: 1845 | H16: 2,115.00 | I16: 2100-2200 | J16: Profit of Rs.12.50/- | K16: =H16-F16 -> 145 | L16: =(F16*-0.7)/100 -> -13.79 | M16: =(K16+L16)/F16 -> 6.66% | N16: Successful | O16: 2021-12-14 | R16: H
A17: 8 | B17: 2021-12-02 | D17: CROMPTON | E17: Buy | F17: 435-440 | G17: 414 | I17: 465-475 | J17: Open | P17: =VLOOKUP(D17,'MidCap Intra'!B42:C535,2,0) -> 415.85 | R17: H
A18: 9 | B18: 2021-12-02 | D18: IOC | E18: Buy | F18: 118-120 | G18: 109 | I18: 130-135 | J18: Open | P18: =VLOOKUP(D18,'MidCap Intra'!B43:C536,2,0) -> 117.9 | R18: H
A19: 10 | B19: 2021-12-13 | D19: INDUSTOWER | E19: Buy | F19: 270-274 | G19: 255 | I19: 295-315 | J19: Open | P19: =VLOOKUP(D19,'MidCap Intra'!B44:C537,2,0) -> 266.15
A20: 11 | B20: 2021-12-14 | D20: HDFCLIFE | E20: Buy | F20: 663-668 | G20: 635 | I20: 700-730 | J20: Open | P20: =VLOOKUP(D20,'MidCap Intra'!B45:C538,2,0) -> 669.5
A24: CLBS = Closing Basis ***
A25: Dividend adjusted <> | F25: Reinitiated $
A26: Part book {} | F26: Revised stoploss #
B28: Momentum Call
A29: Sr.no | B29: Date | D29: Company | E29: Rec | F29: Rec Price | G29: Stop Loss | H29: Call Closed At | I29: Target | J29: Remark | K29: Profit / Loss per Share/Lot | L29: All charges | M29: Net Gain / Loss % | N29: Status | O29: Closed Date
A30: 1 | B30: 2021-11-24 | D30: ASIANPAINT | E30: Buy | F30: 3165 | G30: 3080 | H30: 3,080.00 | I30: 3250-3300 | J30: Loss of Rs.85.50/- | K30: =H30-F30 -> -85 | L30: =(F30*-0.7)/100 -> -22.16 | M30: =(K30+L30)/F30 -> -3.39% | N30: Unsuccessful | O30: 2021-12-06 | R30: N
A31: 2 | B31: 2021-11-29 | D31: HCLTECH | E31: Buy | F31: 1134 | G31: 1095 | H31: 1167.5 | I31: 1180-1200 | J31: Profit of Rs.33.5/- | K31: =H31-F31 -> 33.5 | L31: -7.94 | M31: =(K31+L31)/F31 -> 2.25% | N31: Successful | O31: 2021-12-02 | R31: H
A32: 3 | B32: 2021-11-30 | D32: DHANUKA | E32: Buy | F32: 742.5 | G32: 720 | H32: 749 | I32: 765-780 | J32: Profit of Rs.6.5/- | K32: =H32-F32 -> 6.5 | L32: -5.20 | M32: =(K32+L32)/F32 -> 0.18% | N32: Neutral | O32: 2021-12-06 | R32: N
A33: 4 | B33: 2021-11-30 | D33: JBCHEPHARM | E33: Buy | F33: 1615 | G33: 1570 | H33: 1630 | I33: 1660-1700 | J33: Profit of Rs.15/- | K33: =H33-F33 -> 15 | L33: -11.31 | M33: =(K33+L33)/F33 -> 0.23% | N33: Neutral | O33: 2021-12-14 | R33: H
A34: 5 | B34: 2021-12-02 | D34: CIPLA | E34: Buy | F34: 929 | G34: 896 | H34: 896.00 | I34: 970-990 | J34: Loss of Rs.33/- | K34: =H34-F34 -> -33 | L34: -6.50 | M34: =(K34+L34)/F34 -> -4.25% | N34: Unsuccessful | O34: 2021-12-07 | R34: H
A35: 6 | B35: 2021-12-02 | D35: BIOCON | E35: Buy | F35: 364.5 | G35: 355 | H35: 375 | I35: 375-385 | J35: Profit of Rs.10.5/- | K35: 10.5 | L35: -2.55 | M35: 2.18% | N35: Successful | O35: 2021-12-08 | R35: N
A36: 7 | B36: 2021-12-02 | D36: IEX | E36: Buy | F36: 722.5 | G36: 698 | H36: 732.5 | I36: 645-665 | J36: Profit of Rs.10/- | K36: =H36-F36 -> 10 | L36: =(F36*-0.07)/100 -> -0.51 | M36: =(K36+L36)/F36 -> 1.31% | N36: Successful | O36: 2021-12-02 | R36: H
A37: 8 | B37: 2021-12-03 | D37: LTTS | E37: Buy | F37: 5450 | G37: 5290 | H37: 5,290.00 | I37: 5650-5800 | J37: Loss of Rs.160/- | K37: -160 | L37: =(F37*-0.7)/100 -> -38.15 | M37: -3.64% | N37: Unsuccessful | O37: 2021-12-06 | R37: H
A38: 9 | B38: 2021-12-06 | D38: HCLTECH | E38: Buy | F38: 1166-1170 | G38: 1135 | I38: 1210-1230 | J38: Open | R38: N
A39: 10 | B39: 2021-12-07 | D39: DHANUKA | E39: Buy | F39: 740 | G39: 718 | H39: 760 | I39: 765-780 | J39: Profit of Rs.20/- | K39: =H39-F39 -> 20 | L39: =(F39*-0.7)/100 -> -5.18 | M39: =(K39+L39)/F39 -> 2.00% | N39: Successful | O39: 2021-12-10 | R39: N
A40: 11 | B40: 2021-12-08 | D40: DEEPAKFERT | E40: Buy | F40: 369 | G40: 356 | H40: 382 | I40: 385-400 | J40: Profit of Rs.13/- | K40: 13 | L40: =(F40*-0.7)/100 -> -2.58 | M40: 2.82% | N40: Successful | O40: 2021-12-10 | R40: N
A41: 12 | B41: 2021-12-09 | D41: COLPAL | E41: Buy | F41: 1436-1444 | G41: 1392 | I41: 1490-1530 | J41: Open | R41: N
A42: 13 | B42: 2021-12-13 | D42: IDFCFIRSTB | E42: Buy | F42: 51.4-51.7 | G42: 49.9 | I42: 53.5-55 | J42: Open
A43: 14 | B43: 2021-12-14 | D43: BANKBARODA | E43: Buy | F43: 91.5-92.5 | G43: 89.3 | I43: 96-98 | J43: Open
A48: CLBS = Closing Basis *** | H48: *
A49: Dividend adjusted <> | F49: Reinitiated $
F50: Revised stoploss #
A52: Master Trade High Risk
A53: Sr.no | B53: Date | D53: Company | E53: Rec | F53: Rec Price | G53: Stop Loss | H53: Call Closed At | I53: Target | J53: Remark | K53: Profit / Loss per share | L53: All charges | M53: Gain / Loss per Lot | N53: Lot | O53: Status | P53: Closed Date
A54: 1 | B54: 2021-12-01 | D54: SIEMENS DEC FUT | E54: Buy | F54: 2140 | G54: 2100 | H54: 2171.5 | I54: 2200-2220 | J54: Profit of Rs.31.5/- | K54: =H54-F54 -> 31.5 | L54: =(H54*N54)*0.07% -> 418.01 | M54: =(K54*N54)-L54 -> 8244.5 | N54: 275 | O54: Successful | P54: 2021-12-02 | R54: N
A55: 2 | B55: 2021-12-01 | D55: ASIANPAINT DEC FUT | E55: Buy | F55: 3143 | G55: 3070 | H55: 3207.5 | I55: 3230-3300 | J55: Profit of Rs.64.5/- | K55: =H55-F55 -> 64.5 | L55: =(H55*N55)*0.07% -> 336.79 | M55: =(K55*N55)-L55 -> 9338.2 | N55: 150 | O55: Successful | P55: 2021-12-02 | R55: H
A56: 3 | B56: 2021-12-08 | D56: NAUKRI DEC FUT | E56: Buy | F56: 5760 | G56: 5630 | H56: 5660 | I56: 5900-5950 | J56: Loss of Rs.100/- | K56: =H56-F56 -> -100 | L56: =(H56*N56)*0.07% -> 475.44 | M56: =(K56*N56)-L56 -> -12475.4 | N56: 120 | O56: Unsuccessful | P56: 2021-12-13 | R56: N
A57: 4 | B57: 2021-12-13 | D57: HCLTECH DEC FUT | E57: Buy | F57: 1160-1162 | G57: 1144 | I57: 1180-1190 | J57: Open
A69: Master Trade Medium Risk
A70: Sr.no | B70: Date | D70: Company | E70: Rec | F70: Rec Price | G70: Stop Loss | H70: Call Closed At | I70: Target | J70: Remark | K70: Profit/ Loss per lot | L70: All charges | M70: Gain / Loss per Lot | N70: Lot | O70: Status | P70: Closed Date
A71: 1 | B71: 2021-12-01 | D71: NIFTY 17100 PE 02-DEC | E71: Buy | F71: 72 | G71: 30 | H71: 92.5 | I71: 140-170 | J71: Profit of Rs.20.5/- | K71: =H71-F71 -> 20.50 | L71: 100.00 | M71: =(K71*N71)-100 -> 925 | N71: 50 | O71: Successful | P71: 2021-12-01 | R71: N
A72: 2 | B72: 2021-12-01 | D72: NIFTY 17150 PE 02-DEC | E72: Buy | F72: 72 | G72: 30 | H72: 93 | I72: 120-160 | J72: Profit of Rs.21/- | K72: =H72-F72 -> 21.00 | L72: 100.00 | M72: =(K72*N72)-100 -> 950 | N72: 50 | O72: Successful | P72: 2021-12-01 | R72: N
A73: 3 | B73: 2021-12-02 | D73: NIFTY 17250PE 02-DEC | E73: Buy | F73: 56 | G73: 20 | H73: 20 | I73: 90-110 | J73: Loss of Rs.36/- | K73: =H73-F73 -> -36.00 | L73: 100.00 | M73: =(K73*N73)-100 -> -1900 | N73: 50 | O73: Unsuccessful | P73: 2021-12-02 | R73: N
A74: 4 | B74: 2021-12-02 | D74: NIFTY 17500 CE 09-DEC | E74: Sell | F74: 83 | G74: 127 | H74: 63 | I74: 1 | J74: Profit of Rs.20/- | K74: =F74-H74 -> 20.00 | L74: 100.00 | M74: =(K74*N74)-100 -> 900 | N74: 50 | O74: Successful | P74: 2021-12-02 | R74: H
A75: 5 | B75: 2021-12-02 | D75: NIFTY 17350PE 02-DEC | E75: Buy | F75: 11.5 | G75: 0 | H75: 0 | I75: 25-30 | J75: Loss of Rs.11.50/- | K75: =H75-F75 -> -11.50 | L75: 100.00 | M75: -675 | N75: 50 | O75: Unsuccessful | P75: 2021-12-02 | R75: N
A76: 6 | B76: 2021-12-02 | D76: NIFTY 17500 CE 09-DEC | E76: Sell | F76: 88 | G76: 135 | H76: 135 | I76: 1 | J76: Loss of Rs.47/- | K76: =F76-H76 -> -47.00 | L76: 100.00 | M76: =(K76*N76)-100 -> -2450 | N76: 50 | O76: Unsuccessful | P76: 2021-12-03 | R76: H
A77: 7 | B77: 2021-12-06 | D77: NIFTY 17000 PE 09-DEC | E77: Buy | F77: 72.5 | G77: 40 | H77: 94.5 | I77: 110-130 | J77: Profit of Rs.22/- | K77: =H77-F77 -> 22.00 | L77: 100.00 | M77: 1000 | N77: 50 | O77: Successful | P77: 2021-12-06 | R77: N
A78: 8 | B78: 2021-12-06 | D78: BANKNIFTY 36200 CE 09-DEC | E78: Buy | F78: 295 | G78: 190 | H78: 355 | I78: 400-500 | J78: Profit of Rs60/- | K78: 60.00 | L78: 100.00 | M78: =(K78*N78)-100 -> 1400 | N78: 25 | O78: Successful | P78: 2021-12-06 | R78: N
A79: 9 | B79: 2021-12-06 | D79: BANKNIFTY 36200 CE 09-DEC | E79: Buy | F79: 245 | G79: 120 | H79: 295 | I79: 350-400 | J79: Profit of Rs50/- | K79: =H79-F79 -> 50.00 | L79: 100.00 | M79: =(K79*N79)-100 -> 1150 | N79: 25 | O79: Successful | P79: 2021-12-07 | R79: N
A80: 10 | B80: 2021-12-07 | D80: INFY 1720 CE DEC | E80: Buy | F80: 31 | G80: 48 | H80: 37.5 | I80: 48-60 | J80: Profit of Rs6.50/- | K80: =H80-F80 -> 6.50 | L80: 100.00 | M80: =(K80*N80)-100 -> 1850 | N80: 300 | O80: Successful | P80: 2021-12-07 | R80: N
A81: 11 | B81: 2021-12-07 | D81: NIFTY 17000 PE 09-DEC | E81: Buy | F81: 72.5 | G81: 40 | H81: 40 | I81: 110-130 | J81: Loss of Rs.32.50/- | K81: =F81-H81 -> 32.50 | L81: 100.00 | M81: =(K81*N81)-100 -> 1525 | N81: 50 | O81: Unsuccessful | P81: 2021-12-07 | R81: N
A82: 12 | B82: 2021-12-08 | D82: NIFTY 17600 CE 16-DEC | E82: Sell | F82: 84 | G82: 120 | H82: 112.5 | I82: 40-20 | J82: Loss of Rs.28.50/- | K82: =F82-H82 -> -28.50 | L82: 100.00 | M82: =(K82*N82)-100 -> -1525 | N82: 50 | O82: Unsuccessful | P82: 2021-12-09 | R82: N
A83: 13 | B83: 2021-12-09 | D83: HINDUNILVR 2360 CE DEC | E83: Buy | F83: 32-33 | G83: 17 | I83: 48-60 | J83: Open | R83: N
A84: 14 | B84: 2021-12-10 | D84: NIFTY 17600 CE 16-DEC | E84: Buy | F84: 49.5 | G84: 17 | H84: 69 | I84: 85-105 | J84: Profit of Rs.19.50/- | K84: =H84-F84 -> 19.50 | L84: 100.00 | M84: =(K84*N84)-100 -> 875 | N84: 50 | O84: Successful | P84: 2021-12-10 | R84: H
A85: 15 | B85: 2021-12-14 | D85: NIFTY 17400 CE 16-DEC | E85: Buy | F85: 57-61 | G85: 28 | I85: 85-105 | J85: Open
A94: Techno -Funda (positional)
A95: Sr.no | B95: Date | D95: Company | E95: Rec | F95: Rec Price | G95: Stop Loss*** | H95: Call Closed At | I95: Target | J95: Remark | K95: Profit / Loss per Share/Lot | L95: All charges | M95: Net Gain / Loss % | N95: Status | O95: Closed Date | P95: Market Closing Price
A96: 1 | B96: 2021-08-12 | D96: SHARDACROP | E96: Buy | F96: 314 | G96: 284 | H96: 341.25 | I96: 380-390 | J96: Profit of Rs.27.25/- | K96: =H96-F96 -> 27.25 | L96: =(F96*-0.7)/100 -> -2.20 | M96: =(K96+L96)/F96 -> 7.98% | N96: Successful | O96: 2021-12-10 | R96: H
A97: 2 | B97: 2021-10-19 | D97: ITC | E97: Buy | F97: 230-251 | G97: 198 | I97: 320-340 | J97: Open | R97: H
A98: 3 | B98: 2021-10-21 | D98: OFSS | E98: Buy | F98: 4150-4550 | G98: 3700 | I98: 5400-6000 | J98: Open | R98: H
A100: CLBS = Closing Basis *** | F100: Reinitiated $
A101: Dividend adjusted <> | F101: Revised stoploss # | H101: .................
B103: Intrday Call
A104: Sr.no | B104: Date | D104: Company | E104: Rec | F104: Rec Price | G104: Stop Loss | H104: Call Closed At | I104: Target | J104: Remark | K104: Profit / Loss per Share/Lot | L104: Gain / Loss per Lot | M104: Lot | N104: All charges | O104: Net Gain / Loss % | P104: Status | Q104: Closed Date
B117: Investment Idea
A118: Sr.no | B118: Date | D118: Company | E118: Rec | F118: Rec Price | G118: Point of Review | H118: Close Rate | I118: Target | J118: Remark | K118: Profit / Loss per Share | L118: Gain / Loss % | M118: Status | N118: Closed Date
A119: 1 | B119: 2013-11-01 | D119: L&T Finance Holding | E119: Accu | F119: 82.00 | G119: - | H119: 100 | I119: 100.00 | J119: Target Achieved | K119: =H119-F119 -> 18.00 | L119: =K119/F119 -> 21.95% | M119: Successful | N119: 2016-10-14
A120: 2 | B120: 2014-06-04 | D120: Finolex Inds | E120: Buy | F120: 257.00 | G120: - | H120: 300 | I120: 300.00 | J120: Target Achieved | K120: 43.00 | L120: 16.73% | M120: Successful | N120: 2014-07-02
A121: 3 | B121: 2014-07-08 | D121: JK Cement | E121: Buy | F121: 393.00 | G121: - | H121: 468 | I121: 468.00 | J121: Target Achieved | K121: 75.00 | L121: 19.08% | M121: Successful | N121: 2014-08-12
A122: 4 | B122: 2014-08-06 | D122: Finolex Cables | E122: Buy | F122: 205.00 | G122: - | H122: 275 | I122: 250.00 | J122: Target Achieved | K122: 70.00 | L122: 34.15% | M122: Successful | N122: 2014-11-19
A123: 5 | B123: 2014-09-04 | D123: Exide Inds | E123: Buy | F123: 162.00 | G123: - | H123: 190 | I123: 190.00 | J123: Target Achieved | K123: 28.00 | L123: 17.28% | M123: Successful | N123: 2015-01-02
A124: 6 | B124: 2014-09-04 | D124: Deepak Nitrite | E124: Buy | F124: 75.00 | G124: - | H124: 91.5 | I124: 95-100 | J124: Profit of Rs.16.50/- | K124: 16.50 | L124: 22.00% | M124: Successful | N124: 2014-11-11
A125: 7 | B125: 2014-10-01 | D125: Mercks | E125: Buy | F125: 850.00 | G125: - | H125: 982.5 | I125: 1050.00 | J125: Profit of Rs.132.50/- | K125: 132.50 | L125: 15.59% | M125: Successful | N125: 2015-02-04
A126: 8 | B126: 2014-10-01 | D126: Grindwell Norton | E126: Buy | F126: 475.00 | G126: - | H126: 515 | I126: 600.00 | J126: Profit of Rs.40/- | K126: 40.00 | L126: 8.42% | M126: Successful | N126: 2014-10-27
A127: 9 | B127: 2014-10-01 | D127: Snowman Logistics | E127: Buy | F127: 86.00 | G127: - | H127: 99 | I127: 140.00 | J127: Profit of Rs.13.00/- | K127: 13.00 | L127: 15.12% | M127: Successful | N127: 2014-10-27
A128: 10 | B128: 2014-10-14 | D128: Birla Corp | E128: Buy | F128: 496.60 | G128: - | H128: 621 | I128: 580.00 | J128: Target Achieved | K128: 124.40 | L128: 25.05% | M128: Successful | N128: 2016-08-23
A129: 11 | B129: 2014-10-14 | D129: Ultratech Cem | E129: Buy | F129: 2481.90 | G129: - | H129: 2840 | I129: 2870.00 | J129: Profit of Rs.358.10/- | K129: 358.10 | L129: 14.43% | M129: Successful | N129: 2015-01-13
A130: 12 | B130: 2014-10-16 | D130: Sintex Inds | E130: Buy | F130: 84.50 | G130: - | H130: 93 | I130: 110.00 | J130: Profit of Rs.8.50/- | K130: 8.50 | L130: 10.06% | M130: Successful | N130: 2014-10-27
A131: 13 | B131: 2014-10-16 | D131: HSIL | E131: Buy | F131: 401.00 | G131: - | H131: 428 | I131: 450.00 | J131: Profit of Rs.27.00/- | K131: 27.00 | L131: 6.73% | M131: Successful | N131: 2015-01-16
A132: 14 | B132: 2014-10-16 | D132: Eveready Inds | E132: Buy | F132: 101.00 | G132: - | H132: 112 | I132: 120.00 | J132: Profit of Rs.11.00/- | K132: 11.00 | L132: 10.89% | M132: Successful | N132: 2014-10-27
A133: 15 | B133: 2014-11-11 | D133: Pennar Inds | E133: Buy | F133: 59.00 | G133: - | H133: 76 | I133: 76.00 | J133: Target Achieved | K133: 17.00 | L133: 28.81% | M133: Successful | N133: 2017-10-24
A134: 16 | B134: 2014-11-11 | D134: Snowman Logistics | E134: Buy | F134: 99.00 | G134: - | H134: 120 | I134: 120.00 | J134: Profit of Rs.21/- | K134: 21.00 | L134: 21.21% | M134: Successful | N134: 2014-11-17
A135: 17 | B135: 2014-11-13 | D135: Dharamsi Morarji Chem | E135: Buy | F135: 22.00 | G135: - | H135: 33.55 | I135: 32.00 | J135: Profit of Rs 11.55/- | K135: 11.55 | L135: 52.50% | M135: Successful | N135: 2015-07-03
A136: 18 | B136: 2014-12-03 | D136: Tatachem | E136: Buy | F136: 440.00 | G136: - | H136: 520 | I136: 520.00 | J136: Profit of Rs 80.00/- | K136: 80.00 | L136: 18.18% | M136: Successful | N136: 2015-07-23
A137: 19 | B137: 2014-12-03 | D137: Advanta | E137: Buy | F137: 360.00 | G137: - | H137: 427 | I137: 425.00 | J137: Profit of Rs.67.00/- | K137: 67.00 | L137: 18.61% | M137: Successful | N137: 2015-02-23
A138: 20 | B138: 2015-01-08 | D138: GDL | E138: Buy | F138: 360.00 | G138: - | H138: 455 | I138: 420.00 | J138: Profit of Rs.95.00/- | K138: 95.00 | L138: 26.39% | M138: Successful | N138: 2015-01-20
A139: 21 | B139: 2015-01-08 | D139: NRB Bearing | E139: Buy | F139: 130.00 | H139: 175.5 | I139: 165.00 | J139: Profit of Rs 45.50/- | K139: 45.50 | L139: 35.00% | M139: Successful | N139: 2017-12-19
A140: 22 | B140: 2015-02-05 | D140: GSFC | E140: Accu | F140: 98.00 | H140: 120 | I140: 120.00 | J140: Target Achieved | K140: 22.00 | L140: 22.45% | M140: Successful | N140: 2017-01-18
A141: 23 | B141: 2015-02-05 | D141: Sundrmfast | E141: Accu | F141: 196.00 | H141: 262 | I141: 255.00 | J141: Target Achieved | K141: 66.00 | L141: 33.67% | M141: Successful | N141: 2016-08-17
A142: 24 | B142: 2015-03-04 | D142: GPPL | E142: Accu | F142: 235 | H142: 77.00 | I142: 280-285 | J142: Loss of Rs.158/- | K142: -158.00 | L142: -67.23% | M142: Unsuccessful | N142: 2019-02-26
A143: 25 | B143: 2015-03-04 | D143: ORIENTCEM | E143: Accu | F143: 185.00 | H143: 224 | I143: 220-225 | J143: Target Achieved | K143: 39.00 | L143: 21.08% | M143: Successful | N143: 2016-10-04
A144: 26 | B144: 2015-03-27 | D144: PFS | E144: Accu | F144: 49.5 | H144: 15.85 | I144: 67.00 | J144: Loss of Rs.33.65/- | K144: -33.65 | L144: -68% | M144: Unsuccessful | N144: 2019-06-11
A145: 27 | B145: 2015-03-30 | D145: Walchandnagar Ind Ltd | E145: Accu | F145: 183.50 | H145: 219 | I145: 218.00 | J145: Profit of Rs.35.50/- | K145: 35.50 | L145: 19.35% | M145: Successful | N145: 2015-04-09
A146: 28 | B146: 2015-04-20 | D146: Kalpataru Power Transmission Ltd | E146: Accu | F146: =(227+237)/2 -> 232.00 | H146: 298 | I146: 298.00 | J146: Target Achieved | K146: 66.00 | L146: 28.45% | M146: Successful | N146: 2017-03-29
A147: 29 | B147: 2015-05-04 | D147: Mastek Ltd | E147: Buy | F147: 385.00 | H147: =212.5+331 -> 543.5 | I147: 510.00 | J147: Profit of Rs 158.50/- | K147: 158.50 | L147: 41.17% | M147: Successful | N147: 2015-08-19
A148: 30 | B148: 2015-05-04 | D148: Suprajit Eng | E148: Buy | F148: 115.50 | H148: 146 | I148: 142.00 | J148: Profit of Rs 30.50/- | K148: 30.50 | L148: 26.41% | M148: Successful | N148: 2015-07-17
A149: 31 | B149: 2015-05-27 | D149: TCI | E149: Buy | F149: 237.50 | H149: 279.5 | I149: 278.00 | J149: Target Achieved | K149: 42.00 | L149: 17.68% | M149: Successful | N149: 2015-08-06
A150: 32 | B150: 2015-06-19 | D150: HSIL | E150: Accu | F150: 340.00 | H150: 448 | I150: 448.00 | J150: Target Achieved | K150: 108.00 | L150: 31.76% | M150: Successful | N150: 2017-10-10
A151: 33 | B151: 2015-07-06 | D151: Capital First | E151: Accu | F151: 390.00 | H151: 460 | I151: 460.00 | J151: Target Achieved | K151: 70.00 | L151: 17.95% | M151: Successful | N151: 2016-04-18
A152: 34 | B152: 2015-07-10 | D152: Dolphin OffShore | E152: Accu | F152: 122.5 | H152: 61.00 | I152: 172.00 | J152: Loss of Rs.61.50/- | K152: -61.50 | L152: -50.20% | M152: Unsuccessful | N152: 2018-08-21
A153: 35 | B153: 2015-08-03 | D153: Allcargo logistics | E153: Accu | F153: 297.50 | H153: 350 | I153: 360.00 | J153: Profit of Rs 52.50/- | K153: 52.50 | L153: 17.65% | M153: Successful | N153: 2015-08-16
A154: 36 | B154: 2015-08-03 | D154: Camline Fine | E154: Accu | F154: 115.50 | H154: 149 | I154: 140.00 | J154: Profit of Rs 33.50/- | K154: 33.50 | L154: 29.00% | M154: Successful | N154: 2017-01-05
A155: 37 | B155: 2015-09-04 | D155: TCI | E155: Accu | F155: 226.00 | H155: 292 | I155: 292.00 | J155: Target Achieved | K155: 66.00 | L155: 29.20% | M155: Successful | N155: 2015-10-09
A156: 38 | B156: 2015-09-07 | D156: Kalpataru Power Transmission Ltd | E156: Accu | F156: 232.50 | H156: 312.5 | I156: 310.00 | J156: Target Achieved | K156: 80.00 | L156: 34.41% | M156: Successful | N156: 2017-03-29
A157: 39 | B157: 2015-09-21 | D157: LLOYD ELECTRIC & ENG LTD | E157: Accu | F157: 196.50 | H157: 238 | I157: 238.00 | J157: Target Achieved | K157: 41.50 | L157: 21.12% | M157: Successful | N157: 2015-10-14
A158: 40 | B158: 2015-09-24 | D158: L&T Finance Holding | E158: Accu | F158: 65.00 | H158: 82 | I158: 82.00 | J158: Target Achieved | K158: 17.00 | L158: 26.15% | M158: Successful | N158: 2016-07-27
A159: 41 | B159: 2015-10-14 | D159: KEC International ltd | E159: Accu | F159: 144.00 | H159: 182.5 | I159: 181.00 | J159: Target Achieved | K159: 38.50 | L159: 26.74% | M159: Successful | N159: 2017-03-23
A160: 42 | B160: 2015-10-14 | D160: Gruh Finance | E160: Accu | F160: 264.00 | H160: 311 | I160: 311.00 | J160: Target Achieved | K160: 47.00 | L160: 17.80% | M160: Successful | N160: 2016-08-22
A161: 43 | B161: 2015-11-10 | D161: Pidilitind | E161: Buy | F161: 549.50 | H161: 630 | I161: 630.00 | J161: Target Achieved | K161: 80.50 | L161: 14.65% | M161: Successful | N161: 2016-02-19
A162: 44 | B162: 2015-12-04 | D162: Zensar Technology | E162: Accu | F162: 1027.50 | H162: 1315 | I162: 1250.00 | J162: Target Achieved | K162: 287.50 | L162: 27.98% | M162: Successful | N162: 2018-05-24
A163: 45 | B163: 2015-12-29 | D163: Vinati Organics Ltd | E163: Accu | F163: 465.00 | H163: 540 | I163: 540.00 | J163: Target Achieved | K163: 75.00 | L163: 16.13% | M163: Successful | N163: 2016-06-09
A164: 46 | B164: 2016-01-11 | D164: GSFC | E164: Buy | F164: 81.00 | H164: 110 | I164: 110.00 | J164: Target Achieved | K164: 29.00 | L164: 35.80% | M164: Successful | N164: 2017-01-10
A165: 47 | B165: 2016-01-13 | D165: SSWL | E165: Buy | F165: 417.50 | H165: 547 | I165: 535.00 | J165: Target Achieved | K165: 129.50 | L165: 31.02% | M165: Successful | N165: 2016-07-27
A166: 48 | B166: 2016-02-08 | D166: Persistent System Ltd | E166: Accu | F166: 650.00 | H166: 800 | I166: 800.00 | J166: Target Achieved | K166: 150.00 | L166: 23.08% | M166: Successful | N166: 2018-02-23
A167: 49 | B167: 2016-03-04 | D167: UPL | E167: Accu | F167: 437.50 | H167: 504.5 | I167: 522.00 | J167: Profit of Rs.67/- | K167: 67.00 | L167: 15.31% | M167: Successful | N167: 2016-04-20
A168: 50 | B168: 2016-03-09 | D168: Ashoka Buildcon Ltd | E168: Accu | F168: 189.50 | H168: 218 | I168: 218.00 | J168: Target Achieved | K168: 28.50 | L168: 15.04% | M168: Successful | N168: 2017-10-26
A169: 51 | B169: 2016-04-11 | D169: PTC INDIA FIN SERV LTD | E169: Accu | F169: 36.5 | H169: 15.85 | I169: 60.00 | J169: Loss of Rs.20.65/- | K169: -20.65 | L169: -56.58% | M169: Unsuccessful | N169: 2019-06-11
A170: 52 | B170: 2016-04-12 | D170: CAMLINFINE $ | E170: Accu | F170: 93.00 | H170: 149 | I170: 140.00 | J170: Profit of Rs 56/- | K170: 56.00 | L170: 60.22% | M170: Successful | N170: 2017-01-05
A171: 53 | B171: 2016-04-12 | D171: Greaves Cotton Ltd. | E171: Accu | F171: 130.00 | H171: 150 | I171: 150-155 | J171: Target Achieved | K171: 20.00 | L171: 15.38% | M171: Successful | N171: 2016-07-13
A172: 54 | B172: 2016-04-13 | D172: DHFL | E172: Accu | F172: 196.00 | H172: 299 | I172: 299.00 | J172: Target Achieved | K172: 103.00 | L172: 52.55% | M172: Successful | N172: 2016-09-07
A173: 55 | B173: 2016-04-13 | D173: Magma | E173: Accu | F173: 88.00 | H173: 103 | I173: 103.00 | J173: Target Achieved | K173: 15.00 | L173: 17.05% | M173: Successful | N173: 2016-06-09
A174: 56 | B174: 2016-05-02 | D174: KEC International ltd $ | E174: Accu | F174: 127.50 | H174: 148 | I174: 148-150 | J174: Target Achieved | K174: =H174-F174 -> 20.50 | L174: =K174/F174 -> 16.08% | M174: Successful | N174: 2016-07-13
A175: 57 | B175: 2016-05-03 | D175: Mindtree | E175: Accu | F175: 675.00 | H175: 815 | I175: 790-800 | J175: Target Achieved | K175: 140.00 | L175: 20.74% | M175: Successful | N175: 2018-02-23
A176: 58 | B176: 2016-06-01 | D176: Atulauto | E176: Accu | F176: 500 | H176: 232.50 | I176: 565-570 | J176: Loss of Rs.267.50 /- | K176: -267.50 | L176: -53.50% | M176: Unsuccessful | N176: 2019-09-27
A177: 59 | B177: 2016-06-06 | D177: TRITURBINE | E177: Accu | F177: 110.00 | H177: 126.5 | I177: 125.00 | J177: Profit of Rs.16.50/- | K177: 16.50 | L177: 15.00% | M177: Successful | N177: 2016-07-01
A178: 60 | B178: 2016-06-17 | D178: Pennar Industries Ltd | E178: Accu | F178: 44.00 | H178: 69.5 | I178: 69.50 | J178: Profit of Rs.25.50/- | K178: 25.50 | L178: 57.95% | M178: Successful | N178: 2017-08-30
A179: 61 | B179: 2016-06-28 | D179: EVEREADY | E179: Accu | F179: 262.50 | H179: 340 | I179: 333.00 | J179: Profit of Rs.77.50/- | K179: 77.50 | L179: 29.52% | M179: Successful | N179: 2017-10-09
A180: 62 | B180: 2016-06-28 | D180: FIEMIND | E180: Accu | F180: 840.00 | H180: 1230 | I180: 1230.00 | J180: Target Achieved | K180: 390.00 | L180: 46.43% | M180: Successful | N180: 2016-10-06
A181: 63 | B181: 2016-07-05 | D181: Bajaj Corp Ltd | E181: Accu | F181: 395 | H181: =(468.5+342.5)/2 -> 405.50 | I181: 510.00 | J181: Profit of Rs.10.50/- | K181: =H181-F181 -> 10.50 | L181: =K181/F181 -> 3% | M181: Neutral | N181: 2019-05-21
A182: 64 | B182: 2016-08-02 | D182: GPPL $ | E182: Buy | F182: =169.5-12.8 -> 156.7 | H182: 77.00 | I182: 198-200 | J182: Loss of Rs.79.7/- | K182: -79.70 | L182: -50.86% | M182: Unsuccessful | N182: 2019-02-26
A183: 65 | B183: 2016-08-04 | D183: WONDERLA HOLIDAYS LTD | E183: Accu | F183: 400 | H183: 305.00 | I183: 475.00 | J183: Loss of Rs.95/- | K183: -95.00 | L183: -23.75% | M183: Unsuccessful | N183: 2019-05-21
A184: 66 | B184: 2016-08-11 | D184: CAMLINFINE | E184: Accu | F184: 86.50 | H184: 130 | I184: 130.00 | J184: Profit of Rs.43.50/- | K184: 43.50 | L184: 50.29% | M184: Successful | N184: 2017-12-22
A185: 67 | B185: 2016-08-18 | D185: GRANULES | E185: Accu | F185: 133.5 | H185: 126.50 | I185: 178.00 | J185: Exit | K185: -7.00 | L185: -5.24% | M185: Unsuccessful | N185: 2016-09-02
A186: 68 | B186: 2016-08-31 | D186: VA TECH WABAG | E186: Accu | F186: 560.00 | H186: 725 | I186: 725.00 | J186: Target Achieved | K186: 165.00 | L186: 29.46% | M186: Successful | N186: 2016-03-27
A187: 69 | B187: 2016-09-01 | D187: SKIPPER LIMITED | E187: Accu | F187: 160.50 | H187: 210 | I187: 210.00 | J187: Target Achieved | K187: 49.50 | L187: 30.84% | M187: Successful | N187: 2017-05-16
A188: 70 | B188: 2016-10-03 | D188: IFBIND | E188: Accu | F188: 430.00 | H188: 596 | I188: 575.00 | J188: Profit of Rs.166/- | K188: 166.00 | L188: 38.60% | M188: Successful | N188: 2017-02-03
A189: 71 | B189: 2016-10-14 | D189: ASIANTILES | E189: Accu | F189: 280.00 | H189: 345 | I189: 345.00 | J189: Target Achieved | K189: =H189-F189 -> 65.00 | L189: =K189/F189 -> 23.21% | M189: Successful | N189: 2017-03-20
A190: 72 | B190: 2016-10-14 | D190: DEEPIND | E190: Accu | F190: 245.00 | H190: 325.5 | I190: 330.00 | J190: Profit of Rs.80.5/- | K190: 80.50 | L190: 32.86% | M190: Successful | N190: 2017-02-03
A191: 73 | B191: 2016-10-17 | D191: DCBBANK | E191: Accu | F191: 125.00 | H191: 160 | I191: 160.00 | J191: Target Achieved | K191: 35.00 | L191: 28.00% | M191: Successful | N191: 2017-03-09
A192: 74 | B192: 2016-10-17 | D192: ORIENTREF | E192: Accu | F192: 114.00 | H192: 145 | I192: 145.00 | J192: Target Achieved | K192: 31.00 | L192: =K192/F192 -> 27.19% | M192: Successful | N192: 2017-05-04
A193: 75 | B193: 2016-10-17 | D193: GANECOS | E193: Accu | F193: 212.00 | H193: 280 | I193: 276.00 | J193: Profit of Rs.68/- | K193: 68.00 | L193: 32.08% | M193: Successful | N193: 2017-05-03
A194: 76 | B194: 2016-11-04 | D194: NBCC | E194: Accu | F194: 155.00 | H194: 210 | I194: 210.00 | J194: Profit of Rs.55/- | K194: 55.00 | L194: 35.48% | M194: Successful | N194: 2017-07-28
A195: 77 | B195: 2016-12-06 | D195: PRECAM | E195: Accu | F195: 150.5 | H195: 72.50 | I195: 174.00 | J195: Loss of Rs.78/- | K195: -78.00 | L195: -51.83% | M195: Unsuccessful | N195: 2018-08-21
A196: 78 | B196: 2016-12-08 | D196: INFRATEL | E196: Accu | F196: 380.00 | H196: 478 | I196: 468.00 | J196: Target Achieved | K196: =H196-F196 -> 98.00 | L196: =K196/F196 -> 25.79% | M196: Successful | N196: 2017-10-17
A197: 79 | B197: 2016-12-30 | D197: GODREJPROP | E197: Accu | F197: 305.00 | H197: 375 | I197: 375.00 | J197: Target Achieved | K197: 70.00 | L197: 22.95% | M197: Successful | N197: 2017-02-02
A198: 80 | B198: 2017-01-04 | D198: DEEPAKNTR | E198: Accu | F198: 99.50 | H198: 158 | I198: 158.00 | J198: Target Achieved | K198: 58.50 | L198: 58.79% | M198: Successful | N198: 2017-06-12
A199: 81 | B199: 2017-01-04 | D199: DEEPAKNTR | E199: Accu | F199: 99.50 | H199: 158 | I199: 158.00 | J199: Target Achieved | K199: 58.50 | L199: 58.79% | M199: Successful | N199: 2017-06-12
A200: 82 | B200: 2017-02-20 | D200: RECLTD | E200: Accu | F200: 140.50 | H200: 220 | I200: 220.00 | J200: Target Achieved | K200: =H200-F200 -> 79.50 | L200: =K200/F200 -> 56.58% | M200: Successful | N200: 2017-05-09
A201: 83 | B201: 2017-02-20 | D201: SUBROS | E201: Accu | F201: 202.50 | H201: 234 | I201: 234.00 | J201: Target Achieved | K201: 31.50 | L201: 15.56% | M201: Successful | N201: 2017-04-11
A202: 84 | B202: 2017-03-24 | D202: VRLLOG | E202: Accu | F202: 300.50 | H202: 417.5 | I202: 420.00 | J202: Profit of Rs.117/- | K202: =H202-F202 -> 117.00 | L202: =K202/F202 -> 38.94% | M202: Successful | N202: 2017-12-01
A203: 85 | B203: 2017-03-24 | D203: FIEMIND | E203: Accu | F203: 850.00 | H203: 1042.5 | I203: 1023.00 | J203: Profit of Rs 192.50/- | K203: 192.50 | L203: 22.65% | M203: Successful | N203: 2017-04-05
A204: 86 | B204: 2017-04-05 | D204: RATNAMANI | E204: Accu | F204: 785.00 | H204: 930 | I204: 920.00 | J204: Profit of Rs.145/- | K204: =H204-F204 -> 145.00 | L204: =K204/F204 -> 18.47% | M204: Successful | N204: 2017-08-29
A205: 87 | B205: 2017-04-06 | D205: ZEEMEDIA | E205: Accu | F205: 40 | H205: 13.10 | I205: 60.00 | J205: Loss of Rs.26.9/- | K205: -26.90 | L205: -67.25% | M205: Unsuccessful | N205: 2018-02-07
A206: 88 | B206: 2017-04-12 | D206: DABUR | E206: Accu | F206: 289.50 | H206: 354 | I206: 360.00 | J206: Profit of Rs.64.5/- | K206: =H206-F206 -> 64.50 | L206: =K206/F206 -> 22.28% | M206: Successful | N206: 2017-11-01
A207: 89 | B207: 2017-04-20 | D207: KPRMILL | E207: Accu | F207: 700.00 | H207: 840 | I207: 840.00 | J207: Profit of Rs.140/- | K207: 140.00 | L207: 20.00% | M207: Successful | N207: 2017-06-07
A208: 90 | B208: 2017-06-01 | D208: ESSELPACK | E208: Accu | F208: 130.00 | H208: 144.25 | I208: 170.00 | J208: Profit of Rs.14.25/- | K208: 14.25 | L208: 10.96% | M208: Successful | N208: 2019-07-29
A209: 91 | B209: 2017-06-15 | D209: KEI | E209: Accu | F209: 214.50 | H209: 262 | I209: 262.00 | J209: Profit of Rs.47.5/- | K209: 47.50 | L209: 22.14% | M209: Successful | N209: 2017-08-30
A210: 92 | B210: 2017-07-17 | D210: MAYURUNIQ | E210: Accu | F210: 370.00 | H210: 447.5 | I210: 450.00 | J210: Target Achieved | K210: 77.50 | L210: 20.95% | M210: Successful | N210: 2017-10-27
A211: 93 | B211: 2017-07-27 | D211: RAMCOCEM | E211: Accu | F211: 657.50 | H211: 825 | I211: 820.00 | J211: Target Achieved | K211: 167.50 | L211: 25.48% | M211: Successful | N211: 2017-12-21
A212: 94 | B212: 2017-08-17 | D212: FINPIPE | E212: Accu | F212: 605.00 | H212: 750 | I212: 750.00 | J212: Profit of Rs.145/- | K212: 145.00 | L212: 23.97% | M212: Successful | N212: 2017-10-19
A213: 95 | B213: 2017-09-01 | D213: SHK | E213: Accu | F213: 255 | H213: 217.25 | I213: 320.00 | J213: Loss of Rs.37.75/- | K213: -37.75 | L213: -15% | M213: Unsuccessful | N213: 2019-07-15
A214: 96 | B214: 2017-09-19 | D214: SKIPPER | E214: Accu | F214: 215.00 | H214: 258 | I214: 258.00 | J214: Target Achieved | K214: 43.00 | L214: 20.00% | M214: Successful | N214: 2017-11-01
A215: 97 | B215: 2017-09-19 | D215: SKIPPER | E215: Accu | F215: 215.00 | H215: 258 | I215: 258.00 | J215: Target Achieved | K215: 43.00 | L215: 20.00% | M215: Successful | N215: 2017-11-01
A216: 98 | B216: 2017-09-20 | D216: CAMLINFINE$ | E216: Accu | F216: 75.00 | H216: 90 | I216: 90.00 | J216: Profit of Rs.15.00/- | K216: =H216-F216 -> 15.00 | L216: =K216/F216 -> 20.00% | M216: Successful | N216: 2017-10-11
A217: 99 | B217: 2017-10-03 | D217: GNA | E217: Accu | F217: 315.00 | H217: 392 | I217: 384.00 | J217: Profit of Rs.77/- | K217: 77.00 | L217: 24.44% | M217: Successful | N217: 2017-10-09
A218: 100 | B218: 2017-10-05 | D218: NOCIL | E218: Accu | F218: 145.00 | H218: 179 | I218: 180.00 | J218: Profit of Rs.34/- | K218: 34.00 | L218: 23.45% | M218: Successful | N218: 2017-10-17
A219: 101 | B219: 2017-10-06 | D219: CENTURYPLY | E219: Accu | F219: 256.00 | H219: 323 | I219: 320.00 | J219: Target Achieved | K219: 67.00 | L219: 26.17% | M219: Successful | N219: 2017-11-28
A220: 102 | B220: 2017-10-09 | D220: EIHOTEL | E220: Accu | F220: 137.50 | H220: 184 | I220: 183.00 | J220: Profit of Rs.46.5/- | K220: 46.50 | L220: 33.82% | M220: Successful | N220: 2018-01-08
A221: 103 | B221: 2017-10-10 | D221: NRBBEARING | E221: Accu | F221: 125.50 | H221: 158 | I221: 155.00 | J221: Profit of Rs.32.5/- | K221: 32.50 | L221: 25.90% | M221: Successful | N221: 2017-11-28
A222: 104 | B222: 2017-10-10 | D222: BOROSIL | E222: Accu | F222: 895.00 | H222: 1122.5 | I222: 1078.00 | J222: Profit of Rs.227.5/- | K222: 227.50 | L222: 25.42% | M222: Successful | N222: 2018-01-17
A223: 105 | B223: 2017-10-12 | D223: CYIENT | E223: Accu | F223: 525.00 | H223: 629 | I223: 629.00 | J223: Target Achieved | K223: 104.00 | L223: 19.81% | M223: Successful | N223: 2018-01-19
A224: 106 | B224: 2017-11-07 | D224: HATSUN | E224: Accu | F224: 740.00 | H224: 892.5 | I224: 900.00 | J224: Profit of Rs.152.5/- | K224: =H224-F224 -> 152.50 | L224: =K224/F224 -> 20.61% | M224: Successful | N224: 2017-11-13
A225: 107 | B225: 2017-12-04 | D225: SANGHIIND | E225: Accu | F225: 118.50 | H225: 143.5 | I225: 145.00 | J225: Profit of Rs.25/- | K225: 25.00 | L225: 21.10% | M225: Successful | N225: 2017-12-28
A226: 108 | B226: 2017-12-21 | D226: KAJARIACER | E226: Accu | F226: 715 | H226: 500.00 | I226: 872.00 | J226: Loss of Rs.215/- | K226: -215.00 | L226: -30.07% | M226: Unsuccessful | N226: 2019-07-24
A227: 109 | B227: 2017-12-29 | D227: GNA | E227: Accu | F227: 435.00 | H227: 542.5 | I227: 539.00 | J227: Target Achieved | K227: 107.50 | L227: 24.71% | M227: Successful | N227: 2018-04-16
A228: 110 | B228: 2017-12-29 | D228: ZENSARTECH | E228: Accu | F228: 885.00 | H228: 1090 | I228: 1084.00 | J228: Target Achieved | K228: 205.00 | L228: 23.16% | M228: Successful | N228: 2018-04-23
A229: 111 | B229: 2018-04-02 | D229: EVERESTIND | E229: Accu | F229: 478.50 | H229: 442 | I229: 613.00 | J229: Loss of Rs.36.50 /- | K229: =H229-F229 -> -36.50 | L229: =K229/F229 -> -7.63% | M229: Unsuccessful | N229: 2019-10-24
A230: 112 | B230: 2018-04-04 | D230: GPPL$ | E230: Accu | F230: =141.5-7.3 -> 134.2 | H230: 77.00 | I230: 180.00 | J230: Loss of Rs.57.2/- | K230: -57.20 | L230: -42.62% | M230: Unsuccessful | N230: 2019-02-26
A231: 113 | B231: 2018-04-19 | D231: MANPASAND | E231: Accu | F231: 430 | H231: 220.00 | I231: 537.00 | J231: Loss of Rs.210/- | K231: -210.00 | L231: -48.84% | M231: Unsuccessful | N231: 2018-06-01
A232: 114 | B232: 2018-04-30 | D232: HEIDELBERG | E232: Accu | F232: 153.5 | H232: 196 | I232: 196.00 | J232: Profit of Rs.42.50/- | K232: 42.50 | L232: 27.69% | M232: Successful | N232: 2019-05-20
A233: 115 | B233: 2018-07-25 | D233: ZEEMEDIA | E233: Accu | F233: 27.5 | H233: 13.10 | I233: 60.00 | J233: Loss of Rs.14.40/- | K233: -14.40 | L233: -52.36% | M233: Unsuccessful | N233: 2018-02-07
A234: 116 | B234: 2018-08-06 | D234: GABRIEL | E234: Accu | F234: 148.5 | H234: 102 | I234: 182.00 | J234: Loss of Rs.46.50/- | K234: =H234-F234 -> -46.50 | L234: =K234/F234 -> -31.31% | M234: Unsuccessful | N234: 2019-07-15
A235: 117 | B235: 2018-08-23 | D235: INDIANHUME | E235: Accu | F235: 285 | H235: 355 | I235: 364.00 | J235: Profit of Rs.70/- | K235: 70.00 | L235: 24.56% | M235: Successful | N235: 2018-12-21
A236: 118 | B236: 2018-08-29 | D236: GRINDWELL | E236: Accu | F236: 525 | H236: 585 | I236: 635.00 | J236: Profit of Rs.60- | K236: =H236-F236 -> 60.00 | L236: =K236/F236 -> 11.43% | M236: Successful | N236: 2019-07-16
A237: 119 | B237: 2018-10-22 | D237: FINPIPE | E237: Accu | F237: 475 | H237: 574 | I237: 570.00 | J237: Target Achieved | K237: 99.00 | L237: 20.84% | M237: Successful | N237: 2018-10-30
A238: 120 | B238: 2018-10-24 | D238: GULFOILLUB | E238: Accu | F238: 707.5 | H238: 872 | I238: 872.00 | J238: Target Achieved | K238: 164.50 | L238: 23.25% | M238: Successful | N238: 2019-01-17
A239: 121 | B239: 2018-10-25 | D239: DBCORP | E239: Accu | F239: 162 | H239: 204 | I239: 209.00 | J239: Profit of Rs.42/- | K239: 42.00 | L239: 25.93% | M239: Successful | N239: 2019-03-15
A240: 122 | B240: 2018-10-26 | D240: RITES | E240: Accu | F240: 240 | H240: 297 | I240: 297.00 | J240: Target Achieved | K240: 57.00 | L240: 23.75% | M240: Successful | N240: 2018-11-13
A241: 123 | B241: 2018-12-05 | D241: BRIGADE | E241: Accu | F241: 202.5 | H241: 255 | I241: 252.00 | J241: Target Achieved | K241: 52.50 | L241: 25.93% | M241: Successful | N241: 2019-03-18 | R241: V
A242: 124 | B242: 2018-12-31 | D242: JKCEMENT | E242: Accu | F242: 710 | H242: 866 | I242: 866.00 | J242: Target Achieved | K242: 156.00 | L242: 21.97% | M242: Successful | N242: 2019-03-29 | R242: V
A243: 125 | B243: 2019-02-26 | D243: MARICO | E243: Accu | F243: 337.25 | H243: 398.5 | I243: 411.00 | J243: Profit of Rs.61.25/- | K243: 61.25 | L243: 18.16% | M243: Successful | N243: 2019-10-22 | R243: V
A244: 126 | B244: 2019-04-04 | D244: ITDCEM | E244: Accu | F244: 130 | H244: 65 | I244: 158.00 | J244: Loss of Rs.65 /- | K244: -65.00 | L244: -50.00% | M244: Unsuccessful | N244: 2019-09-18 | R244: K
A245: 127 | B245: 2017-10-09 | D245: RECLTD | E245: Accu | F245: 141.5 | H245: 183.5 | I245: 210.00 | J245: Profit of Rs.42/- | K245: 42.00 | L245: 29.68% | M245: Successful | N245: 2017-11-03 | R245: K
A246: 128 | B246: 2017-12-05 | D246: ALLCARGO | E246: Accu | F246: 172.00 | H246: 155.25 | I246: 230.00 | J246: Loss of Rs.16.75/- | K246: -16.75 | L246: -9.74% | M246: Unsuccessful | N246: 2019-11-18 | R246: K
... 45 more rows
